Workbook

Sheet CoverPage
A1: Soil Temperature and Freeze-Thaw Cycle Prediction Tool Instructions: This tool predicts the soil temperatures over time at a user-specified depth, as well as the count, duration and start/end date of the freeze thaw cycles. There are three buttons provided as options to complete these calcuations, on the "Calcuations" tab. These are as follows, each of which is explained in more detail below: 1. Temperature prediction; 2. Number of freeze-thaw cycles; 3. Predict soil temperature and number of cycles. For (1): "Temperature prediction", the results of this will provide a soil temperature prediction, based on climate data input and provided depth of soil. For (2): "Number of freeze-thaw cycles", this is to be used AFTER (1) "Temperature prediction", and calcuates the number of freeze-thaw cycles . For (3): "Predict soil temperature and number of cycles", this is a stand-alone button which completes both (1) and (2) at once. Input Data Needed: (a) Weather data in 15-minute intervals: Date-time in the format of mm/dd/yy hh:mm in Column A, Air temperature in degrees C in Column B. Amout of rain in mm in Column C. Relative humidity in % in Column D. Wind speed in m/s in Column E. Solar Radiation in W/m2 in Column F. (b) Soil Depth in inch of interest in G2. The user should select the depth from the dropdown menu. Output Provided: Predicted soil temperature will be generated and in Column L to O; Number of freeze thaw cycles, starting time of freeze and thaw cycles and duration. Example data of 10 days is given in "Calculations" where the user can see the data format and output example.

Sheet Calcuations
A1: DateTime | B1: Air Temperature (degree F) | C1: Rain (inch) | D1: Relative humidity (%) | E1: Wind speed (ft/s) | F1: Solar Radiation (BTU/ft2 hr) | G1: Depth (inch) | H1: Temp in F | I1: Temperature prediction | L1: Number of cycles | M1: Freezing start time | N1: Thaw start time | O1: Duration of cycle
A2: 2018-01-01 | B2: -15.43 | C2: 0 | D2: 63.635 | E2: 4.03 | F2: -49.135 | G2: 9.5 | H2: =(I2*1.8)+32 -> 18.04988997 | I2: -7.75006113 | L2: 3 | M2: 2018-01-02 | N2: 2018-02-23T22:30:00 | O2: 53
A3: 2018-01-01T00:15:00 | B3: -15.66 | C3: 0 | D3: 63.365 | E3: 4.3895 | F3: -50.095 | H3: =(I3*1.8)+32 -> 18.25829091 | I3: -7.63428283 | M3: 2018-02-25T22:15:00 | N3: 2018-03-09T19:00:00 | O3: 12
A4: 2018-01-01T00:30:00 | B4: -15.83 | C4: 0 | D4: 63.71 | E4: 4.0835 | F4: -44.86 | H4: 18.024658 | I4: -7.764078887 | M4: 2018-03-13T22:15:00 | N4: 2018-03-16T05:30:00 | O4: 2
A5: 2018-01-01T00:45:00 | B5: -15.99 | C5: 0 | D5: 64.5 | E5: 3.042 | F5: -40.91 | H5: 17.82987454 | I5: -7.872291923
A6: 2018-01-01T01:00:00 | B6: -16.13 | C6: 0 | D6: 63.99 | E6: 3.331 | F6: -40.265 | H6: 17.80541941 | I6: -7.885878108
A7: 2018-01-01T01:15:00 | B7: -16.3 | C7: 0 | D7: 64.925 | E7: 2.5905 | F7: -40.955 | H7: 17.94261517 | I7: -7.809658238
A8: 2018-01-01T01:30:00 | B8: -16.49 | C8: 0 | D8: 65.29 | E8: 2.5825 | F8: -43.22 | H8: 18.13829562 | I8: -7.700946878
A9: 2018-01-01T01:45:00 | B9: -16.75 | C9: 0 | D9: 65.78 | E9: 2.2555 | F9: -47.485 | H9: 18.40410521 | I9: -7.553274884
A10: 2018-01-01T02:00:00 | B10: -16.99 | C10: 0 | D10: 65.66 | E10: 2.4335 | F10: -42.765 | H10: 18.03863513 | I10: -7.756313818
A11: 2018-01-01T02:15:00 | B11: -17.12 | C11: 0 | D11: 66.07 | E11: 2.019 | F11: -41.235 | H11: 17.91630018 | I11: -7.824277676
A12: 2018-01-01T02:30:00 | B12: -17.31 | C12: 0 | D12: 66.965 | E12: 1.68 | F12: -37.47 | H12: 17.6845334 | I12: -7.953037001
A13: 2018-01-01T02:45:00 | B13: -17.65 | C13: 0 | D13: 68.505 | E13: 2.7645 | F13: -38.5 | H13: 17.86834172 | I13: -7.850921265
A14: 2018-01-01T03:00:00 | B14: -17.95 | C14: 0 | D14: 68.785 | E14: 2.78 | F14: -43.44 | H14: 18.01345406 | I14: -7.770303301
A15: 2018-01-01T03:15:00 | B15: -18.21 | C15: 0 | D15: 69.245 | E15: 2.7225 | F15: -48.965 | H15: 18.16748223 | I15: -7.684732096
A16: 2018-01-01T03:30:00 | B16: -18.47 | C16: 0 | D16: 69.58 | E16: 3.0735 | F16: -50.93 | H16: 18.17392272 | I16: -7.681154042
A17: 2018-01-01T03:45:00 | B17: -18.72 | C17: 0 | D17: 70.305 | E17: 2.4165 | F17: -49.935 | H17: 17.84562523 | I17: -7.863541536
A18: 2018-01-01T04:00:00 | B18: -19 | C18: 0 | D18: 70.37 | E18: 2.2395 | F18: -48.1 | H18: 17.52581684 | I18: -8.041212864
A19: 2018-01-01T04:15:00 | B19: -19.26 | C19: 0 | D19: 70.765 | E19: 1.991 | F19: -47.895 | H19: 17.27548087 | I19: -8.180288404
A20: 2018-01-01T04:30:00 | B20: -19.54 | C20: 0 | D20: 70.835 | E20: 2.2845 | F20: -47.29 | H20: 17.07423617 | I20: -8.292091019
A21: 2018-01-01T04:45:00 | B21: -19.85 | C21: 0 | D21: 71.165 | E21: 2.1275 | F21: -47.145 | H21: 16.79826029 | I21: -8.445410951
A22: 2018-01-01T05:00:00 | B22: -20.08 | C22: 0 | D22: 72.02 | E22: 2.357 | F22: -46.11 | H22: 16.56934366 | I22: -8.572586854
A23: 2018-01-01T05:15:00 | B23: -20.31 | C23: 0 | D23: 72.145 | E23: 2.2295 | F23: -45.46 | H23: 16.30127207 | I23: -8.721515518
A24: 2018-01-01T05:30:00 | B24: -20.57 | C24: 0 | D24: 72.38 | E24: 1.8775 | F24: -44.375 | H24: 15.95323902 | I24: -8.914867211
A25: 2018-01-01T05:45:00 | B25: -20.89 | C25: 0 | D25: 73.285 | E25: 1.7225 | F25: -42.715 | H25: 15.54516892 | I25: -9.141572825
A26: 2018-01-01T06:00:00 | B26: -21.06 | C26: 0 | D26: 73.13 | E26: 1.487 | F26: -42.32 | H26: 15.31628349 | I26: -9.268731392
A27: 2018-01-01T06:15:00 | B27: -21.24 | C27: 0 | D27: 73.23 | E27: 2.05 | F27: -42.005 | H27: 15.22020943 | I27: -9.322105872
A28: 2018-01-01T06:30:00 | B28: -21.46 | C28: 0 | D28: 73.495 | E28: 2.008 | F28: -41.915 | H28: 14.98040039 | I28: -9.455333118
A29: 2018-01-01T06:45:00 | B29: -21.8 | C29: 0 | D29: 73.845 | E29: 2.2395 | F29: -42.91 | H29: 14.77896874 | I29: -9.567239587
A30: 2018-01-01T07:00:00 | B30: -22.02 | C30: 0 | D30: 74.055 | E30: 2.061 | F30: -42.575 | H30: 14.50250512 | I30: -9.720830487
A31: 2018-01-01T07:15:00 | B31: -22.43 | C31: 0 | D31: 74.73 | E31: 1.224 | F31: -40.32 | H31: 13.88352192 | I31: -10.06471005
A32: 2018-01-01T07:30:00 | B32: -22.78 | C32: 0 | D32: 75.43 | E32: 1.5805 | F32: -39.995 | H32: 13.59528715 | I32: -10.22484047
A33: 2018-01-01T07:45:00 | B33: -22.9 | C33: 0 | D33: 75.765 | E33: 2.0095 | F33: -40.08 | H33: 13.50917918 | I33: -10.27267824
A34: 2018-01-01T08:00:00 | B34: -22.98 | C34: 0 | D34: 75.17 | E34: 2.124 | F34: -40.15 | H34: 13.53687723 | I34: -10.25729043
A35: 2018-01-01T08:15:00 | B35: -23.03 | C35: 0 | D35: 75.005 | E35: 1.909 | F35: -36.77 | H35: 13.3307241 | I35: -10.37181994
A36: 2018-01-01T08:30:00 | B36: -23.04 | C36: 0 | D36: 74.74 | E36: 1.8225 | F36: -31.75 | H36: 13.17341324 | I36: -10.45921487
A37: 2018-01-01T08:45:00 | B37: -22.91 | C37: 0 | D37: 74.335 | E37: 2.11 | F37: -24.95 | H37: 13.16346384 | I37: -10.46474231
A38: 2018-01-01T09:00:00 | B38: -22.64 | C38: 0 | D38: 72.84 | E38: 2.1935 | F38: -21.725 | H38: 13.35631721 | I38: -10.35760155
A39: 2018-01-01T09:15:00 | B39: -22.47 | C39: 0 | D39: 71.975 | E39: 1.7285 | F39: -22.51 | H39: 13.37893874 | I39: -10.34503403
A40: 2018-01-01T09:30:00 | B40: -22.34 | C40: 0 | D40: 71.49 | E40: 2.1055 | F40: -20.4 | H40: 13.47422337 | I40: -10.29209813
A41: 2018-01-01T09:45:00 | B41: -22.11 | C41: 0 | D41: 70.99 | E41: 1.924 | F41: -20.915 | H41: 13.54686787 | I41: -10.25174007
A42: 2018-01-01T10:00:00 | B42: -21.74 | C42: 0 | D42: 69.3 | E42: 2.4075 | F42: -23.375 | H42: 13.87120633 | I42: -10.07155204
A43: 2018-01-01T10:15:00 | B43: -21.47 | C43: 0 | D43: 68.62 | E43: 1.891 | F43: -29.605 | H43: 13.99090408 | I43: -10.00505329
A44: 2018-01-01T10:30:00 | B44: -21.1 | C44: 0 | D44: 67.14 | E44: 1.295 | F44: -28.995 | H44: 14.05010339 | I44: -9.972164782
A45: 2018-01-01T10:45:00 | B45: -20.64 | C45: 0 | D45: 66.64 | E45: 1.1285 | F45: -44.02 | H45: 14.39056118 | I45: -9.783021564
A46: 2018-01-01T11:00:00 | B46: -20.01 | C46: 0 | D46: 64.85 | E46: 1.4225 | F46: -25.211 | H46: 14.31086341 | I46: -9.827298106
A47: 2018-01-01T11:15:00 | B47: -19.09 | C47: 0 | D47: 63.13 | E47: 0.5155 | F47: -29.065 | H47: 14.51008955 | I47: -9.716616919
A48: 2018-01-01T11:30:00 | B48: -18.18 | C48: 0 | D48: 59.16 | E48: 0.496 | F48: -38.675 | H48: 14.37569555 | I48: -9.791280252
A49: 2018-01-01T11:45:00 | B49: -17.79 | C49: 0 | D49: 58.785 | E49: 0.4915 | F49: -41.325 | H49: 14.47795297 | I49: -9.734470571
A50: 2018-01-01T12:00:00 | B50: -16.9 | C50: 0 | D50: 55.975 | E50: 0.8495 | F50: -39.52 | H50: 14.14503658 | I50: -9.919424125
A51: 2018-01-01T12:15:00 | B51: -17.63 | C51: 0 | D51: 58.59 | E51: 0.5325 | F51: -25.325 | H51: 14.44930347 | I51: -9.750386961
A52: 2018-01-01T12:30:00 | B52: -17.19 | C52: 0 | D52: 56.005 | E52: 0.832 | F52: -37.785 | H52: 14.25845699 | I52: -9.856412786
A53: 2018-01-01T12:45:00 | B53: -16.5 | C53: 0 | D53: 55.75 | E53: 0.717 | F53: -40.245 | H53: 14.38117599 | I53: -9.788235561
A54: 2018-01-01T13:00:00 | B54: -15.99 | C54: 0 | D54: 54.73 | E54: 0.708 | F54: -46.595 | H54: 14.32653711 | I54: -9.818590494
A55: 2018-01-01T13:15:00 | B55: -15.34 | C55: 0 | D55: 53.865 | E55: 1.1245 | F55: -41.62 | H55: 14.26119615 | I55: -9.85489103
A56: 2018-01-01T13:30:00 | B56: -15.37 | C56: 0 | D56: 55.16 | E56: 1.3685 | F56: -26.485 | H56: 14.61007819 | I56: -9.66106767
A57: 2018-01-01T13:45:00 | B57: -15.72 | C57: 0 | D57: 56.075 | E57: 1.466 | F57: -37.855 | H57: 14.8378318 | I57: -9.534537888
A58: 2018-01-01T14:00:00 | B58: -15.48 | C58: 0 | D58: 54.985 | E58: 1.2425 | F58: -43.74 | H58: 14.76716334 | I58: -9.573798146
A59: 2018-01-01T14:15:00 | B59: -15.21 | C59: 0 | D59: 54.18 | E59: 0.824 | F59: -44.135 | H59: 14.72148048 | I59: -9.599177509
A60: 2018-01-01T14:30:00 | B60: -15.23 | C60: 0 | D60: 53.705 | E60: 0.839 | F60: -52.525 | H60: 14.71500153 | I60: -9.60277693
A61: 2018-01-01T14:45:00 | B61: -14.68 | C61: 0 | D61: 51.76 | E61: 1.051 | F61: -49.875 | H61: 14.49489403 | I61: -9.725058874
A62: 2018-01-01T15:00:00 | B62: -14.7 | C62: 0 | D62: 52.74 | E62: 0.9245 | F62: -49.1 | H62: 14.77395856 | I62: -9.570023021
A63: 2018-01-01T15:15:00 | B63: -15.4 | C63: 0 | D63: 53.83 | E63: 0.831 | F63: -47.28 | H63: 15.15007495 | I63: -9.361069473
A64: 2018-01-01T15:30:00 | B64: -15.76 | C64: 0 | D64: 55.825 | E64: 0.8165 | F64: -52.13 | H64: 15.45452928 | I64: -9.191928176
A65: 2018-01-01T15:45:00 | B65: -15.15 | C65: 0 | D65: 53.185 | E65: 0.721 | F65: -55.73 | H65: 15.16252484 | I65: -9.354152868
A66: 2018-01-01T16:00:00 | B66: -14.84 | C66: 0 | D66: 53.245 | E66: 0.8045 | F66: -53.33 | H66: 15.28708387 | I66: -9.284953407
A67: 2018-01-01T16:15:00 | B67: -15.12 | C67: 0 | D67: 54.6 | E67: 0.8355 | F67: -52.275 | H67: =(I67*1.8)+32 -> 15.6027295 | I67: -9.10959472
A68: 2018-01-01T16:30:00 | B68: -15.64 | C68: 0 | D68: 56.255 | E68: 0.802 | F68: -51.12 | H68: 15.91584382 | I68: -8.93564232
A69: 2018-01-01T16:45:00 | B69: -16.13 | C69: 0 | D69: 58.58 | E69: 0.512 | F69: -46.78 | H69: 16.20680225 | I69: -8.773998752
A70: 2018-01-01T17:00:00 | B70: -16.47 | C70: 0 | D70: 58.725 | E70: 0.5045 | F70: -44.93 | H70: 16.37242226 | I70: -8.681987634
A71: 2018-01-01T17:15:00 | B71: -16.76 | C71: 0 | D71: 60.3 | E71: 0.409 | F71: -43.5 | H71: 16.47907258 | I71: -8.622737454
A72: 2018-01-01T17:30:00 | B72: -17.12 | C72: 0 | D72: 62.3 | E72: 0.326 | F72: -40.455 | H72: 16.5046688 | I72: -8.608517335
A73: 2018-01-01T17:45:00 | B73: -17.41 | C73: 0 | D73: 64.045 | E73: 0.4065 | F73: -40.655 | H73: 16.37918985 | I73: -8.678227863
A74: 2018-01-01T18:00:00 | B74: -17.7 | C74: 0 | D74: 64.445 | E74: 0.1985 | F74: -36.36 | H74: 16.47660125 | I74: -8.624110417
A75: 2018-01-01T18:15:00 | B75: -18.11 | C75: 0 | D75: 66.135 | E75: 0.233 | F75: -37.755 | H75: 16.2279743 | I75: -8.762236503
A76: 2018-01-01T18:30:00 | B76: -18.34 | C76: 0 | D76: 67.145 | E76: 0.095 | F76: -37.65 | H76: 16.08453599 | I76: -8.841924448
A77: 2018-01-01T18:45:00 | B77: -18.51 | C77: 0 | D77: 68.12 | E77: 0.2965 | F77: -38.45 | H77: 15.85652474 | I77: -8.968597366
A78: 2018-01-01T19:00:00 | B78: -18.74 | C78: 0 | D78: 69.27 | E78: 0.436 | F78: -40.045 | H78: 15.55506701 | I78: -9.136073881
A79: 2018-01-01T19:15:00 | B79: -18.67 | C79: 0 | D79: 69.49 | E79: 0.166 | F79: -36.56 | H79: 15.54662877 | I79: -9.140761793
A80: 2018-01-01T19:30:00 | B80: -18.7 | C80: 0 | D80: 70.21 | E80: 0.588 | F80: -35.045 | H80: 15.24764029 | I80: -9.306866507
A81: 2018-01-01T19:45:00 | B81: -19.02 | C81: 0 | D81: 72.14 | E81: 0.6165 | F81: -37.25 | H81: 14.56255852 | I81: -9.687467491
A82: 2018-01-01T20:00:00 | B82: -19.11 | C82: 0 | D82: 73.625 | E82: 0.705 | F82: -39.895 | H82: 13.97448232 | I82: -10.01417649
A83: 2018-01-01T20:15:00 | B83: -18.85 | C83: 0 | D83: 72.175 | E83: 1.1485 | F83: -38.64 | H83: 14.49011935 | I83: -9.727711471
A84: 2018-01-01T20:30:00 | B84: -18.89 | C84: 0 | D84: 71.865 | E84: 0.468 | F84: -37.38 | H84: 14.68625742 | I84: -9.618745879
A85: 2018-01-01T20:45:00 | B85: -19.27 | C85: 0 | D85: 72.96 | E85: 0.803 | F85: -37.61 | H85: 14.16315059 | I85: -9.909360783
A86: 2018-01-01T21:00:00 | B86: -19.66 | C86: 0 | D86: 74.735 | E86: 0.8035 | F86: -37.42 | H86: 13.30286043 | I86: -10.38729976
A87: 2018-01-01T21:15:00 | B87: -19.43 | C87: 0 | D87: 74.66 | E87: 0.9585 | F87: -38.79 | H87: 13.3381822 | I87: -10.36767655
A88: 2018-01-01T21:30:00 | B88: -19.21 | C88: 0 | D88: 73.455 | E88: 1.139 | F88: -40.84 | H88: 13.89771394 | I88: -10.05682559
A89: 2018-01-01T21:45:00 | B89: -19.24 | C89: 0 | D89: 73.3 | E89: 1.0745 | F89: -41.32 | H89: 13.92733553 | I89: -10.04036915
A90: 2018-01-01T22:00:00 | B90: -19.42 | C90: 0 | D90: 73.51 | E90: 0.5945 | F90: -39.595 | H90: 13.72862011 | I90: -10.15076661
A91: 2018-01-01T22:15:00 | B91: -19.51 | C91: 0 | D91: 73.785 | E91: 0.2055 | F91: -38.57 | H91: 13.50169409 | I91: -10.27683662
A92: 2018-01-01T22:30:00 | B92: -19.69 | C92: 0 | D92: 73.58 | E92: 0.5545 | F92: -36.205 | H92: 13.27028462 | I92: -10.40539743
A93: 2018-01-01T22:45:00 | B93: -20.07 | C93: 0 | D93: 75.71 | E93: 1.318 | F93: -35.265 | H93: 12.37028462 | I93: -10.90539743
A94: 2018-01-01T23:00:00 | B94: -19.91 | C94: 0 | D94: 75.88 | E94: 1.128 | F94: -39.705 | H94: 12.10274255 | I94: -11.05403192
A95: 2018-01-01T23:15:00 | B95: -19.78 | C95: 0 | D95: 75.865 | E95: 0.9875 | F95: -39.625 | H95: 11.97724106 | I95: -11.12375497
A96: 2018-01-01T23:30:00 | B96: -19.9 | C96: 0 | D96: 76.235 | E96: 0.843 | F96: -39.51 | H96: 11.60722552 | I96: -11.32931915
A97: 2018-01-01T23:45:00 | B97: -19.97 | C97: 0 | D97: 76.645 | E97: 1.0135 | F97: -39.045 | H97: 11.15045523 | I97: -11.58308043
A98: 2018-01-02 | B98: -20.03 | C98: 0 | D98: 77.245 | E98: 1.495 | F98: -40.545 | H98: 12.05045523 | I98: -11.08308043
A99: 2018-01-02T00:15:00 | B99: -20.09 | C99: 0 | D99: 77.62 | E99: 1.2105 | F99: -38.8 | H99: 14.35645757 | I99: -9.801968015
A100: 2018-01-02T00:30:00 | B100: -20.21 | C100: 0 | D100: 77.535 | E100: 1.1805 | F100: -39.9 | H100: 14.49864992 | I100: -9.722972266
A101: 2018-01-02T00:45:00 | B101: -20.39 | C101: 0 | D101: 77.745 | E101: 1.458 | F101: -38.34 | H101: 14.20486272 | I101: -9.886187375
A102: 2018-01-02T01:00:00 | B102: -20.6 | C102: 0 | D102: 78.435 | E102: 2.013 | F102: -38.08 | H102: 14.18434969 | I102: -9.897583505
A103: 2018-01-02T01:15:00 | B103: -20.56 | C103: 0 | D103: 78.165 | E103: 1.5385 | F103: -36.85 | H103: 14.04060009 | I103: -9.977444392
A104: 2018-01-02T01:30:00 | B104: -20.38 | C104: 0 | D104: 77.505 | E104: 1.94 | F104: -38.52 | H104: 14.50608775 | I104: -9.718840139
A105: 2018-01-02T01:45:00 | B105: -20.17 | C105: 0 | D105: 76.805 | E105: 2.3685 | F105: -37.295 | H105: 14.58082753 | I105: -9.677318037
A106: 2018-01-02T02:00:00 | B106: -20.15 | C106: 0 | D106: 77.385 | E106: 2.7705 | F106: -36.77 | H106: 14.74581095 | I106: -9.585660585
A107: 2018-01-02T02:15:00 | B107: -20.05 | C107: 0 | D107: 77.795 | E107: 3.295 | F107: -37.66 | H107: 15.15579985 | I107: -9.357888974
A108: 2018-01-02T02:30:00 | B108: -19.92 | C108: 0 | D108: 77.555 | E108: 2.8585 | F108: -36.815 | H108: 15.11183808 | I108: -9.382312178
A109: 2018-01-02T02:45:00 | B109: -19.82 | C109: 0 | D109: 76.8 | E109: 1.7985 | F109: -35.61 | H109: 14.82764129 | I109: -9.540199282
A110: 2018-01-02T03:00:00 | B110: -19.64 | C110: 0 | D110: 76.56 | E110: 1.3595 | F110: -18.355 | H110: 13.92764129 | I110: -10.04019928
A111: 2018-01-02T03:15:00 | B111: -19.21 | C111: 0 | D111: 76.755 | E111: 1.449 | F111: -5.499 | H111: 12.36468354 | I111: -10.90850914
A112: 2018-01-02T03:30:00 | B112: -18.9 | C112: 0 | D112: 76.635 | E112: 1.5745 | F112: -18.355 | H112: 13.26468354 | I112: -10.40850914
A113: 2018-01-02T03:45:00 | B113: -18.82 | C113: 0 | D113: 77.17 | E113: 1.8515 | F113: -32.675 | H113: 15.02994211 | I113: -9.427809937
A114: 2018-01-02T04:00:00 | B114: -18.65 | C114: 0 | D114: 77.48 | E114: 1.839 | F114: -7.246 | H114: 14.81074471 | I114: -9.549586273
A115: 2018-01-02T04:15:00 | B115: -18.27 | C115: 0 | D115: 77.205 | E115: 2.055 | F115: -10.99 | H115: 14.6020778 | I115: -9.665512332
A116: 2018-01-02T04:30:00 | B116: -18.02 | C116: 0 | D116: 77.615 | E116: 1.751 | F116: -3.5325 | H116: 14.43389512 | I116: -9.758947158
A117: 2018-01-02T04:45:00 | B117: -17.55 | C117: 0 | D117: 77.795 | E117: 2.0245 | F117: 0.2045 | H117: 14.83972013 | I117: -9.533488818
A118: 2018-01-02T05:00:00 | B118: -16.99 | C118: 0 | D118: 77.965 | E118: 2.056 | F118: -3.9315 | H118: 15.73972013 | I118: -9.033488818
A119: 2018-01-02T05:15:00 | B119: -16.48 | C119: 0 | D119: 77.145 | E119: 2.053 | F119: -30.875 | H119: 16.6763262 | I119: -8.513152112
A120: 2018-01-02T05:30:00 | B120: -16.16 | C120: 0 | D120: 77.205 | E120: 1.876 | F120: -34.99 | H120: 17.97362555 | I120: -7.792430249
A121: 2018-01-02T05:45:00 | B121: -15.82 | C121: 0 | D121: 77.51 | E121: 1.345 | F121: -17.72 | H121: 17.44778962 | I121: -8.084561322
A122: 2018-01-02T06:00:00 | B122: -15.29 | C122: 0 | D122: 77.48 | E122: 2.231 | F122: -16.11 | H122: 17.79707671 | I122: -7.890512936
A123: 2018-01-02T06:15:00 | B123: -14.98 | C123: 0 | D123: 77.69 | E123: 2.253 | F123: -36.82 | H123: 18.67247576 | I123: -7.404180136
A124: 2018-01-02T06:30:00 | B124: -14.76 | C124: 0 | D124: 77.465 | E124: 2.297 | F124: -20.57 | H124: 18.2627448 | I124: -7.631808445
A125: 2018-01-02T06:45:00 | B125: -14.14 | C125: 0 | D125: 75.35 | E125: 2.6325 | F125: -30.53 | H125: 18.59118778 | I125: -7.449340122
A126: 2018-01-02T07:00:00 | B126: -13.66 | C126: 0 | D126: 75.385 | E126: 3.0515 | F126: -36.185 | H126: 18.89859856 | I126: -7.278556358
A127: 2018-01-02T07:15:00 | B127: -13.44 | C127: 0 | D127: 74.24 | E127: 3.238 | F127: -41.59 | H127: 18.89516829 | I127: -7.280462062
A128: 2018-01-02T07:30:00 | B128: -13.18 | C128: 0 | D128: 74.015 | E128: 2.4605 | F128: -30.385 | H128: 18.73647555 | I128: -7.368624694
A129: 2018-01-02T07:45:00 | B129: -13.01 | C129: 0 | D129: 74.195 | E129: 2.281 | F129: -16.205 | H129: 18.54144199 | I129: -7.476976674
A130: 2018-01-02T08:00:00 | B130: -12.8 | C130: 0 | D130: 73.455 | E130: 3.586 | F130: -12.085 | H130: 18.41677234 | I130: -7.546237591
A131: 2018-01-02T08:15:00 | B131: -12.47 | C131: 0 | D131: 72.105 | E131: 3.8565 | F131: -16.075 | H131: =(I131*1.8)+32 -> 18.37004728 | I131: -7.572195955
A132: 2018-01-02T08:30:00 | B132: -12.13 | C132: 0 | D132: 71.07 | E132: 3.8225 | F132: -17.3655 | H132: 18.32680645 | I132: -7.596218639
A133: 2018-01-02T08:45:00 | B133: -11.8 | C133: 0 | D133: 69.94 | E133: 3.582 | F133: -17.357 | H133: 18.24783435 | I133: -7.64009203
A134: 2018-01-02T09:00:00 | B134: -11.53 | C134: 0 | D134: 69.115 | E134: 4.1135 | F134: -12.963 | H134: 18.09727861 | I134: -7.723734104
A135: 2018-01-02T09:15:00 | B135: -11.33 | C135: 0 | D135: 69.28 | E135: 4.0395 | F135: -11.977 | H135: 18.19701495 | I135: -7.668325029
A136: 2018-01-02T09:30:00 | B136: -11.13 | C136: 0 | D136: 69.255 | E136: 4.277 | F136: -8.9625 | H136: 18.22349866 | I136: -7.653611856
A137: 2018-01-02T09:45:00 | B137: -10.9 | C137: 0 | D137: 69.25 | E137: 4.3185 | F137: -13.352 | H137: 18.32454002 | I137: -7.597477766
A138: 2018-01-02T10:00:00 | B138: -10.6 | C138: 0 | D138: 69.605 | E138: 3.721 | F138: -1.395 | H138: 18.46791377 | I138: -7.517825685
A139: 2018-01-02T10:15:00 | B139: -10.49 | C139: 0 | D139: 69.945 | E139: 4.219 | F139: -6.085 | H139: 18.55110127 | I139: -7.471610406
A140: 2018-01-02T10:30:00 | B140: -10.33 | C140: 0 | D140: 69.745 | E140: 3.8645 | F140: -2.58 | H140: 18.6098399 | I140: -7.438977832
A141: 2018-01-02T10:45:00 | B141: -10.06 | C141: 0 | D141: 69.105 | E141: 4.1805 | F141: -0.935 | H141: 18.57439594 | I141: -7.458668921
A142: 2018-01-02T11:00:00 | B142: -9.9 | C142: 0 | D142: 69.205 | E142: 4.423 | F142: -8.45 | H142: 18.60698653 | I142: -7.440563041
A143: 2018-01-02T11:15:00 | B143: -9.72 | C143: 0 | D143: 69.645 | E143: 3.5845 | F143: -0.04 | H143: 18.84499754 | I143: -7.308334699
A144: 2018-01-02T11:30:00 | B144: -9.56 | C144: 0 | D144: 69.52 | E144: 3.9205 | F144: -1.53 | H144: 18.85417844 | I144: -7.303234202
A145: 2018-01-02T11:45:00 | B145: -9.31 | C145: 0 | D145: 68.96 | E145: 4.185 | F145: -2.72 | H145: 18.82415153 | I145: -7.319915815
A146: 2018-01-02T12:00:00 | B146: -9.06 | C146: 0 | D146: 69.4 | E146: 2.027 | F146: -3.77 | H146: 19.14536633 | I146: -7.141463152
A147: 2018-01-02T12:15:00 | B147: -8.88 | C147: 0 | D147: 69.205 | E147: 3.7925 | F147: 2.605 | H147: 19.07374177 | I147: -7.181254574
A148: 2018-01-02T12:30:00 | B148: -8.71 | C148: 0 | D148: 68.965 | E148: 3.2945 | F148: 3.59 | H148: 19.19256266 | I148: -7.115242967
A149: 2018-01-02T12:45:00 | B149: -8.46 | C149: 0 | D149: 69.065 | E149: 3.1585 | F149: 2.275 | H149: 19.25756338 | I149: -7.079131456
A150: 2018-01-02T13:00:00 | B150: -8.41 | C150: 0 | D150: 69.35 | E150: 2.979 | F150: -2.135 | H150: 19.30052362 | I150: -7.055264654
A151: 2018-01-02T13:15:00 | B151: -8.3 | C151: 0 | D151: 70.285 | E151: 2.1325 | F151: 1.89 | H151: 19.55308281 | I151: -6.914953993
A152: 2018-01-02T13:30:00 | B152: -8.14 | C152: 0 | D152: 71.72 | E152: 2.655 | F152: -3.215 | H152: 19.4472123 | I152: -6.973770944
A153: 2018-01-02T13:45:00 | B153: -8.02 | C153: 0 | D153: 70.61 | E153: 2.718 | F153: 2.165 | H153: 19.61506986 | I153: -6.880516746
A154: 2018-01-02T14:00:00 | B154: -7.39 | C154: 0 | D154: 67 | E154: 2.7015 | F154: -10.84 | H154: 19.25036598 | I154: -7.08313001
A155: 2018-01-02T14:15:00 | B155: -7.01 | C155: 0 | D155: 65.855 | E155: 2.815 | F155: -51.625 | H155: 18.35036598 | I155: -7.58313001
A156: 2018-01-02T14:30:00 | B156: -6.97 | C156: 0 | D156: 65.13 | E156: 2.2035 | F156: -51.77 | H156: 18.24243291 | I156: -7.643092829
A157: 2018-01-02T14:45:00 | B157: -6.73 | C157: 0 | D157: 64.885 | E157: 2.28 | F157: -47.975 | H157: 18.32334658 | I157: -7.598140788
A158: 2018-01-02T15:00:00 | B158: -6.76 | C158: 0 | D158: 65.89 | E158: 2.6205 | F158: -32.88 | H158: 18.85379223 | I158: -7.30344876
A159: 2018-01-02T15:15:00 | B159: -7.04 | C159: 0 | D159: 68.48 | E159: 1.7975 | F159: -13.925 | H159: 19.6621624 | I159: -6.854354221
A160: 2018-01-02T15:30:00 | B160: -7.11 | C160: 0 | D160: 69.55 | E160: 2.0775 | F160: -8.771 | H160: 19.86318166 | I160: -6.742676853
A161: 2018-01-02T15:45:00 | B161: -7.14 | C161: 0 | D161: 70.495 | E161: 2.373 | F161: -10.165 | H161: 19.84276574 | I161: -6.754019031
A162: 2018-01-02T16:00:00 | B162: -7.13 | C162: 0 | D162: 71.33 | E162: 1.3885 | F162: -8.7825 | H162: 19.9898819 | I162: -6.672287836
A163: 2018-01-02T16:15:00 | B163: -6.65 | C163: 0 | D163: 69.575 | E163: 1.652 | F163: -6.305 | H163: 20.10853943 | I163: -6.606366981
A164: 2018-01-02T16:30:00 | B164: -6.69 | C164: 0 | D164: 70.45 | E164: 1.93 | F164: -16.82 | H164: 19.78472175 | I164: -6.786265695
A165: 2018-01-02T16:45:00 | B165: -6.91 | C165: 0 | D165: 72.1 | E165: 1.928 | F165: -16.97 | H165: 19.79978004 | I165: -6.777899978
A166: 2018-01-02T17:00:00 | B166: -6.98 | C166: 0 | D166: 72.785 | E166: 2.4665 | F166: -7.778 | H166: 20.09146347 | I166: -6.615853629
A167: 2018-01-02T17:15:00 | B167: -7.02 | C167: 0 | D167: 73.91 | E167: 1.504 | F167: -6.7085 | H167: 20.11697095 | I167: -6.601682808
A168: 2018-01-02T17:30:00 | B168: -7.01 | C168: 0 | D168: 74.545 | E168: 1.4775 | F168: -5.333 | H168: 20.12993568 | I168: -6.594480176
A169: 2018-01-02T17:45:00 | B169: -7 | C169: 0 | D169: 75.265 | E169: 1.755 | F169: -5.048 | H169: 20.07302271 | I169: -6.626098495
A170: 2018-01-02T18:00:00 | B170: -7 | C170: 0 | D170: 75.995 | E170: 1.56 | F170: -4.8185 | H170: 20.01724142 | I170: -6.6570881
A171: 2018-01-02T18:15:00 | B171: -6.96 | C171: 0 | D171: 75.995 | E171: 1.9705 | F171: -4.7045 | H171: 20.06459987 | I171: -6.630777851
A172: 2018-01-02T18:30:00 | B172: -6.87 | C172: 0 | D172: 76.185 | E172: 1.607 | F172: -4.5335 | H172: 20.06545809 | I172: -6.630301062
A173: 2018-01-02T18:45:00 | B173: -6.76 | C173: 0 | D173: 76.385 | E173: 1.381 | F173: -4.5575 | H173: 20.04165666 | I173: -6.643524076
A174: 2018-01-02T19:00:00 | B174: -6.62 | C174: 0 | D174: 76.54 | E174: 1.8435 | F174: -4.582 | H174: 20.01857132 | I174: -6.656349266
A175: 2018-01-02T19:15:00 | B175: -6.48 | C175: 0 | D175: 76.73 | E175: 1.551 | F175: -5.095 | H175: 19.96104005 | I175: -6.688311082
A176: 2018-01-02T19:30:00 | B176: -6.34 | C176: 0 | D176: 77.115 | E176: 1.911 | F176: -5.1195 | H176: 19.89487486 | I176: -6.725069523
A177: 2018-01-02T19:45:00 | B177: -6.14 | C177: 0 | D177: 77.595 | E177: 2.0035 | F177: -5.0215 | H177: 19.78391116 | I177: -6.786716023
A178: 2018-01-02T20:00:00 | B178: -5.98 | C178: 0 | D178: 77.57 | E178: 2.0635 | F178: -5.0215 | H178: 19.78364602 | I178: -6.786863323
A179: 2018-01-02T20:15:00 | B179: -5.84 | C179: 0 | D179: 77.825 | E179: 2.1235 | F179: -5.217 | H179: 19.72831449 | I179: -6.817603062
A180: 2018-01-02T20:30:00 | B180: -5.73 | C180: 0 | D180: 78.185 | E180: 1.4585 | F180: -4.842 | H180: 19.57881399 | I180: -6.900658897
A181: 2018-01-02T20:45:00 | B181: -5.62 | C181: 0 | D181: 78.42 | E181: 2.169 | F181: -4.825 | H181: 19.61830864 | I181: -6.878717421
A182: 2018-01-02T21:00:00 | B182: -5.48 | C182: 0 | D182: 78.59 | E182: 1.753 | F182: -5.013 | H182: 19.4985848 | I182: -6.945230664
A183: 2018-01-02T21:15:00 | B183: -5.35 | C183: 0 | D183: 78.88 | E183: 1.417 | F183: -4.7595 | H183: 19.36145343 | I183: -7.021414758
A184: 2018-01-02T21:30:00 | B184: -5.26 | C184: 0 | D184: 78.91 | E184: 1.5135 | F184: -5.0205 | H184: 19.34572374 | I184: -7.03015348
A185: 2018-01-02T21:45:00 | B185: -5.24 | C185: 0 | D185: 79.28 | E185: 1.866 | F185: -4.947 | H185: 19.33614618 | I185: -7.035474345
A186: 2018-01-02T22:00:00 | B186: -5.19 | C186: 0 | D186: 79.89 | E186: 1.5345 | F186: -4.702 | H186: 19.12718149 | I186: -7.151565841
A187: 2018-01-02T22:15:00 | B187: -5.17 | C187: 0 | D187: 80.74 | E187: 1.642 | F187: -5.028 | H187: 18.96543784 | I187: -7.241423421
A188: 2018-01-02T22:30:00 | B188: -5.13 | C188: 0 | D188: 80.83 | E188: 1.689 | F188: -5.785 | H188: 18.92105231 | I188: -7.266082051
A189: 2018-01-02T22:45:00 | B189: -5.04 | C189: 0 | D189: 81.1 | E189: 2.0015 | F189: -5.134 | H189: 18.91509851 | I189: -7.269389718
A190: 2018-01-02T23:00:00 | B190: -4.96 | C190: 0 | D190: 81.35 | E190: 2.009 | F190: -6.0625 | H190: 18.82880841 | I190: -7.317328659
A191: 2018-01-02T23:15:00 | B191: -4.93 | C191: 0 | D191: 81.65 | E191: 2.505 | F191: -7.318 | H191: 18.89448018 | I191: -7.280844346
A192: 2018-01-02T23:30:00 | B192: -4.84 | C192: 0 | D192: 81.75 | E192: 2.0425 | F192: -7.571 | H192: 18.66528521 | I192: -7.408174884
A193: 2018-01-02T23:45:00 | B193: -4.78 | C193: 0 | D193: 81.75 | E193: 1.9865 | F193: -6.1595 | H193: 18.54932739 | I193: -7.472595897
A194: 2018-01-03 | B194: -4.78 | C194: 0 | D194: 81.65 | E194: 2.3115 | F194: -32.665 | H194: 19.44932739 | I194: -6.972595897
A195: 2018-01-03T00:15:00 | B195: -5.1 | C195: 0 | D195: 81.95 | E195: 2.1265 | F195: -51.675 | H195: =(I195*1.8)+32 -> 24.73972849 | I195: -4.033484171
A196: 2018-01-03T00:30:00 | B196: -5.48 | C196: 0 | D196: 82.85 | E196: 1.9735 | F196: -46.895 | H196: 24.49151031 | I196: -4.171383163
A197: 2018-01-03T00:45:00 | B197: -5.83 | C197: 0 | D197: 83.75 | E197: 1.875 | F197: -45.295 | H197: 24.18742757 | I197: -4.340318016
A198: 2018-01-03T01:00:00 | B198: -6.22 | C198: 0 | D198: 84.5 | E198: 1.821 | F198: -43.98 | H198: 23.87441695 | I198: -4.514212807
A199: 2018-01-03T01:15:00 | B199: -6.66 | C199: 0 | D199: 85.15 | E199: 1.1395 | F199: -42.46 | H199: 23.60626104 | I199: -4.663188312
A200: 2018-01-03T01:30:00 | B200: -7.13 | C200: 0 | D200: 85.85 | E200: 1.684 | F200: -41.755 | H200: 23.15542113 | I200: -4.913654928
... 8441 more rows

Sheet Sheet7 (hidden)
A1: 2018-01-11 | B1: -7.17 | C1: 0 | D1: 74.005 | E1: 1.7255 | F1: -35.885
A2: 2018-01-11T00:15:00 | B2: -7.17 | C2: 0 | D2: 74.395 | E2: 1.639 | F2: -31.095
A3: 2018-01-11T00:30:00 | B3: -7.19 | C3: 0 | D3: 74.72 | E3: 1.408 | F3: -36.545
A4: 2018-01-11T00:45:00 | B4: -7.25 | C4: 0 | D4: 75.265 | E4: 1.603 | F4: -34.26
A5: 2018-01-11T01:00:00 | B5: -7.24 | C5: 0 | D5: 75.565 | E5: 1.4325 | F5: -35.57
A6: 2018-01-11T01:15:00 | B6: -7.34 | C6: 0 | D6: 76.405 | E6: 1.893 | F6: -40.425
A7: 2018-01-11T01:30:00 | B7: -7.33 | C7: 0 | D7: 76.54 | E7: 2.2105 | F7: -40.53
A8: 2018-01-11T01:45:00 | B8: -7.34 | C8: 0 | D8: 77.205 | E8: 2.4705 | F8: -44.525
A9: 2018-01-11T02:00:00 | B9: -7.37 | C9: 0 | D9: 77.345 | E9: 1.355 | F9: -45.175
A10: 2018-01-11T02:15:00 | B10: -7.43 | C10: 0 | D10: 77.925 | E10: 1.555 | F10: -44.345
A11: 2018-01-11T02:30:00 | B11: -7.44 | C11: 0 | D11: 78.01 | E11: 1.564 | F11: -44.525
A12: 2018-01-11T02:45:00 | B12: -7.51 | C12: 0 | D12: 78.755 | E12: 1.7035 | F12: -43.895
A13: 2018-01-11T03:00:00 | B13: -7.54 | C13: 0 | D13: 79.01 | E13: 2.182 | F13: -45.015
A14: 2018-01-11T03:15:00 | B14: -7.61 | C14: 0 | D14: 79.435 | E14: 1.6315 | F14: -45.415
A15: 2018-01-11T03:30:00 | B15: -7.67 | C15: 0 | D15: 79.755 | E15: 2.0515 | F15: -45.27
A16: 2018-01-11T03:45:00 | B16: -7.73 | C16: 0 | D16: 80.41 | E16: 2.197 | F16: -46.12
A17: 2018-01-11T04:00:00 | B17: -7.77 | C17: 0 | D17: 80.8 | E17: 1.9125 | F17: -45.045
A18: 2018-01-11T04:15:00 | B18: -7.88 | C18: 0 | D18: 81.15 | E18: 1.835 | F18: -45.615
A19: 2018-01-11T04:30:00 | B19: -7.96 | C19: 0 | D19: 81.65 | E19: 2.185 | F19: -46.105
A20: 2018-01-11T04:45:00 | B20: -7.97 | C20: 0 | D20: 81.85 | E20: 1.8245 | F20: -45.27
A21: 2018-01-11T05:00:00 | B21: -7.97 | C21: 0 | D21: 82.15 | E21: 1.6925 | F21: -45.62
A22: 2018-01-11T05:15:00 | B22: -8 | C22: 0 | D22: 82.4 | E22: 1.356 | F22: -43.865
A23: 2018-01-11T05:30:00 | B23: -8.05 | C23: 0 | D23: 82.55 | E23: 1.431 | F23: -45.2
A24: 2018-01-11T05:45:00 | B24: -8.03 | C24: 0 | D24: 82.75 | E24: 1.4815 | F24: -44.515
A25: 2018-01-11T06:00:00 | B25: -8.1 | C25: 0 | D25: 82.95 | E25: 1.2895 | F25: -43.35
A26: 2018-01-11T06:15:00 | B26: -8.13 | C26: 0 | D26: 83.35 | E26: 1.936 | F26: -43.635
A27: 2018-01-11T06:30:00 | B27: -8.13 | C27: 0 | D27: 83.45 | E27: 1.6505 | F27: -43.355
A28: 2018-01-11T06:45:00 | B28: -8.14 | C28: 0 | D28: 83.65 | E28: 1.625 | F28: -43.05
A29: 2018-01-11T07:00:00 | B29: -8.17 | C29: 0 | D29: 83.95 | E29: 2.125 | F29: -43.525
A30: 2018-01-11T07:15:00 | B30: -8.23 | C30: 0 | D30: 84 | E30: 1.606 | F30: -43.175
A31: 2018-01-11T07:30:00 | B31: -8.28 | C31: 0 | D31: 84.35 | E31: 1.3485 | F31: -43.69
A32: 2018-01-11T07:45:00 | B32: -8.29 | C32: 0 | D32: 84.4 | E32: 1.037 | F32: -43.1
A33: 2018-01-11T08:00:00 | B33: -8.36 | C33: 0 | D33: 84.55 | E33: 1.3335 | F33: -40.475
A34: 2018-01-11T08:15:00 | B34: -8.49 | C34: 0 | D34: 84.25 | E34: 0.9785 | F34: -36.54
A35: 2018-01-11T08:30:00 | B35: -8.63 | C35: 0 | D35: 85.15 | E35: 1.355 | F35: -27.415
A36: 2018-01-11T08:45:00 | B36: -8.14 | C36: 0 | D36: 84.5 | E36: 1.2565 | F36: -18.35
A37: 2018-01-11T09:00:00 | B37: -7.55 | C37: 0 | D37: 83.3 | E37: 1.3515 | F37: -7.143
A38: 2018-01-11T09:15:00 | B38: -6.84 | C38: 0 | D38: 81.21 | E38: 2.2075 | F38: 2.56
A39: 2018-01-11T09:30:00 | B39: -6.14 | C39: 0 | D39: 78.715 | E39: 1.8155 | F39: 13.5475
A40: 2018-01-11T09:45:00 | B40: -5.56 | C40: 0 | D40: 76.21 | E40: 2.654 | F40: 22.773
A41: 2018-01-11T10:00:00 | B41: -5.19 | C41: 0 | D41: 75.085 | E41: 1.5975 | F41: 36.15
A42: 2018-01-11T10:15:00 | B42: -4.68 | C42: 0 | D42: 73.865 | E42: 1.856 | F42: 43.715
A43: 2018-01-11T10:30:00 | B43: -4.3 | C43: 0 | D43: 72.345 | E43: 2.378 | F43: 54.01
A44: 2018-01-11T10:45:00 | B44: -3.85 | C44: 0 | D44: 70.54 | E44: 2.3085 | F44: 44.065
A45: 2018-01-11T11:00:00 | B45: -3.35 | C45: 0 | D45: 69.01 | E45: 2.4145 | F45: 76.63
A46: 2018-01-11T11:15:00 | B46: -3.05 | C46: 0 | D46: 68.475 | E46: 1.5635 | F46: 85.745
A47: 2018-01-11T11:30:00 | B47: -2.65 | C47: 0 | D47: 65.77 | E47: 1.5495 | F47: 87.41
A48: 2018-01-11T11:45:00 | B48: -2.26 | C48: 0 | D48: 65.21 | E48: 1.396 | F48: 86.22
A49: 2018-01-11T12:00:00 | B49: -2.14 | C49: 0 | D49: 64.46 | E49: 1.9145 | F49: 88.665
A50: 2018-01-11T12:15:00 | B50: -1.92 | C50: 0 | D50: 64.9 | E50: 1.3775 | F50: 94.025
A51: 2018-01-11T12:30:00 | B51: -1.39 | C51: 0 | D51: 62.5 | E51: 1.714 | F51: 98.95
A52: 2018-01-11T12:45:00 | B52: -1.13 | C52: 0 | D52: 61.555 | E52: 1.358 | F52: 99.475
A53: 2018-01-11T13:00:00 | B53: -0.82 | C53: 0 | D53: 60.525 | E53: 1.496 | F53: 95.805
A54: 2018-01-11T13:15:00 | B54: -0.65 | C54: 0 | D54: 61.29 | E54: 0.803 | F54: 96.9
A55: 2018-01-11T13:30:00 | B55: -0.38 | C55: 0 | D55: 59.895 | E55: 1.2565 | F55: 88.8
A56: 2018-01-11T13:45:00 | B56: -0.04 | C56: 0 | D56: 59.22 | E56: 1.425 | F56: 83.29
A57: 2018-01-11T14:00:00 | B57: 0.13 | C57: 0 | D57: 59.03 | E57: 1.4895 | F57: 74.525
A58: 2018-01-11T14:15:00 | B58: 0.05 | C58: 0 | D58: 58.55 | E58: 0.748 | F58: 57.55
A59: 2018-01-11T14:30:00 | B59: -0.08 | C59: 0 | D59: 60.32 | E59: 1.4055 | F59: 51.515
A60: 2018-01-11T14:45:00 | B60: -0.16 | C60: 0 | D60: 58.94 | E60: 1.7445 | F60: 34.51
A61: 2018-01-11T15:00:00 | B61: -0.31 | C61: 0 | D61: 59.865 | E61: 1.2595 | F61: 29.985
A62: 2018-01-11T15:15:00 | B62: -0.5 | C62: 0 | D62: 61.385 | E62: 1.4935 | F62: 9.1175
A63: 2018-01-11T15:30:00 | B63: -0.67 | C63: 0 | D63: 62.435 | E63: 1.281 | F63: 1.995
A64: 2018-01-11T15:45:00 | B64: -0.87 | C64: 0 | D64: 62.735 | E64: 1.3655 | F64: -11.775
A65: 2018-01-11T16:00:00 | B65: -1.31 | C65: 0 | D65: 64.885 | E65: 0.95 | F65: -34.05
A66: 2018-01-11T16:15:00 | B66: -1.89 | C66: 0 | D66: 67.915 | E66: 0.8935 | F66: -36.8
A67: 2018-01-11T16:30:00 | B67: -2.39 | C67: 0 | D67: 69.8 | E67: 0.3775 | F67: -39.86
A68: 2018-01-11T16:45:00 | B68: -2.83 | C68: 0 | D68: 71.56 | E68: 0.174 | F68: -43.385
A69: 2018-01-11T17:00:00 | B69: -3.42 | C69: 0 | D69: 73 | E69: 0.355 | F69: -46.405
A70: 2018-01-11T17:15:00 | B70: -4.04 | C70: 0 | D70: 74.47 | E70: 0.259 | F70: -47.5
A71: 2018-01-11T17:30:00 | B71: -4.47 | C71: 0 | D71: 75.595 | E71: 0.116 | F71: -44.955
A72: 2018-01-11T17:45:00 | B72: -4.72 | C72: 0 | D72: 76.725 | E72: 0.4125 | F72: -43.55
A73: 2018-01-11T18:00:00 | B73: -4.83 | C73: 0 | D73: 76.99 | E73: 0.521 | F73: -45.255
A74: 2018-01-11T18:15:00 | B74: -5.01 | C74: 0 | D74: 78.37 | E74: 0.634 | F74: -45.26
A75: 2018-01-11T18:30:00 | B75: -5.01 | C75: 0 | D75: 78.43 | E75: 0.5605 | F75: -44.54
A76: 2018-01-11T18:45:00 | B76: -5.18 | C76: 0 | D76: 78.415 | E76: 0.099 | F76: -42.56
A77: 2018-01-11T19:00:00 | B77: -5.4 | C77: 0 | D77: 78.855 | E77: 0.216 | F77: -40.11
A78: 2018-01-11T19:15:00 | B78: -5.7 | C78: 0 | D78: 80.02 | E78: 0.4095 | F78: -41.525
A79: 2018-01-11T19:30:00 | B79: -5.66 | C79: 0 | D79: 80.715 | E79: 0.4265 | F79: -41.985
A80: 2018-01-11T19:45:00 | B80: -5.76 | C80: 0 | D80: 80.545 | E80: 0.458 | F80: -40.885
A81: 2018-01-11T20:00:00 | B81: -6.01 | C81: 0 | D81: 81.4 | E81: 0.504 | F81: -41.68
A82: 2018-01-11T20:15:00 | B82: -6 | C82: 0 | D82: 81.4 | E82: 0.5305 | F82: -42.425
A83: 2018-01-11T20:30:00 | B83: -6.36 | C83: 0 | D83: 82.15 | E83: 0.535 | F83: -42.025
A84: 2018-01-11T20:45:00 | B84: -6.4 | C84: 0 | D84: 82.65 | E84: 0.7965 | F84: -42.175
A85: 2018-01-11T21:00:00 | B85: -6.33 | C85: 0 | D85: 82.3 | E85: 0.678 | F85: -41.855
A86: 2018-01-11T21:15:00 | B86: -6.4 | C86: 0 | D86: 82.6 | E86: 0.7495 | F86: -41.585
A87: 2018-01-11T21:30:00 | B87: -6.4 | C87: 0 | D87: 82.6 | E87: 0.6755 | F87: -41.04
A88: 2018-01-11T21:45:00 | B88: -6.49 | C88: 0 | D88: 82 | E88: 0.7595 | F88: -40.655
A89: 2018-01-11T22:00:00 | B89: -6.88 | C89: 0 | D89: 82.9 | E89: 0.468 | F89: -39.61
A90: 2018-01-11T22:15:00 | B90: -7.1 | C90: 0 | D90: 84.05 | E90: 0.8345 | F90: -40.785
A91: 2018-01-11T22:30:00 | B91: -6.94 | C91: 0 | D91: 83.95 | E91: 0.695 | F91: -41.245
A92: 2018-01-11T22:45:00 | B92: -6.78 | C92: 0 | D92: 82.95 | E92: 0.9415 | F92: -41.27
A93: 2018-01-11T23:00:00 | B93: -6.75 | C93: 0 | D93: 82.95 | E93: 0.8775 | F93: -42.5
A94: 2018-01-11T23:15:00 | B94: -6.79 | C94: 0 | D94: 82.7 | E94: 0.6775 | F94: -41.095
A95: 2018-01-11T23:30:00 | B95: -7.02 | C95: 0 | D95: 83.3 | E95: 0.512 | F95: -41.31
A96: 2018-01-11T23:45:00 | B96: -7.2 | C96: 0 | D96: 83.3 | E96: 0.3805 | F96: -39.215
A97: 2018-01-12 | B97: -7.33 | C97: 0 | D97: 83.15 | E97: 0.5565 | F97: -38.865
A98: 2018-01-12T00:15:00 | B98: -7.59 | C98: 0 | D98: 84.15 | E98: 0.5145 | F98: -38.03
A99: 2018-01-12T00:30:00 | B99: -7.69 | C99: 0 | D99: 84.15 | E99: 0.656 | F99: -38.485
A100: 2018-01-12T00:45:00 | B100: -7.85 | C100: 0 | D100: 84.35 | E100: 0.401 | F100: -37.53
A101: 2018-01-12T01:00:00 | B101: -7.88 | C101: 0 | D101: 85.05 | E101: 0.5085 | F101: -35.95
A102: 2018-01-12T01:15:00 | B102: -7.54 | C102: 0 | D102: 85 | E102: 0.716 | F102: -34.53
A103: 2018-01-12T01:30:00 | B103: -7.42 | C103: 0 | D103: 84.75 | E103: 0.6525 | F103: -35.305
A104: 2018-01-12T01:45:00 | B104: -7.64 | C104: 0 | D104: 84.95 | E104: 0.994 | F104: -35.435
A105: 2018-01-12T02:00:00 | B105: -7.8 | C105: 0 | D105: 85.55 | E105: 0.8045 | F105: -35.87
A106: 2018-01-12T02:15:00 | B106: -7.78 | C106: 0 | D106: 85.6 | E106: 0.756 | F106: -34.92
A107: 2018-01-12T02:30:00 | B107: -7.68 | C107: 0 | D107: 85.4 | E107: 1.0405 | F107: -36.72
A108: 2018-01-12T02:45:00 | B108: -7.66 | C108: 0 | D108: 85.4 | E108: 1.3575 | F108: -38.275
A109: 2018-01-12T03:00:00 | B109: -7.81 | C109: 0 | D109: 85.65 | E109: 1.2415 | F109: -39.745
A110: 2018-01-12T03:15:00 | B110: -7.97 | C110: 0 | D110: 85.75 | E110: 0.949 | F110: -41.005
A111: 2018-01-12T03:30:00 | B111: -8.04 | C111: 0 | D111: 85.85 | E111: 0.9405 | F111: -40.775
A112: 2018-01-12T03:45:00 | B112: -8.19 | C112: 0 | D112: 86.05 | E112: 0.837 | F112: -40.24
A113: 2018-01-12T04:00:00 | B113: -8.17 | C113: 0 | D113: 86.15 | E113: 1.082 | F113: -38.82
A114: 2018-01-12T04:15:00 | B114: -8.19 | C114: 0 | D114: 86.25 | E114: 0.7555 | F114: -39.425
A115: 2018-01-12T04:30:00 | B115: -8.25 | C115: 0 | D115: 86.1 | E115: 0.643 | F115: -37.955
A116: 2018-01-12T04:45:00 | B116: -8.5 | C116: 0 | D116: 86.95 | E116: 0.999 | F116: -37.17
A117: 2018-01-12T05:00:00 | B117: -8.28 | C117: 0 | D117: 86.6 | E117: 1.0715 | F117: -38.8
A118: 2018-01-12T05:15:00 | B118: -8.3 | C118: 0 | D118: 87 | E118: 0.963 | F118: -36.81
A119: 2018-01-12T05:30:00 | B119: -8.35 | C119: 0 | D119: 86.95 | E119: 0.7455 | F119: -33.595
A120: 2018-01-12T05:45:00 | B120: -8.26 | C120: 0 | D120: 86.65 | E120: 1.2145 | F120: -38.74
A121: 2018-01-12T06:00:00 | B121: -8.28 | C121: 0 | D121: 87.05 | E121: 0.7435 | F121: -39.76
A122: 2018-01-12T06:15:00 | B122: -8.29 | C122: 0 | D122: 86.7 | E122: 0.793 | F122: -39.445
A123: 2018-01-12T06:30:00 | B123: -8.5 | C123: 0 | D123: 86.85 | E123: 1.0595 | F123: -43.435
A124: 2018-01-12T06:45:00 | B124: -8.69 | C124: 0 | D124: 87.9 | E124: 1.0895 | F124: -45.66
A125: 2018-01-12T07:00:00 | B125: -8.3 | C125: 0 | D125: 87.45 | E125: 1.329 | F125: -45.65
A126: 2018-01-12T07:15:00 | B126: -8.03 | C126: 0 | D126: 86.35 | E126: 1.2215 | F126: -46.06
A127: 2018-01-12T07:30:00 | B127: -8.24 | C127: 0 | D127: 86.95 | E127: 1.375 | F127: -45.065
A128: 2018-01-12T07:45:00 | B128: -8.17 | C128: 0 | D128: 86.95 | E128: 1.196 | F128: -42.905
A129: 2018-01-12T08:00:00 | B129: -8.11 | C129: 0 | D129: 86.9 | E129: 1.329 | F129: -42.965
A130: 2018-01-12T08:15:00 | B130: -7.89 | C130: 0 | D130: 86.9 | E130: 1.414 | F130: -39.23
A131: 2018-01-12T08:30:00 | B131: -7.61 | C131: 0 | D131: 86.65 | E131: 1.394 | F131: -29.63
A132: 2018-01-12T08:45:00 | B132: -7.25 | C132: 0 | D132: 86 | E132: 1.4735 | F132: -19.13
A133: 2018-01-12T09:00:00 | B133: -6.78 | C133: 0 | D133: 85.15 | E133: 1.827 | F133: -10.1675
A134: 2018-01-12T09:15:00 | B134: -6.2 | C134: 0 | D134: 83.9 | E134: 1.529 | F134: -5.3185
A135: 2018-01-12T09:30:00 | B135: -5.73 | C135: 0 | D135: 82.6 | E135: 1.811 | F135: -11.33
A136: 2018-01-12T09:45:00 | B136: -5.49 | C136: 0 | D136: 81.985 | E136: 1.788 | F136: -6.6
A137: 2018-01-12T10:00:00 | B137: -5.21 | C137: 0 | D137: 81.445 | E137: 2.1815 | F137: 26.5295
A138: 2018-01-12T10:15:00 | B138: -4.68 | C138: 0 | D138: 80.265 | E138: 2.4635 | F138: 53.34
A139: 2018-01-12T10:30:00 | B139: -4.22 | C139: 0 | D139: 79.525 | E139: 2.7525 | F139: 64.625
A140: 2018-01-12T10:45:00 | B140: -3.86 | C140: 0 | D140: 78.46 | E140: 2.466 | F140: 77.125
A141: 2018-01-12T11:00:00 | B141: -3.57 | C141: 0 | D141: 78.51 | E141: 2.1765 | F141: 73.175
A142: 2018-01-12T11:15:00 | B142: -3.42 | C142: 0 | D142: 77.945 | E142: 2.6965 | F142: 66.37
A143: 2018-01-12T11:30:00 | B143: -3.32 | C143: 0 | D143: 77.735 | E143: 2.5195 | F143: 64.4
A144: 2018-01-12T11:45:00 | B144: -3.08 | C144: 0 | D144: 77.645 | E144: 2.624 | F144: 71.52
A145: 2018-01-12T12:00:00 | B145: -2.83 | C145: 0 | D145: 77.045 | E145: 2.478 | F145: 64.12
A146: 2018-01-12T12:15:00 | B146: -2.68 | C146: 0 | D146: 76.7 | E146: 2.9445 | F146: 63.13
A147: 2018-01-12T12:30:00 | B147: -2.61 | C147: 0 | D147: 76.835 | E147: 2.3905 | F147: 53.395
A148: 2018-01-12T12:45:00 | B148: -2.51 | C148: 0 | D148: 76.325 | E148: 2.5445 | F148: 51.945
A149: 2018-01-12T13:00:00 | B149: -2.5 | C149: 0 | D149: 76.05 | E149: 2.3645 | F149: 44.97
A150: 2018-01-12T13:15:00 | B150: -2.47 | C150: 0 | D150: 75.825 | E150: 2.7325 | F150: 37.59
A151: 2018-01-12T13:30:00 | B151: -2.46 | C151: 0 | D151: 76.375 | E151: 2.1755 | F151: 36.165
A152: 2018-01-12T13:45:00 | B152: -2.37 | C152: 0 | D152: 75.955 | E152: 2.3995 | F152: 37.13
A153: 2018-01-12T14:00:00 | B153: -2.32 | C153: 0 | D153: 75.805 | E153: 2.3515 | F153: 37.105
A154: 2018-01-12T14:15:00 | B154: -2.2 | C154: 0 | D154: 76.185 | E154: 1.6 | F154: 34.825
A155: 2018-01-12T14:30:00 | B155: -2.18 | C155: 0 | D155: 75.345 | E155: 2.5485 | F155: 29.635
A156: 2018-01-12T14:45:00 | B156: -2.19 | C156: 0 | D156: 75.36 | E156: 2.4905 | F156: 23.69
A157: 2018-01-12T15:00:00 | B157: -2.19 | C157: 0 | D157: 75.485 | E157: 2.4385 | F157: 20.065
A158: 2018-01-12T15:15:00 | B158: -2.16 | C158: 0 | D158: 75.245 | E158: 1.924 | F158: 18.86
A159: 2018-01-12T15:30:00 | B159: -2.12 | C159: 0 | D159: 74.805 | E159: 1.754 | F159: 13.6725
A160: 2018-01-12T15:45:00 | B160: -2.12 | C160: 0 | D160: 74.665 | E160: 1.627 | F160: 9.428
A161: 2018-01-12T16:00:00 | B161: -2.16 | C161: 0 | D161: 75.045 | E161: 1.742 | F161: 5.3005
A162: 2018-01-12T16:15:00 | B162: -2.21 | C162: 0 | D162: 74.945 | E162: 1.7885 | F162: 0.4305
A163: 2018-01-12T16:30:00 | B163: -2.23 | C163: 0 | D163: 75.085 | E163: 1.644 | F163: -1.4505
A164: 2018-01-12T16:45:00 | B164: -2.24 | C164: 0 | D164: 74.715 | E164: 1.251 | F164: -3.7955
A165: 2018-01-12T17:00:00 | B165: -2.28 | C165: 0 | D165: 75.465 | E165: 1.1595 | F165: -5.8635
A166: 2018-01-12T17:15:00 | B166: -2.37 | C166: 0 | D166: 76.385 | E166: 1.2655 | F166: -6.637
A167: 2018-01-12T17:30:00 | B167: -2.4 | C167: 0 | D167: 76.045 | E167: 0.9675 | F167: -7.1255
A168: 2018-01-12T17:45:00 | B168: -2.44 | C168: 0 | D168: 76.555 | E168: 0.9335 | F168: -7.191
A169: 2018-01-12T18:00:00 | B169: -2.48 | C169: 0 | D169: 77 | E169: 1.1825 | F169: -7.012
A170: 2018-01-12T18:15:00 | B170: -2.5 | C170: 0 | D170: 76.86 | E170: 0.9295 | F170: -6.368
A171: 2018-01-12T18:30:00 | B171: -2.48 | C171: 0 | D171: 77.085 | E171: 0.958 | F171: -6.336
A172: 2018-01-12T18:45:00 | B172: -2.45 | C172: 0 | D172: 76.365 | E172: 0.9935 | F172: -6.2545
A173: 2018-01-12T19:00:00 | B173: -2.47 | C173: 0 | D173: 76.95 | E173: 0.94 | F173: -6.0835
A174: 2018-01-12T19:15:00 | B174: -2.51 | C174: 0 | D174: 77.105 | E174: 0.9695 | F174: -6.067
A175: 2018-01-12T19:30:00 | B175: -2.55 | C175: 0 | D175: 77.7 | E175: 0.725 | F175: -6.0345
A176: 2018-01-12T19:45:00 | B176: -2.59 | C176: 0 | D176: 77.85 | E176: 0.759 | F176: -5.9205
A177: 2018-01-12T20:00:00 | B177: -2.59 | C177: 0 | D177: 77.835 | E177: 0.7435 | F177: -5.888
A178: 2018-01-12T20:15:00 | B178: -2.52 | C178: 0 | D178: 77.545 | E178: 0.7635 | F178: -5.896
A179: 2018-01-12T20:30:00 | B179: -2.52 | C179: 0 | D179: 77.87 | E179: 0.769 | F179: -5.741
A180: 2018-01-12T20:45:00 | B180: -2.53 | C180: 0 | D180: 78.13 | E180: 0.8885 | F180: -5.3505
A181: 2018-01-12T21:00:00 | B181: -2.47 | C181: 0 | D181: 77.835 | E181: 1.0045 | F181: -5.676
A182: 2018-01-12T21:15:00 | B182: -2.45 | C182: 0 | D182: 78.04 | E182: 1.06 | F182: -5.131
A183: 2018-01-12T21:30:00 | B183: -2.44 | C183: 0 | D183: 78.38 | E183: 1.0345 | F183: -4.7805
A184: 2018-01-12T21:45:00 | B184: -2.43 | C184: 0 | D184: 78.795 | E184: 0.934 | F184: -4.536
A185: 2018-01-12T22:00:00 | B185: -2.38 | C185: 0 | D185: 78.745 | E185: 1.0545 | F185: -5.0735
A186: 2018-01-12T22:15:00 | B186: -2.37 | C186: 0 | D186: 79.25 | E186: 1.376 | F186: -5.8385
A187: 2018-01-12T22:30:00 | B187: -2.41 | C187: 0 | D187: 79.79 | E187: 1.295 | F187: -6.132
A188: 2018-01-12T22:45:00 | B188: -2.41 | C188: 0 | D188: 80.19 | E188: 1.403 | F188: -6.2215
A189: 2018-01-12T23:00:00 | B189: -2.39 | C189: 0 | D189: 80.715 | E189: 1.0435 | F189: -6.205
A190: 2018-01-12T23:15:00 | B190: -2.37 | C190: 0 | D190: 81.02 | E190: 1.2225 | F190: -6.124
A191: 2018-01-12T23:30:00 | B191: -2.29 | C191: 0 | D191: 81.5 | E191: 1.074 | F191: -6.8155
A192: 2018-01-12T23:45:00 | B192: -2.21 | C192: 0 | D192: 82.65 | E192: 1.159 | F192: -6.172
A193: 2018-01-13 | B193: -2.14 | C193: 0 | D193: 83.75 | E193: 1.1985 | F193: -6.401
A194: 2018-01-13T00:15:00 | B194: -2.07 | C194: 0 | D194: 84.65 | E194: 1.1235 | F194: -5.8235
A195: 2018-01-13T00:30:00 | B195: -2.02 | C195: 0 | D195: 85.4 | E195: 1.2095 | F195: -4.731
A196: 2018-01-13T00:45:00 | B196: -2.03 | C196: 0 | D196: 86.2 | E196: 1.5275 | F196: -4.0965
A197: 2018-01-13T01:00:00 | B197: -1.99 | C197: 0 | D197: 86.85 | E197: 0.848 | F197: -3.608
A198: 2018-01-13T01:15:00 | B198: -1.95 | C198: 0 | D198: 87.5 | E198: 1.2855 | F198: -3.266
A199: 2018-01-13T01:30:00 | B199: -1.94 | C199: 0 | D199: 88.1 | E199: 0.984 | F199: -3.0945
A200: 2018-01-13T01:45:00 | B200: -1.96 | C200: 0 | D200: 88.65 | E200: 0.9555 | F200: -2.8995
... 9016 more rows

Sheet Sheet2 (hidden)
A1: 3 | B1: -2.805 | C1: 0.08705 | D1: 0.000172 | E1: -2.045e-06 | F1: 2.564e-09 | G1: -0.109 | H1: 0.0002064 | I1: 3.638e-07 | J1: 7.614e-10 | K1: 0.0004403 | L1: -1.22e-05 | M1: -4.868e-09 | N1: 6.786e-05 | O1: 1.007e-07 | P1: -6.499e-07 | Q1: 6.466 | R1: -0.009493 | S1: 0.0003803 | T1: -1.089e-06 | U1: -0.08929 | V1: -0.0002332 | W1: 5.51e-07 | X1: 0.003045 | Y1: -4.236e-07 | Z1: -2.137e-05 | AA1: -0.5207 | AB1: 0.01389 | AC1: -4.667e-05 | AD1: 0.01981 | AE1: -2.786e-05 | AF1: -6.124e-05 | AG1: -0.3932 | AH1: 0.001771 | AI1: 0.00142 | AJ1: -0.1361 | AK1: -3.868 | AL1: 0.02449 | AM1: -5.291e-05 | AN1: 2.261e-09 | AO1: 0.2171 | AP1: -0.00121 | AQ1: 2.588e-06 | AR1: -0.003007 | AS1: 2.613e-06 | AT1: 1.556e-05 | AU1: 1.784 | AV1: -0.02654 | AW1: 6.303e-05 | AX1: -0.008319 | AY1: -3.027e-06 | AZ1: -3.488e-05 | BA1: -0.1815 | BB1: 0.0001261 | BC1: 0.009802 | BD1: 0.0704 | BE1: -2.992 | BF1: 0.01575 | BG1: -4.555e-05 | BH1: 0.0719 | BI1: 5.678e-05 | BJ1: -0.0004277 | BK1: 0.3134 | BL1: 0.0006819 | BM1: -0.01026 | BN1: -0.05817 | BO1: 0.06282 | BP1: -0.0004336 | BQ1: -0.001611 | BR1: 0.01391 | BS1: -0.001307 | BT1: -4.245 | BU1: 0.0571 | BV1: -0.0006124 | BW1: 1.462e-06 | BX1: 0.1742 | BY1: 0.001667 | BZ1: -5.294e-06 | CA1: -0.006422 | CB1: 2.831e-06 | CC1: 3.936e-05 | CD1: -3.093 | CE1: 0.01838 | CF1: -1.097e-05 | CG1: 0.02553 | CH1: -1.89e-05 | CI1: -0.0005751 | CJ1: 0.4719 | CK1: -0.002307 | CL1: -0.01437 | CM1: 0.4183 | CN1: 1.073 | CO1: -0.004602 | CP1: 1.464e-05 | CQ1: -0.0626 | CR1: -1.859e-05 | CS1: 0.001068 | CT1: -1.087 | CU1: -0.004594 | CV1: 0.02356 | CW1: -0.01407 | CX1: -1.054 | CY1: 0.001589 | CZ1: 0.004985 | DA1: 0.1978 | DB1: 0.05248 | DC1: -9.58 | DD1: 0.1894 | DE1: -0.0005334 | DF1: -0.0009706 | DG1: -0.0002412 | DH1: 0.0008413 | DI1: -2.106 | DJ1: -0.006839 | DK1: 0.02052 | DL1: 0.4109 | DM1: -0.5845 | DN1: 0.005412 | DO1: 0.0233 | DP1: 2.347 | DQ1: -0.8807 | DR1: 1.019 | DS1: 0.001981 | DT1: -0.03045 | DU1: -2.385 | DV1: -4.363 | DW1: 0.7504 | DX1: 11.78 | DY1: -1.999 | DZ1: 0.009045 | EA1: -9.492e-06 | EB1: -1.51 | EC1: 0.02938 | ED1: -4.893e-05 | EE1: 0.04522 | EF1: -0.0002906 | EG1: 8.98e-05 | EH1: 53.19 | EI1: -1.019 | EJ1: 0.001918 | EK1: -0.4641 | EL1: -0.004007 | EM1: 0.01704 | EN1: 60 | EO1: 0.2705 | EP1: -0.3691 | EQ1: -20.37 | ER1: -268.5 | ES1: 2.797 | ET1: -0.01043 | EU1: 2.371 | EV1: 0.01161 | EW1: -0.03006 | EX1: -22.78 | EY1: 0.03416 | EZ1: -0.5098 | FA1: 18.2 | FB1: -39.05 | FC1: 0.1763 | FD1: 0.2549 | FE1: -5.764 | FF1: 2.054 | FG1: 807.5 | FH1: -4.097 | FI1: 0.005049 | FJ1: -8.936 | FK1: 0.01056 | FL1: 0.06637 | FM1: 282.5 | FN1: -1.016 | FO1: 2.495 | FP1: -110.2 | FQ1: 325.7 | FR1: 0.2069 | FS1: 2.496 | FT1: -210.7 | FU1: 0.1971 | FV1: -1053 | FW1: 2.854 | FX1: 2.962 | FY1: 121.2 | FZ1: 79.93 | GA1: -72.51 | GB1: -151.1 | GC1: -10.86 | GD1: 0.03401 | GE1: -14.93 | GF1: 0.05891 | GG1: -0.02876 | GH1: 1705 | GI1: -4.176 | GJ1: 4.516 | GK1: -254.7 | GL1: -1698 | GM1: 3.624 | GN1: 10.29 | GO1: 250.3 | GP1: -73.41 | GQ1: -4264 | GR1: 14.31 | GS1: -20.27 | GT1: 968.2 | GU1: -1027 | GV1: -652.3 | GW1: -1.011 | GX1: 3.933 | GY1: -5.11 | GZ1: -229.4 | HA1: -24.28 | HB1: -324.1 | HC1: -114 | HD1: -0.4444 | HE1: -0.007892 | HF1: 2.474e-05 | HG1: 6.222e-09 | HH1: 0.1457 | HI1: -5.781e-05 | HJ1: -1.369e-07 | HK1: -0.004323 | HL1: 1.351e-06 | HM1: 2.946e-05 | HN1: -1.514 | HO1: 0.01435 | HP1: -3.897e-05 | HQ1: 0.01157 | HR1: 2.086e-05 | HS1: 1.605e-05 | HT1: -0.1217 | HU1: 0.0001902 | HV1: -0.006017 | HW1: 0.04897 | HX1: 0.5032 | HY1: -0.009983 | HZ1: 1.15e-05 | IA1: 0.02865 | IB1: 0.0001253 | IC1: -0.0008184 | ID1: -0.5663 | IE1: 5.8e-05 | IF1: 0.01344 | IG1: 0.01294 | IH1: 0.0448 | II1: 0.0003782 | IJ1: -0.001167 | IK1: -0.003541 | IL1: 0.0002899 | IM1: 1.925 | IN1: -0.01626 | IO1: 2.235e-05 | IP1: -0.06116 | IQ1: 2.21e-05 | IR1: 0.000671 | IS1: 0.5829 | IT1: -0.006961 | IU1: 0.0166 | IV1: 0.1948 | IW1: -4.493 | IX1: 0.006876 | IY1: 0.08229 | IZ1: 1.483 | JA1: -0.3567 | JB1: 2.39 | JC1: -0.003421 | JD1: -0.0558 | JE1: -0.6857 | JF1: -3.237 | JG1: 2.514 | JH1: 122.9 | JI1: -0.1284 | JJ1: -0.002006 | JK1: -1.161 | JL1: 0.01364 | JM1: -0.02036 | JN1: 47.66 | JO1: -0.2081 | JP1: 0.1209 | JQ1: -18.91 | JR1: 122.2 | JS1: -0.007961 | JT1: -0.7421 | JU1: -36.49 | JV1: 0.7851 | JW1: -139.5 | JX1: 0.6643 | JY1: 0.2447 | JZ1: -38.64 | KA1: -47.79 | KB1: 205 | KC1: -399.4 | KD1: 2.074 | KE1: -3.837 | KF1: -33.18 | KG1: -248.6 | KH1: 636.1 | KI1: 80.39 | KJ1: -0.2231 | KK1: 0.0004151 | KL1: -3.271e-06 | KM1: -0.001797 | KN1: 1.034e-05 | KO1: 6.322e-05 | KP1: 0.3206 | KQ1: -0.0005756 | KR1: -0.001438 | KS1: -0.04323 | KT1: -0.8171 | KU1: 0.002052 | KV1: 0.01158 | KW1: 0.2436 | KX1: -0.04627 | KY1: -0.1121 | KZ1: -0.0003918 | LA1: -0.002967 | LB1: 0.2353 | LC1: -0.3354 | LD1: 0.541 | LE1: 10.31 | LF1: 0.003064 | LG1: -0.004169 | LH1: -8.507 | LI1: -15.2 | LJ1: 20.45 | LK1: 139.3 | LL1: 0.04853 | LM1: -0.0001263 | LN1: -0.0003172 | LO1: 0.02072 | LP1: 0.04713 | LQ1: 0.04484 | LR1: -0.7961 | LS1: -0.01154 | LT1: -0.1593 | LU1: 0.003974 | LV1: -1.57e-05 | LW1: 9.904e-09 | LX1: 0.01792 | LY1: -7.495e-05 | LZ1: 2.809e-07 | MA1: -0.0006502 | MB1: -1.772e-07 | MC1: 5.16e-06 | MD1: -0.673 | ME1: 0.003724 | MF1: -4.225e-06 | MG1: 0.01249 | MH1: -2.551e-05 | MI1: -4.502e-05 | MJ1: -0.1027 | MK1: 0.0002827 | ML1: 0.001261 | MM1: -0.008612 | MN1: 0.455 | MO1: 0.002996 | MP1: -1.295e-05 | MQ1: -0.00925 | MR1: 4.208e-05 | MS1: -1.271e-05 | MT1: -0.281 | MU1: 0.0008033 | MV1: 0.006827 | MW1: -0.07868 | MX1: 0.1091 | MY1: -6.279e-05 | MZ1: -0.005935 | NA1: 0.0164 | NB1: 0.008212 | NC1: 2.267 | ND1: -0.02504 | NE1: 5.46e-05 | NF1: 0.008742 | NG1: 1.196e-05 | NH1: -3.644e-05 | NI1: 1.382 | NJ1: -0.002307 | NK1: -0.0006861 | NL1: -0.3656 | NM1: -0.3399 | NN1: 0.0003298 | NO1: 0.01599 | NP1: 0.5207 | NQ1: -0.1237 | NR1: -2.535 | NS1: 0.004756 | NT1: 0.006918 | NU1: 0.4074 | NV1: -1.964 | NW1: 0.3354 | NX1: 61.58 | NY1: -1.51 | NZ1: 0.004068 | OA1: 1.147 | OB1: -0.001051 | OC1: -0.005984 | OD1: 14.68 | OE1: 0.1573 | OF1: -0.3749 | OG1: -3.95 | OH1: 27.52 | OI1: 0.1317 | OJ1: -0.7004 | OK1: 1.607 | OL1: -4.486 | OM1: -153 | ON1: 0.3903 | OO1: 0.1299 | OP1: 9.64 | OQ1: 43.37 | OR1: 14.09 | OS1: 262.2 | OT1: -0.9089 | OU1: 2.926 | OV1: -80.56 | OW1: -247.9 | OX1: -130.3 | OY1: -100.8 | OZ1: 0.3852 | PA1: -0.002738 | PB1: 6.35e-06 | PC1: 0.01413 | PD1: -8.661e-06 | PE1: -0.0001474 | PF1: 0.3144 | PG1: -0.0006018 | PH1: 0.001697 | PI1: -0.1182 | PJ1: -0.2028 | PK1: 0.0005452 | PL1: -0.0005316 | PM1: 0.1109 | PN1: -0.02617 | PO1: 0.215 | PP1: 0.001002 | PQ1: -0.0105 | PR1: -0.01678 | PS1: -0.5177 | PT1: 0.5263 | PU1: 12 | PV1: -0.1361 | PW1: -0.2129 | PX1: 5.252 | PY1: 9.595 | PZ1: 42.36 | QA1: -23.41 | QB1: 0.1556 | QC1: -0.0003977 | QD1: -0.000589 | QE1: -0.07561 | QF1: -0.03699 | QG1: 0.04582 | QH1: 10.72 | QI1: -0.0278 | QJ1: 0.06715 | QK1: -0.0007254 | QL1: 2.472e-06 | QM1: 0.003438 | QN1: -3.968e-06 | QO1: -4.603e-05 | QP1: 0.0199 | QQ1: -0.0004852 | QR1: -0.0004485 | QS1: 0.03519 | QT1: -0.1749 | QU1: 0.0001669 | QV1: 0.0009861 | QW1: -0.0663 | QX1: 0.03233 | QY1: 0.3144 | QZ1: -0.0009939 | RA1: -0.003129 | RB1: 0.04169 | RC1: 0.1131 | RD1: -0.2188 | RE1: 11.36 | RF1: 0.003112 | RG1: -0.1519 | RH1: -6.126 | RI1: 0.7811 | RJ1: 10.83 | RK1: -5.411 | RL1: 0.1461 | RM1: -0.0008268 | RN1: 0.0008334 | RO1: 0.003074 | RP1: 0.03392 | RQ1: 0.009451 | RR1: 4.98 | RS1: -0.01258 | RT1: -0.004407 | RU1: -0.0001018 | RV1: 0.0007384 | RW1: 0.01031 | RX1: 0.01066 | RY1: -0.01163 | RZ1: 0.6572 | SA1: -0.01735 | SB1: -0.002523
A2: 4 | B2: -2.855 | C2: 0.08451 | D2: 0.0002538 | E2: -2.365e-06 | F2: 2.865e-09 | G2: -0.07948 | H2: 0.0001054 | I2: 5.634e-07 | J2: 9.443e-10 | K2: -0.00116 | L2: -1.053e-05 | M2: -7.794e-09 | N2: 9.22e-05 | O2: 9.45e-08 | P2: -7.619e-07 | Q2: 6.247 | R2: -0.008326 | S2: 0.0003934 | T2: -1.143e-06 | U2: -0.09086 | V2: -0.0002144 | W2: 5.749e-07 | X2: 0.002949 | Y2: -6.78e-07 | Z2: -2.021e-05 | AA2: -0.3606 | AB2: 0.01206 | AC2: -4.205e-05 | AD2: 0.01876 | AE2: -2.812e-05 | AF2: -5.255e-05 | AG2: -0.3687 | AH2: 0.00168 | AI2: 0.001598 | AJ2: -0.1465 | AK2: -4.192 | AL2: 0.01971 | AM2: -3.24e-05 | AN2: -1.522e-08 | AO2: 0.2241 | AP2: -0.001166 | AQ2: 2.416e-06 | AR2: -0.00304 | AS2: 2.757e-06 | AT2: 1.467e-05 | AU2: 1.856 | AV2: -0.02413 | AW2: 5.587e-05 | AX2: -0.01111 | AY2: -3.118e-06 | AZ2: -1.72e-05 | BA2: -0.2572 | BB2: 0.0002731 | BC2: 0.01007 | BD2: 0.06363 | BE2: -2.558 | BF2: 0.01426 | BG2: -4.367e-05 | BH2: 0.05537 | BI2: 7.213e-05 | BJ2: -0.0002861 | BK2: 0.2838 | BL2: 0.0006562 | BM2: -0.009977 | BN2: -0.04185 | BO2: 0.06977 | BP2: -0.0003735 | BQ2: -0.001492 | BR2: 0.007987 | BS2: -0.00141 | BT2: -4.265 | BU2: 0.04793 | BV2: -0.0005662 | BW2: 1.411e-06 | BX2: 0.1433 | BY2: 0.001654 | BZ2: -5.256e-06 | CA2: -0.006232 | CB2: 2.626e-06 | CC2: 4.13e-05 | CD2: -3.406 | CE2: 0.02632 | CF2: -3.12e-05 | CG2: 0.02257 | CH2: -2.928e-05 | CI2: -0.0005422 | CJ2: 0.3911 | CK2: -0.001957 | CL2: -0.01464 | CM2: 0.402 | CN2: 1.255 | CO2: -0.007197 | CP2: 2.619e-05 | CQ2: -0.07923 | CR2: -2.932e-05 | CS2: 0.001253 | CT2: -1.012 | CU2: -0.003778 | CV2: 0.02157 | CW2: -0.02319 | CX2: -0.5461 | CY2: 0.0007089 | CZ2: 0.0009923 | DA2: 0.1549 | DB2: 0.0396 | DC2: -10.26 | DD2: 0.1929 | DE2: -0.0005411 | DF2: -0.00392 | DG2: -0.0002586 | DH2: 0.000977 | DI2: -2.06 | DJ2: -0.007895 | DK2: 0.02037 | DL2: 0.5286 | DM2: -0.5643 | DN2: 0.003507 | DO2: 0.02854 | DP2: 2.457 | DQ2: -0.8643 | DR2: 1.085 | DS2: 0.003668 | DT2: -0.03179 | DU2: -2.34 | DV2: -4.441 | DW2: 0.8814 | DX2: 42.88 | DY2: -2.432 | DZ2: 0.01018 | EA2: -9.724e-06 | EB2: -1.787 | EC2: 0.03151 | ED2: -5.449e-05 | EE2: 0.04969 | EF2: -0.0002928 | EG2: 7.224e-05 | EH2: 52.48 | EI2: -1.035 | EJ2: 0.002114 | EK2: -0.4439 | EL2: -0.00401 | EM2: 0.01574 | EN2: 64.23 | EO2: 0.2563 | EP2: -0.3608 | EQ2: -20.79 | ER2: -276.6 | ES2: 2.379 | ET2: -0.009231 | EU2: 3.338 | EV2: 0.01118 | EW2: -0.03697 | EX2: -12.35 | EY2: 0.03506 | EZ2: -0.5782 | FA2: 18.06 | FB2: -38.44 | FC2: 0.1505 | FD2: 0.2957 | FE2: -6.384 | FF2: 2.366 | FG2: 692.7 | FH2: -2.898 | FI2: 0.002522 | FJ2: -9.591 | FK2: 0.01001 | FL2: 0.0751 | FM2: 302.8 | FN2: -1.204 | FO2: 2.403 | FP2: -102.1 | FQ2: 327.1 | FR2: 0.05627 | FS2: 1.873 | FT2: -177.2 | FU2: -5.951 | FV2: -1111 | FW2: 3.107 | FX2: 3.557 | FY2: 101.7 | FZ2: 106.3 | GA2: -30.79 | GB2: -323.7 | GC2: -7.915 | GD2: 0.02679 | GE2: -14.88 | GF2: 0.05637 | GG2: -0.02374 | GH2: 1543 | GI2: -3.929 | GJ2: 4.18 | GK2: -229.7 | GL2: -1580 | GM2: 3.679 | GN2: 9.712 | GO2: 185.8 | GP2: -63.77 | GQ2: -3990 | GR2: 14.01 | GS2: -19.27 | GT2: 926.3 | GU2: -887.3 | GV2: -616.9 | GW2: 343.3 | GX2: 2.278 | GY2: -3.964 | GZ2: -229.1 | HA2: 103.7 | HB2: -494.4 | HC2: -74.22 | HD2: -0.6043 | HE2: -0.005913 | HF2: 1.405e-05 | HG2: 2.275e-08 | HH2: 0.1499 | HI2: -5.443e-05 | HJ2: -1.696e-07 | HK2: -0.004285 | HL2: 1.482e-06 | HM2: 2.845e-05 | HN2: -1.609 | HO2: 0.01564 | HP2: -4.2e-05 | HQ2: 0.01025 | HR2: 2.02e-05 | HS2: 2.393e-05 | HT2: -0.185 | HU2: 0.0003566 | HV2: -0.005449 | HW2: 0.04557 | HX2: 0.5426 | HY2: -0.01052 | HZ2: 9.466e-06 | IA2: 0.02984 | IB2: 0.0001516 | IC2: -0.000847 | ID2: -0.6211 | IE2: 0.0002793 | IF2: 0.01343 | IG2: 0.01543 | IH2: 0.06598 | II2: 0.0003413 | IJ2: -0.001241 | IK2: -0.007037 | IL2: -0.001701 | IM2: 2.277 | IN2: -0.01404 | IO2: 1.238e-05 | IP2: -0.05354 | IQ2: 2.348e-05 | IR2: 0.0005594 | IS2: 0.7387 | IT2: -0.008052 | IU2: 0.01741 | IV2: 0.1453 | IW2: -3.828 | IX2: 0.006197 | IY2: 0.0753 | IZ2: 1.45 | JA2: -0.4203 | JB2: 2.695 | JC2: -0.003298 | JD2: -0.05953 | JE2: -0.5361 | JF2: -3.371 | JG2: 2.506 | JH2: 107.4 | JI2: 0.2026 | JJ2: -0.00285 | JK2: -1.311 | JL2: 0.01363 | JM2: -0.02046 | JN2: 52.81 | JO2: -0.2694 | JP2: 0.2089 | JQ2: -19.5 | JR2: 135.9 | JS2: -0.09565 | JT2: -0.8617 | JU2: -30.51 | JV2: -0.9444 | JW2: -169.1 | JX2: 0.75 | JY2: 0.3855 | JZ2: -38.2 | KA2: -26.94 | KB2: 250.5 | KC2: -452.6 | KD2: 2.307 | KE2: -3.746 | KF2: 10.95 | KG2: -207.9 | KH2: 561.9 | KI2: -63.7 | KJ2: -0.1752 | KK2: 0.0009016 | KL2: -5.082e-06 | KM2: -0.002085 | KN2: 1.184e-05 | KO2: 6.527e-05 | KP2: 0.3279 | KQ2: -0.0007675 | KR2: -0.001224 | KS2: -0.04634 | KT2: -0.713 | KU2: 0.002077 | KV2: 0.01074 | KW2: 0.2318 | KX2: -0.06102 | KY2: -0.09818 | KZ2: -0.0003596 | LA2: -0.003261 | LB2: 0.2862 | LC2: -0.4648 | LD2: 0.5174 | LE2: 4.431 | LF2: 0.01217 | LG2: 0.01948 | LH2: -7.417 | LI2: -12.21 | LJ2: 32.15 | LK2: 127.9 | LL2: 0.04355 | LM2: -0.0001042 | LN2: -0.0003854 | LO2: 0.0303 | LP2: 0.02309 | LQ2: 0.01016 | LR2: -0.2939 | LS2: -0.01696 | LT2: -0.2089 | LU2: 0.005068 | LV2: -1.741e-05 | LW2: 8.23e-09 | LX2: 0.01947 | LY2: -8.444e-05 | LZ2: 2.955e-07 | MA2: -0.0006897 | MB2: -1.411e-07 | MC2: 5.4e-06 | MD2: -0.6652 | ME2: 0.003601 | MF2: -3.632e-06 | MG2: 0.0121 | MH2: -2.611e-05 | MI2: -4.037e-05 | MJ2: -0.1227 | MK2: 0.000253 | ML2: 0.001587 | MM2: -0.006853 | MN2: 0.6414 | MO2: 0.002605 | MP2: -1.147e-05 | MQ2: -0.01259 | MR2: 4.234e-05 | MS2: 6.011e-06 | MT2: -0.2527 | MU2: 0.0005839 | MV2: 0.006956 | MW2: -0.0799 | MX2: 0.08449 | MY2: -6.79e-05 | MZ2: -0.005705 | NA2: 0.01637 | NB2: 0.008749 | NC2: 2.492 | ND2: -0.02789 | NE2: 5.964e-05 | NF2: 0.009648 | NG2: 1.826e-05 | NH2: -4.486e-05 | NI2: 1.533 | NJ2: -0.002324 | NK2: -0.001298 | NL2: -0.4161 | NM2: -0.2268 | NN2: 0.0008063 | NO2: 0.01368 | NP2: 0.4998 | NQ2: -0.1225 | NR2: -2.547 | NS2: 0.00433 | NT2: 0.006023 | NU2: 0.5133 | NV2: -2.14 | NW2: 0.3342 | NX2: 74.05 | NY2: -1.662 | NZ2: 0.00437 | OA2: 1.118 | OB2: -0.0009344 | OC2: -0.005914 | OD2: 20.91 | OE2: 0.1669 | OF2: -0.3801 | OG2: -6.449 | OH2: 40.83 | OI2: 0.09658 | OJ2: -0.8003 | OK2: 1.713 | OL2: -4.964 | OM2: -173.5 | ON2: 0.4215 | OO2: 0.2288 | OP2: 13.87 | OQ2: 38.68 | OR2: 13.48 | OS2: 299 | OT2: -0.9354 | OU2: 2.792 | OV2: -87.37 | OW2: -261.4 | OX2: -126.1 | OY2: -103.3 | OZ2: 0.413 | PA2: -0.003268 | PB2: 7.678e-06 | PC2: 0.01406 | PD2: -8.345e-06 | PE2: -0.0001434 | PF2: 0.3305 | PG2: -0.0007283 | PH2: 0.001574 | PI2: -0.1144 | PJ2: -0.2361 | PK2: 0.0006469 | PL2: 6.111e-05 | PM2: 0.09787 | PN2: -0.01944 | PO2: 0.2645 | PP2: 0.0007824 | PQ2: -0.01073 | PR2: 0.01968 | PS2: -0.6623 | PT2: 0.5788 | PU2: 9.741 | PV2: -0.1333 | PW2: -0.2134 | PX2: 5.914 | PY2: 7.774 | PZ2: 44.64 | QA2: -39.03 | QB2: 0.1676 | QC2: -0.000459 | QD2: -0.0006085 | QE2: -0.0686 | QF2: -0.05329 | QG2: 0.02359 | QH2: 11.66 | QI2: -0.03356 | QJ2: 0.05739 | QK2: -0.0002197 | QL2: 8.697e-07 | QM2: 0.003174 | QN2: -2.703e-06 | QO2: -4.65e-05 | QP2: 0.007174 | QQ2: -0.0004931 | QR2: -0.0004411 | QS2: 0.03462 | QT2: -0.209 | QU2: 0.0001513 | QV2: 0.001613 | QW2: -0.05575 | QX2: 0.03543 | QY2: 0.3506 | QZ2: -0.001062 | RA2: -0.003396 | RB2: 0.03977 | RC2: 0.05935 | RD2: -0.1607 | RE2: 11.42 | RF2: -0.00159 | RG2: -0.1459 | RH2: -6.177 | RI2: 0.3624 | RJ2: 9.789 | RK2: -5.509 | RL2: 0.1404 | RM2: -0.0008227 | RN2: 0.0008449 | RO2: 0.003026 | RP2: 0.03008 | RQ2: -0.00898 | RR2: 4.734 | RS2: -0.01824 | RT2: -0.004995 | RU2: -8.263e-05 | RV2: 0.0006724 | RW2: 0.008516 | RX2: 0.008499 | RY2: -0.01289 | RZ2: 0.7572 | SA2: -0.01748 | SB2: -0.002211
A3: 9.5 | B3: -3.746 | C3: 0.04773 | D3: 0.000955 | E3: -5.043e-06 | F3: 5.696e-09 | G3: 0.09059 | H3: -0.0006331 | I3: 2.187e-06 | J3: -6.452e-10 | K3: -0.005422 | L3: 3.829e-07 | M3: -1.095e-08 | N3: 0.0001149 | O3: 2.582e-08 | P3: -6.996e-07 | Q3: 4.459 | R3: -0.008446 | S3: 0.0004698 | T3: -1.374e-06 | U3: -0.03828 | V3: -0.0002432 | W3: 7.298e-07 | X3: 0.001218 | Y3: -6.17e-07 | Z3: -6.956e-06 | AA3: 0.3393 | AB3: 0.006602 | AC3: -2.819e-05 | AD3: 0.008343 | AE3: -2.837e-05 | AF3: 1.535e-05 | AG3: -0.265 | AH3: 0.000857 | AI3: 0.001745 | AJ3: -0.168 | AK3: -2.961 | AL3: -0.007881 | AM3: 8.615e-05 | AN3: -1.341e-07 | AO3: 0.1583 | AP3: -0.0008355 | AQ3: 1.314e-06 | AR3: -0.001107 | AS3: 3.25e-06 | AT3: -1.836e-06 | AU3: 1.92 | AV3: -0.02006 | AW3: 3.789e-05 | AX3: -0.01717 | AY3: 3.001e-05 | AZ3: 0.0001149 | BA3: 0.03687 | BB3: 0.001212 | BC3: 0.001557 | BD3: -0.008268 | BE3: -0.7238 | BF3: 0.01263 | BG3: -3.98e-05 | BH3: -0.005044 | BI3: 6.309e-05 | BJ3: 7.252e-05 | BK3: -0.07377 | BL3: 0.0004707 | BM3: -0.00404 | BN3: 0.00425 | BO3: 0.01365 | BP3: -0.0001564 | BQ3: -0.0001975 | BR3: -0.000577 | BS3: 0.001544 | BT3: -3.652 | BU3: 0.04946 | BV3: -0.0006086 | BW3: 1.52e-06 | BX3: 0.112 | BY3: 0.0006495 | BZ3: -2.329e-06 | CA3: -0.006529 | CB3: 1.903e-06 | CC3: 5.142e-05 | CD3: -4.35 | CE3: 0.0324 | CF3: -3.78e-05 | CG3: 0.0317 | CH3: -9.682e-05 | CI3: -0.0004052 | CJ3: -0.08374 | CK3: -0.0003849 | CL3: -0.007273 | CM3: 0.5082 | CN3: 5.355 | CO3: -0.03238 | CP3: 7.348e-05 | CQ3: -0.1717 | CR3: 0.0001483 | CS3: 0.001664 | CT3: -1.055 | CU3: -0.0002401 | CV3: 0.01706 | CW3: 0.05289 | CX3: 0.1458 | CY3: -0.0008159 | CZ3: -0.0001231 | DA3: 0.07355 | DB3: 0.02098 | DC3: -8.119 | DD3: 0.1646 | DE3: -0.0004547 | DF3: -0.03081 | DG3: -0.0002939 | DH3: 0.001133 | DI3: -0.5429 | DJ3: -0.01438 | DK3: 0.006822 | DL3: 0.3148 | DM3: 2.702 | DN3: -0.01031 | DO3: 0.005668 | DP3: 2.4 | DQ3: -1.007 | DR3: 1.128 | DS3: 0.0119 | DT3: -0.02228 | DU3: -1.688 | DV3: -5.038 | DW3: 1.549 | DX3: 92.7 | DY3: -2.66 | DZ3: 0.01138 | EA3: -1.241e-05 | EB3: -0.1698 | EC3: 0.02491 | ED3: -4.795e-05 | EE3: 0.005741 | EF3: -0.0001858 | EG3: 0.0001755 | EH3: 65.58 | EI3: -1.712 | EJ3: 0.004105 | EK3: -0.808 | EL3: -0.00181 | EM3: 0.01357 | EN3: 61.26 | EO3: 0.2431 | EP3: -0.2242 | EQ3: -14.54 | ER3: -269.7 | ES3: 0.3476 | ET3: -0.003168 | EU3: 6.54 | EV3: 0.009419 | EW3: -0.05865 | EX3: 7.18 | EY3: 0.1678 | EZ3: -1.016 | FA3: 20.05 | FB3: -20.53 | FC3: 0.02765 | FD3: 0.2604 | FE3: -7.391 | FF3: 2.528 | FG3: 720 | FH3: -1.181 | FI3: -0.001854 | FJ3: -15.64 | FK3: 0.02679 | FL3: 0.08215 | FM3: 250.4 | FN3: -1.521 | FO3: 1.866 | FP3: -59.64 | FQ3: 361 | FR3: -0.4255 | FS3: -1.766 | FT3: -67.25 | FU3: -22.7 | FV3: -928.7 | FW3: 2.604 | FX3: 5.557 | FY3: 39.55 | FZ3: 189.1 | GA3: 50.31 | GB3: -1472 | GC3: 6.258 | GD3: -0.004108 | GE3: -5.617 | GF3: 0.02578 | GG3: -0.01753 | GH3: 1247 | GI3: -4.03 | GJ3: 1.297 | GK3: -177.5 | GL3: -479.6 | GM3: 2.178 | GN3: 5.189 | GO3: -109.1 | GP3: -47.86 | GQ3: -1356 | GR3: 5.922 | GS3: -8.968 | GT3: 661.9 | GU3: -67.52 | GV3: -479.6 | GW3: 1112 | GX3: -3.356 | GY3: 0.5321 | GZ3: -94.92 | HA3: 175.8 | HB3: -785.6 | HC3: 76.24 | HD3: -0.8565 | HE3: -0.003405 | HF3: 2.431e-05 | HG3: -2.809e-08 | HH3: 0.1003 | HI3: 4.787e-05 | HJ3: -3.336e-07 | HK3: -0.002628 | HL3: 9.601e-07 | HM3: 1.636e-05 | HN3: -1.311 | HO3: 0.01032 | HP3: -2.549e-05 | HQ3: 0.01318 | HR3: -8.904e-06 | HS3: -3.526e-05 | HT3: -0.1813 | HU3: 0.0005743 | HV3: -0.003018 | HW3: 0.01941 | HX3: 0.6536 | HY3: -0.01129 | HZ3: 2.767e-06 | IA3: 0.02829 | IB3: 0.0001885 | IC3: -0.0006787 | ID3: -0.4347 | IE3: 0.001122 | IF3: 0.006231 | IG3: -0.01816 | IH3: 0.06033 | II3: 0.0002575 | IJ3: -0.002913 | IK3: 0.008837 | IL3: 0.004189 | IM3: 1.591 | IN3: 0.004295 | IO3: -4.222e-05 | IP3: -0.02956 | IQ3: 2.493e-05 | IR3: 0.0004402 | IS3: 1.219 | IT3: -0.01001 | IU3: 0.0114 | IV3: -0.08872 | IW3: -1.609 | IX3: 0.001709 | IY3: 0.0527 | IZ3: 1.316 | JA3: -0.5392 | JB3: 1.917 | JC3: -0.0003818 | JD3: -0.0456 | JE3: 0.1333 | JF3: -4.387 | JG3: 2.16 | JH3: 111.3 | JI3: 0.115 | JJ3: -0.002255 | JK3: -1.203 | JL3: 0.008223 | JM3: -0.01284 | JN3: 98.9 | JO3: -0.3217 | JP3: 0.2223 | JQ3: -30.44 | JR3: 168.3 | JS3: -0.259 | JT3: -1.589 | JU3: -6.676 | JV3: -7.653 | JW3: -365.2 | JX3: 1.155 | JY3: 2.314 | JZ3: 1.162 | KA3: 46.34 | KB3: 258.6 | KC3: -388.6 | KD3: 2.181 | KE3: -1.951 | KF3: 137.9 | KG3: 21.14 | KH3: -243.5 | KI3: -530.6 | KJ3: 0.05246 | KK3: 0.002326 | KL3: -9.954e-06 | KM3: -0.004078 | KN3: 1.109e-05 | KO3: 7.682e-05 | KP3: 0.337 | KQ3: -0.001568 | KR3: 0.0006464 | KS3: -0.07808 | KT3: -0.3394 | KU3: 0.001776 | KV3: 0.006297 | KW3: 0.1805 | KX3: -0.08194 | KY3: 0.1666 | KZ3: -0.0005354 | LA3: -0.005829 | LB3: 0.3947 | LC3: -0.9677 | LD3: 0.4229 | LE3: -18.91 | LF3: 0.06773 | LG3: 0.2004 | LH3: -4.16 | LI3: -0.02662 | LJ3: 51.87 | LK3: -6.208 | LL3: 0.07511 | LM3: -0.0002307 | LN3: -0.0009113 | LO3: 0.05537 | LP3: -0.05161 | LQ3: -0.1315 | LR3: -0.5462 | LS3: -0.03353 | LT3: -0.2754 | LU3: 0.005931 | LV3: -7.5e-06 | LW3: -2.366e-08 | LX3: 0.01385 | LY3: -6.792e-05 | LZ3: 2.966e-07 | MA3: -0.000526 | MB3: -4.403e-07 | MC3: 4.4e-06 | MD3: -0.6118 | ME3: 0.002793 | MF3: -2.629e-06 | MG3: 0.01132 | MH3: -2.068e-05 | MI3: -4.204e-05 | MJ3: -0.1056 | MK3: 5.459e-05 | ML3: 0.001429 | MM3: 0.001001 | MN3: 0.7519 | MO3: 0.003254 | MP3: -6.299e-06 | MQ3: -0.01905 | MR3: 5.316e-06 | MS3: 0.0001128 | MT3: -0.2079 | MU3: -1.663e-05 | MV3: 0.005507 | MW3: -0.05793 | MX3: 0.0707 | MY3: -0.0001871 | MZ3: -0.00406 | NA3: 0.02075 | NB3: 0.002385 | NC3: 2.817 | ND3: -0.03138 | NE3: 5.943e-05 | NF3: 0.0166 | NG3: 6.402e-05 | NH3: -0.0001542 | NI3: 1.589 | NJ3: -0.003044 | NK3: 0.001527 | NL3: -0.4582 | NM3: -0.8735 | NN3: 0.003233 | NO3: 0.01806 | NP3: 0.3189 | NQ3: -0.0317 | NR3: -2.215 | NS3: 0.003337 | NT3: 0.002608 | NU3: 0.7738 | NV3: -2.232 | NW3: 0.3907 | NX3: 108.2 | NY3: -1.546 | NZ3: 0.003552 | OA3: 0.167 | OB3: 0.001239 | OC3: -0.003039 | OD3: 29.2 | OE3: 0.1227 | OF3: -0.2359 | OG3: -10.33 | OH3: 76.04 | OI3: -0.0599 | OJ3: -0.9627 | OK3: 3.577 | OL3: -6.601 | OM3: -189.8 | ON3: 0.406 | OO3: 0.5288 | OP3: 25.03 | OQ3: 23.83 | OR3: 19.14 | OS3: 196.4 | OT3: -0.2294 | OU3: 0.9622 | OV3: -47.06 | OW3: -283.5 | OX3: -236.9 | OY3: -89.12 | OZ3: 0.4839 | PA3: -0.004397 | PB3: 1.13e-05 | PC3: 0.00919 | PD3: -7.66e-06 | PE3: -8.917e-05 | PF3: 0.2374 | PG3: -0.0008593 | PH3: 0.002555 | PI3: -0.09097 | PJ3: -0.4563 | PK3: 0.0007241 | PL3: 0.005476 | PM3: 0.04385 | PN3: 0.0207 | PO3: 0.318 | PP3: 0.0003778 | PQ3: -0.009195 | PR3: 0.2015 | PS3: -0.952 | PT3: 0.664 | PU3: 4.335 | PV3: -0.1203 | PW3: -0.0974 | PX3: 6.553 | PY3: 0.7226 | PZ3: 47.28 | QA3: -116.4 | QB3: 0.2063 | QC3: -0.0007473 | QD3: -0.0005326 | QE3: -0.01593 | QF3: -0.08734 | QG3: -0.08162 | QH3: 11.29 | QI3: -0.05222 | QJ3: 0.03299 | QK3: 0.001055 | QL3: -3.758e-06 | QM3: -0.0001559 | QN3: 2.417e-06 | QO3: -1.794e-05 | QP3: -0.005776 | QQ3: -0.000523 | QR3: -0.0003659 | QS3: 0.02481 | QT3: -0.2183 | QU3: -0.0001343 | QV3: 0.002703 | QW3: -0.009198 | QX3: 0.03685 | QY3: 0.3572 | QZ3: -0.0009744 | RA3: -0.00226 | RB3: 0.04227 | RC3: -0.1834 | RD3: -0.00302 | RE3: 6.946 | RF3: -0.025 | RG3: -0.04641 | RH3: -3.882 | RI3: -0.03627 | RJ3: 1.881 | RK3: -6.102 | RL3: 0.1266 | RM3: -0.0007563 | RN3: 0.0005009 | RO3: 0.01065 | RP3: -0.01701 | RQ3: -0.1048 | RR3: 3.022 | RS3: -0.0315 | RT3: -0.00458 | RU3: -6.961e-06 | RV3: 0.0003123 | RW3: 0.0006111 | RX3: 0.001703 | RY3: -0.03893 | RZ3: 0.48 | SA3: -0.01403 | SB3: 0.000961
A4: 15 | B4: -2.898 | C4: -0.02943 | D4: 0.001804 | E4: -7.848e-06 | F4: 8.573e-09 | G4: 0.08764 | H4: -0.0003875 | I4: 1.24e-06 | J4: -1.229e-09 | K4: -0.003404 | L4: -7.32e-07 | M4: 4.083e-09 | N4: 6.031e-05 | O4: -2.039e-09 | P4: -3.369e-07 | Q4: 3.148 | R4: -0.02033 | S4: 0.0005753 | T4: -1.582e-06 | U4: 0.003295 | V4: -0.0002636 | W4: 6.507e-07 | X4: 5.413e-05 | Y4: 2.412e-07 | Z4: 6.235e-07 | AA4: 0.8902 | AB4: 0.002329 | AC4: -2.231e-05 | AD4: 0.005366 | AE4: -1.684e-05 | AF4: -7.806e-06 | AG4: -0.1418 | AH4: 0.0003466 | AI4: 0.001329 | AJ4: -0.1788 | AK4: -1.433 | AL4: -0.01186 | AM4: 8.774e-05 | AN4: -1.181e-07 | AO4: 0.03493 | AP4: -0.0004166 | AQ4: 3.222e-07 | AR4: 0.001279 | AS4: 2.611e-06 | AT4: -1.604e-05 | AU4: 1.908 | AV4: -0.01776 | AW4: 3.055e-05 | AX4: -0.02834 | AY4: 6.811e-05 | AZ4: 0.0002387 | BA4: 0.3401 | BB4: 0.001533 | BC4: -0.005562 | BD4: -0.05775 | BE4: -0.2425 | BF4: 0.00989 | BG4: -2.964e-05 | BH4: -0.009649 | BI4: 3.338e-05 | BJ4: -2.403e-06 | BK4: -0.2381 | BL4: -9.953e-05 | BM4: 0.0008047 | BN4: 0.0274 | BO4: 0.03 | BP4: 3.482e-05 | BQ4: -0.0005662 | BR4: -0.003909 | BS4: 0.001167 | BT4: -1.873 | BU4: 0.05516 | BV4: -0.000684 | BW4: 1.652e-06 | BX4: 0.07297 | BY4: 0.0001294 | BZ4: -4.34e-07 | CA4: -0.005297 | CB4: 4.726e-07 | CC4: 4.295e-05 | CD4: -3.296 | CE4: 0.01466 | CF4: 1.431e-05 | CG4: 0.03007 | CH4: -0.0001314 | CI4: -0.0003015 | CJ4: -0.2077 | CK4: -0.0002586 | CL4: 0.003444 | CM4: 0.5584 | CN4: 6.314 | CO4: -0.0358 | CP4: 7.35e-05 | CQ4: -0.1932 | CR4: 0.0001995 | CS4: 0.001588 | CT4: -1.303 | CU4: 0.002151 | CV4: 0.01273 | CW4: 0.387 | CX4: -0.3469 | CY4: -0.0008357 | CZ4: 0.01258 | DA4: -0.09732 | DB4: 0.07135 | DC4: -4.671 | DD4: 0.1314 | DE4: -0.0003722 | DF4: -0.02813 | DG4: -0.0002184 | DH4: 0.0008026 | DI4: 0.7138 | DJ4: -0.01835 | DK4: -0.008795 | DL4: -0.2765 | DM4: 5.284 | DN4: -0.01561 | DO4: -0.03267 | DP4: 1.774 | DQ4: -1.116 | DR4: 0.2922 | DS4: 0.0154 | DT4: -0.002874 | DU4: -0.8754 | DV4: -4.346 | DW4: 1.372 | DX4: 81.8 | DY4: -2.474 | DZ4: 0.01234 | EA4: -1.676e-05 | EB4: 2.058 | EC4: 0.008453 | ED4: -1.959e-05 | EE4: -0.02887 | EF4: -7.124e-05 | EG4: 0.000174 | EH4: 128.1 | EI4: -2.203 | EJ4: 0.004964 | EK4: -1.687 | EL4: 0.002627 | EM4: 0.01213 | EN4: 31.22 | EO4: 0.2418 | EP4: -0.02017 | EQ4: -5.434 | ER4: -290.9 | ES4: -0.01327 | ET4: -0.001085 | EU4: 7.417 | EV4: 0.003661 | EW4: -0.04771 | EX4: 18.84 | EY4: 0.2066 | EZ4: -1.45 | FA4: 19.91 | FB4: -10.64 | FC4: -0.009619 | FD4: 0.2127 | FE4: -6.775 | FF4: 1.642 | FG4: 864 | FH4: -2.542 | FI4: 0.001497 | FJ4: -17.6 | FK4: 0.0382 | FL4: 0.06272 | FM4: 211.2 | FN4: -1.313 | FO4: 1.115 | FP4: -43.17 | FQ4: 247.4 | FR4: -0.1821 | FS4: -3.123 | FT4: -17.35 | FU4: -14.87 | FV4: -707.3 | FW4: 1.583 | FX4: 6.041 | FY4: 42.12 | FZ4: 96.05 | GA4: 27.66 | GB4: -2057 | GC4: 10.73 | GD4: -0.0112 | GE4: 10.16 | GF4: -0.02524 | GG4: -0.004047 | GH4: 1360 | GI4: -4.246 | GJ4: -2.094 | GK4: -204.6 | GL4: 6.947 | GM4: 1.315 | GN4: 1.102 | GO4: -200.6 | GP4: -43.03 | GQ4: 770.1 | GR4: -2.944 | GS4: 2.305 | GT4: 401.3 | GU4: 341.1 | GV4: -149.5 | GW4: 629.6 | GX4: -3.426 | GY4: 0.7 | GZ4: 122.8 | HA4: 323 | HB4: -658 | HC4: 136.6 | HD4: -0.2528 | HE4: -0.003902 | HF4: 2.678e-05 | HG4: -4.487e-08 | HH4: 0.0407 | HI4: 0.0001174 | HJ4: -3.458e-07 | HK4: -0.001275 | HL4: 3.619e-07 | HM4: 8.2e-06 | HN4: -0.6532 | HO4: 0.0025 | HP4: -3.676e-06 | HQ4: 0.01327 | HR4: -3.062e-05 | HS4: -6.433e-05 | HT4: -0.06286 | HU4: 0.0003552 | HV4: -0.0005097 | HW4: -0.01288 | HX4: 0.8766 | HY4: -0.007796 | HZ4: -5.522e-06 | IA4: 0.002604 | IB4: 0.0001755 | IC4: -0.0002922 | ID4: -0.3869 | IE4: 0.001474 | IF4: 0.002665 | IG4: 0.009108 | IH4: -0.005298 | II4: 0.0003096 | IJ4: -0.003031 | IK4: -0.0064 | IL4: 0.01848 | IM4: 1.346 | IN4: 0.005236 | IO4: -4.513e-05 | IP4: -0.01779 | IQ4: 3.123e-05 | IR4: 0.0004082 | IS4: 1.526 | IT4: -0.009998 | IU4: 0.004632 | IV4: -0.248 | IW4: -0.5784 | IX4: -0.001186 | IY4: 0.03881 | IZ4: 1.068 | JA4: -0.4788 | JB4: 0.351 | JC4: 0.003163 | JD4: -0.02827 | JE4: 0.4564 | JF4: -4.331 | JG4: 1.498 | JH4: 108.9 | JI4: -0.03548 | JJ4: -0.001369 | JK4: -1.082 | JL4: 0.003594 | JM4: -0.005058 | JN4: 97.36 | JO4: -0.2371 | JP4: 0.1566 | JQ4: -30.55 | JR4: 143 | JS4: -0.1647 | JT4: -1.686 | JU4: 1.587 | JV4: -7.504 | JW4: -378.4 | JX4: 1.026 | JY4: 3.684 | JZ4: 22.8 | KA4: 12.65 | KB4: 191.7 | KC4: -122.8 | KD4: 0.9986 | KE4: -0.3484 | KF4: 111.5 | KG4: 97.08 | KH4: -627.8 | KI4: -524 | KJ4: 0.03566 | KK4: 0.00307 | KL4: -1.138e-05 | KM4: -0.001772 | KN4: 2.008e-06 | KO4: 6.088e-05 | KP4: 0.3047 | KQ4: -0.001755 | KR4: 0.001426 | KS4: -0.08723 | KT4: -0.3221 | KU4: 0.00154 | KV4: 0.005913 | KW4: 0.1339 | KX4: -0.06115 | KY4: 0.1738 | KZ4: 3.239e-05 | LA4: -0.006979 | LB4: 0.3927 | LC4: -1.043 | LD4: 0.2597 | LE4: -22.51 | LF4: 0.07321 | LG4: 0.3499 | LH4: -1.658 | LI4: -2.272 | LJ4: 40.34 | LK4: -84.96 | LL4: 0.06023 | LM4: -0.0002182 | LN4: -0.0008507 | LO4: 0.06038 | LP4: -0.06012 | LQ4: -0.1742 | LR4: -2.099 | LS4: -0.03054 | LT4: -0.4475 | LU4: 0.009969 | LV4: -2.337e-05 | LW4: -7.957e-09 | LX4: 0.009972 | LY4: -0.000121 | LZ4: 4.592e-07 | MA4: -0.0002717 | MB4: -6.271e-07 | MC4: 2.616e-06 | MD4: -0.4848 | ME4: 0.001734 | MF4: -1.801e-06 | MG4: 0.01065 | MH4: -9.196e-06 | MI4: -4.635e-05 | MJ4: -0.04899 | MK4: -0.0001126 | ML4: 0.0007978 | MM4: 0.001427 | MN4: 0.278 | MO4: 0.003783 | MP4: -2.462e-06 | MQ4: -0.00731 | MR4: -3.264e-05 | MS4: 7.168e-05 | MT4: -0.2161 | MU4: 0.000145 | MV4: 0.004138 | MW4: -0.05451 | MX4: 0.06558 | MY4: -0.0002219 | MZ4: -0.00239 | NA4: 0.02581 | NB4: -0.004307 | NC4: 2.485 | ND4: -0.02647 | NE4: 4.506e-05 | NF4: 0.0205 | NG4: 7.549e-05 | NH4: -0.0002354 | NI4: 1.395 | NJ4: -0.003122 | NK4: 0.001748 | NL4: -0.3834 | NM4: -0.9662 | NN4: 0.003035 | NO4: 0.01569 | NP4: 0.289 | NQ4: -0.03805 | NR4: -1.959 | NS4: 0.004069 | NT4: 1.514e-05 | NU4: 0.6437 | NV4: -1.79 | NW4: 0.4473 | NX4: 91.99 | NY4: -0.9982 | NZ4: 0.002047 | OA4: -0.4514 | OB4: 0.002015 | OC4: 5.385e-05 | OD4: 27.35 | OE4: 0.05433 | OF4: -0.1297 | OG4: -8.231 | OH4: 80.99 | OI4: -0.1124 | OJ4: -0.951 | OK4: 3.439 | OL4: -6.151 | OM4: -140.7 | ON4: 0.2585 | OO4: 0.5309 | OP4: 28.13 | OQ4: 12.13 | OR4: 24.07 | OS4: 27.16 | OT4: 0.4193 | OU4: -0.3196 | OV4: 1.341 | OW4: -237.8 | OX4: -333 | OY4: -66.67 | OZ4: 0.4402 | PA4: -0.004069 | PB4: 1.082e-05 | PC4: 0.006786 | PD4: -1.15e-05 | PE4: -5.942e-05 | PF4: 0.1399 | PG4: -0.00047 | PH4: 0.002594 | PI4: -0.08727 | PJ4: -0.4517 | PK4: 0.0004001 | PL4: 0.007062 | PM4: 0.03824 | PN4: 0.02138 | PO4: 0.1575 | PP4: 0.0006906 | PQ4: -0.007379 | PR4: 0.2385 | PS4: -0.9348 | PT4: 0.6874 | PU4: 3.497 | PV4: -0.09306 | PW4: -0.03539 | PX4: 5.34 | PY4: -2.783 | PZ4: 40.44 | QA4: -150.7 | QB4: 0.1675 | QC4: -0.0007986 | QD4: -5.198e-05 | QE4: 0.01531 | QF4: -0.1003 | QG4: -0.08352 | QH4: 8.824 | QI4: -0.04357 | QJ4: 0.02911 | QK4: 0.0008365 | QL4: -3.557e-06 | QM4: -0.001407 | QN4: 2.383e-06 | QO4: -3.245e-07 | QP4: 0.0004827 | QQ4: -0.0005078 | QR4: 0.0001503 | QS4: 0.01608 | QT4: -0.1279 | QU4: -0.0003225 | QV4: 0.00153 | QW4: 0.006639 | QX4: 0.0289 | QY4: 0.2089 | QZ4: -0.000288 | RA4: -0.001232 | RB4: 0.03186 | RC4: -0.2166 | RD4: 0.06366 | RE4: 6.01 | RF4: -0.03524 | RG4: 0.01265 | RH4: -2.889 | RI4: 0.617 | RJ4: -2.442 | RK4: -4.354 | RL4: 0.093 | RM4: -0.0006118 | RN4: 0.0002514 | RO4: 0.02451 | RP4: -0.03475 | RQ4: -0.1157 | RR4: 1.666 | RS4: -0.01703 | RT4: 0.001384 | RU4: 1.511e-05 | RV4: 7.365e-05 | RW4: -0.00184 | RX4: 0.003656 | RY4: -0.05322 | RZ4: -0.08976 | SA4: -0.007848 | SB4: 0.001749
A5: 16 | B5: -2.652 | C5: -0.0428 | D5: 0.001938 | E5: -8.285e-06 | F5: 9.031e-09 | G5: 0.08069 | H5: -0.0003161 | I5: 9.989e-07 | J5: -1.158e-09 | K5: -0.003013 | L5: -1.282e-06 | M5: 6.065e-09 | N5: 5.299e-05 | O5: -2.893e-09 | P5: -2.956e-07 | Q5: 2.954 | R5: -0.02141 | S5: 0.0005831 | T5: -1.594e-06 | U5: 0.005559 | V5: -0.0002584 | W5: 6.251e-07 | X5: -1.022e-05 | Y5: 3.164e-07 | Z5: 9.909e-07 | AA5: 0.9572 | AB5: 0.001829 | AC5: -2.16e-05 | AD5: 0.005159 | AE5: -1.513e-05 | AF5: -1.245e-05 | AG5: -0.1241 | AH5: 0.0002764 | AI5: 0.001263 | AJ5: -0.18 | AK5: -1.305 | AL5: -0.01128 | AM5: 8.376e-05 | AN5: -1.132e-07 | AO5: 0.02382 | AP5: -0.0003827 | AQ5: 2.554e-07 | AR5: 0.001454 | AS5: 2.518e-06 | AT5: -1.681e-05 | AU5: 1.872 | AV5: -0.01725 | AW5: 2.951e-05 | AX5: -0.02943 | AY5: 6.938e-05 | AZ5: 0.0002564 | BA5: 0.362 | BB5: 0.001566 | BC5: -0.00623 | BD5: -0.06136 | BE5: -0.2579 | BF5: 0.009612 | BG5: -2.863e-05 | BH5: -0.007942 | BI5: 3.098e-05 | BJ5: -2.449e-05 | BK5: -0.2421 | BL5: -0.0001902 | BM5: 0.001197 | BN5: 0.03 | BO5: 0.03407 | BP5: 5.861e-05 | BQ5: -0.0006834 | BR5: -0.004635 | BS5: 0.001055 | BT5: -1.612 | BU5: 0.05551 | BV5: -0.0006942 | BW5: 1.673e-06 | BX5: 0.06786 | BY5: 9.5e-05 | BZ5: -2.987e-07 | CA5: -0.005092 | CB5: 3.513e-07 | CC5: 4.128e-05 | CD5: -3.148 | CE5: 0.0126 | CF5: 1.992e-05 | CG5: 0.02927 | CH5: -0.0001302 | CI5: -0.0002906 | CJ5: -0.2059 | CK5: -0.0002773 | CL5: 0.004409 | CM5: 0.5595 | CN5: 6.29 | CO5: -0.03579 | CP5: 7.341e-05 | CQ5: -0.1916 | CR5: 0.0002003 | CS5: 0.001543 | CT5: -1.359 | CU5: 0.002404 | CV5: 0.0125 | CW5: 0.435 | CX5: -0.4073 | CY5: -0.0008235 | CZ5: 0.01387 | DA5: -0.1203 | DB5: 0.0792 | DC5: -4.191 | DD5: 0.1257 | DE5: -0.0003592 | DF5: -0.02767 | DG5: -0.0002062 | DH5: 0.0007707 | DI5: 0.8474 | DJ5: -0.01853 | DK5: -0.0102 | DL5: -0.3499 | DM5: 5.419 | DN5: -0.01589 | DO5: -0.03501 | DP5: 1.674 | DQ5: -1.111 | DR5: 0.08442 | DS5: 0.01573 | DT5: -0.0005767 | DU5: -0.7835 | DV5: -4.209 | DW5: 1.306 | DX5: 83.57 | DY5: -2.515 | DZ5: 0.01272 | EA5: -1.758e-05 | EB5: 2.27 | EC5: 0.006834 | ED5: -1.675e-05 | EE5: -0.03173 | EF5: -6.057e-05 | EG5: 0.0001694 | EH5: 139.3 | EI5: -2.268 | EJ5: 0.005043 | EK5: -1.792 | EL5: 0.003151 | EM5: 0.01202 | EN5: 27.16 | EO5: 0.2443 | EP5: 0.001527 | EQ5: -4.593 | ER5: -292.5 | ES5: -0.0206 | ET5: -0.0009303 | EU5: 7.466 | EV5: 0.002806 | EW5: -0.04559 | EX5: 21.14 | EY5: 0.2042 | EZ5: -1.489 | FA5: 19.45 | FB5: -10.32 | FC5: -0.01033 | FD5: 0.2091 | FE5: -6.601 | FF5: 1.542 | FG5: 866.1 | FH5: -2.595 | FI5: 0.001676 | FJ5: -17.57 | FK5: 0.03893 | FL5: 0.05972 | FM5: 202.8 | FN5: -1.283 | FO5: 1.025 | FP5: -40.24 | FQ5: 226.2 | FR5: -0.1405 | FS5: -3.154 | FT5: -12.29 | FU5: -13.29 | FV5: -673.6 | FW5: 1.468 | FX5: 5.956 | FY5: 42.02 | FZ5: 81.67 | GA5: 22.71 | GB5: -2131 | GC5: 11.31 | GD5: -0.01218 | GE5: 11.88 | GF5: -0.03135 | GG5: -0.0008473 | GH5: 1369 | GI5: -4.246 | GJ5: -2.482 | GK5: -206.7 | GL5: 25.58 | GM5: 1.33 | GN5: 0.6548 | GO5: -206.3 | GP5: -40.89 | GQ5: 947.3 | GR5: -3.793 | GS5: 3.635 | GT5: 372.4 | GU5: 373.2 | GV5: -100.2 | GW5: 542.1 | GX5: -3.298 | GY5: 0.622 | GZ5: 151.1 | HA5: 357.6 | HB5: -635 | HC5: 142.3 | HD5: -0.1841 | HE5: -0.003599 | HF5: 2.451e-05 | HG5: -4.194e-08 | HH5: 0.03468 | HI5: 0.0001166 | HJ5: -3.281e-07 | HK5: -0.001144 | HL5: 3.114e-07 | HM5: 7.439e-06 | HN5: -0.5801 | HO5: 0.001754 | HP5: -1.791e-06 | HQ5: 0.01298 | HR5: -3.096e-05 | HS5: -6.506e-05 | HT5: -0.04655 | HU5: 0.0003162 | HV5: -0.0002977 | HW5: -0.01668 | HX5: 0.8853 | HY5: -0.007033 | HZ5: -6.929e-06 | IA5: -0.0008476 | IB5: 0.000172 | IC5: -0.000246 | ID5: -0.4022 | IE5: 0.001506 | IF5: 0.002511 | IG5: 0.01727 | IH5: -0.009382 | II5: 0.0003067 | IJ5: -0.003003 | IK5: -0.009434 | IL5: 0.01991 | IM5: 1.337 | IN5: 0.004672 | IO5: -4.335e-05 | IP5: -0.01673 | IQ5: 3.156e-05 | IR5: 0.0004032 | IS5: 1.554 | IT5: -0.009931 | IU5: 0.003978 | IV5: -0.2595 | IW5: -0.5233 | IX5: -0.001388 | IY5: 0.03774 | IZ5: 1.023 | JA5: -0.4614 | JB5: 0.1601 | JC5: 0.00352 | JD5: -0.02612 | JE5: 0.4794 | JF5: -4.258 | JG5: 1.412 | JH5: 104.4 | JI5: -0.01341 | JJ5: -0.001355 | JK5: -1.047 | JL5: 0.003145 | JM5: -0.004371 | JN5: 95.35 | JO5: -0.2285 | JP5: 0.143 | JQ5: -29.85 | JR5: 137.6 | JS5: -0.1511 | JT5: -1.66 | JU5: 2.121 | JV5: -7.186 | JW5: -368.8 | JX5: 0.9836 | JY5: 3.745 | JZ5: 24.54 | KA5: 7.013 | KB5: 180.8 | KC5: -90.25 | KD5: 0.8523 | KE5: -0.1802 | KF5: 103.7 | KG5: 99.45 | KH5: -645.7 | KI5: -509.4 | KJ5: 0.01725 | KK5: 0.003204 | KL5: -1.155e-05 | KM5: -0.001368 | KN5: 7.844e-07 | KO5: 5.792e-05 | KP5: 0.298 | KQ5: -0.001754 | KR5: 0.00146 | KS5: -0.08611 | KT5: -0.3339 | KU5: 0.001515 | KV5: 0.006044 | KW5: 0.1276 | KX5: -0.05741 | KY5: 0.1645 | KZ5: 0.0001157 | LA5: -0.006922 | LB5: 0.3891 | LC5: -1.031 | LD5: 0.2425 | LE5: -22.02 | LF5: 0.07046 | LG5: 0.3588 | LH5: -1.262 | LI5: -2.751 | LJ5: 38.15 | LK5: -90.88 | LL5: 0.05635 | LM5: -0.0002114 | LN5: -0.0007954 | LO5: 0.06028 | LP5: -0.0589 | LQ5: -0.1747 | LR5: -2.156 | LS5: -0.02954 | LT5: -0.4606 | LU5: 0.01041 | LV5: -2.521e-05 | LW5: -6.466e-09 | LX5: 0.009676 | LY5: -0.0001275 | LZ5: 4.838e-07 | MA5: -0.0002516 | MB5: -6.637e-07 | MC5: 2.499e-06 | MD5: -0.4691 | ME5: 0.001643 | MF5: -1.892e-06 | MG5: 0.01041 | MH5: -7.287e-06 | MI5: -4.591e-05 | MJ5: -0.04354 | MK5: -0.0001262 | ML5: 0.0007206 | MM5: 0.00168 | MN5: 0.2177 | MO5: 0.003757 | MP5: -1.892e-06 | MQ5: -0.005585 | MR5: -3.64e-05 | MS5: 6.361e-05 | MT5: -0.217 | MU5: 0.0001817 | MV5: 0.004037 | MW5: -0.0556 | MX5: 0.0645 | MY5: -0.0002217 | MZ5: -0.00224 | NA5: 0.02618 | NB5: -0.004717 | NC5: 2.43 | ND5: -0.02564 | NE5: 4.337e-05 | NF5: 0.02098 | NG5: 7.231e-05 | NH5: -0.0002403 | NI5: 1.367 | NJ5: -0.003084 | NK5: 0.001703 | NL5: -0.376 | NM5: -0.974 | NN5: 0.002919 | NO5: 0.01547 | NP5: 0.291 | NQ5: -0.04128 | NR5: -1.932 | NS5: 0.004129 | NT5: -0.0001055 | NU5: 0.6221 | NV5: -1.737 | NW5: 0.4461 | NX5: 87.87 | NY5: -0.9254 | NZ5: 0.001867 | OA5: -0.5028 | OB5: 0.00204 | OC5: 0.000405 | OD5: 27.14 | OE5: 0.04736 | OF5: -0.123 | OG5: -7.907 | OH5: 80.93 | OI5: -0.1133 | OJ5: -0.9501 | OK5: 3.236 | OL5: -6.032 | OM5: -133.2 | ON5: 0.2362 | OO5: 0.5209 | OP5: 28.05 | OQ5: 10.83 | OR5: 24.33 | OS5: 15.54 | OT5: 0.4626 | OU5: -0.4167 | OV5: 4.901 | OW5: -230.2 | OX5: -339.5 | OY5: -63.82 | OZ5: 0.4297 | PA5: -0.003975 | PB5: 1.066e-05 | PC5: 0.006648 | PD5: -1.243e-05 | PE5: -5.682e-05 | PF5: 0.1312 | PG5: -0.0004185 | PH5: 0.002566 | PI5: -0.08822 | PJ5: -0.4467 | PK5: 0.0003552 | PL5: 0.007154 | PM5: 0.03854 | PN5: 0.02032 | PO5: 0.1291 | PP5: 0.0007174 | PQ5: -0.007112 | PR5: 0.2441 | PS5: -0.9315 | PT5: 0.6827 | PU5: 3.734 | PV5: -0.09036 | PW5: -0.02954 | PX5: 5.097 | PY5: -3.086 | PZ5: 39.72 | QA5: -154 | QB5: 0.1591 | QC5: -0.0007925 | QD5: 2.47e-05 | QE5: 0.01872 | QF5: -0.1018 | QG5: -0.08355 | QH5: 8.625 | QI5: -0.04181 | QJ5: 0.03081 | QK5: 0.0007391 | QL5: -3.306e-06 | QM5: -0.001377 | QN5: 2.093e-06 | QO5: 3.942e-07 | QP5: 0.00301 | QQ5: -0.0005136 | QR5: 0.0002332 | QS5: 0.01504 | QT5: -0.113 | QU5: -0.0003448 | QV5: 0.001347 | QW5: 0.007599 | QX5: 0.02761 | QY5: 0.1929 | QZ5: -0.0002126 | RA5: -0.00122 | RB5: 0.03463 | RC5: -0.2145 | RD5: 0.06398 | RE5: 5.822 | RF5: -0.03511 | RG5: 0.01739 | RH5: -2.806 | RI5: 0.7377 | RJ5: -2.765 | RK5: -4.236 | RL5: 0.09006 | RM5: -0.0005984 | RN5: 0.0002279 | RO5: 0.02702 | RP5: -0.0352 | RQ5: -0.116 | RR5: 1.548 | RS5: -0.01488 | RT5: 0.0007132 | RU5: 1.957e-05 | RV5: 5.636e-05 | RW5: -0.00166 | RX5: 0.003941 | RY5: -0.05431 | RZ5: -0.1473 | SA5: -0.007274 | SB5: 0.001754
A6: 18.5 | B6: -1.772 | C6: -0.08174 | D6: 0.002305 | E6: -9.45e-06 | F6: 1.024e-08 | G6: 0.05607 | H6: -9.298e-05 | I6: 3.042e-07 | J6: -9.121e-10 | K6: -0.001952 | L6: -2.944e-06 | M6: 1.093e-08 | N6: 3.481e-05 | O6: -3.574e-09 | P6: -1.965e-07 | Q6: 2.518 | R6: -0.02447 | S6: 0.0006007 | T6: -1.613e-06 | U6: 0.007851 | V6: -0.0002326 | W6: 5.37e-07 | X6: -0.0001011 | Y6: 4.441e-07 | Z6: 1.455e-06 | AA6: 1.051 | AB6: 0.001394 | AC6: -2.179e-05 | AD6: 0.004426 | AE6: -1.027e-05 | AF6: -2.178e-05 | AG6: -0.08968 | AH6: 7.351e-05 | AI6: 0.001088 | AJ6: -0.1785 | AK6: -0.907 | AL6: -0.009822 | AM6: 7.019e-05 | AN6: -9.448e-08 | AO6: -0.005034 | AP6: -0.0002647 | AQ6: 7.72e-08 | AR6: 0.001792 | AS6: 1.998e-06 | AT6: -1.755e-05 | AU6: 1.725 | AV6: -0.01554 | AW6: 2.638e-05 | AX6: -0.03117 | AY6: 6.858e-05 | AZ6: 0.0002922 | BA6: 0.4079 | BB6: 0.001619 | BC6: -0.00765 | BD6: -0.06932 | BE6: -0.3844 | BF6: 0.008933 | BG6: -2.629e-05 | BH6: -0.001433 | BI6: 2.58e-05 | BJ6: -8.919e-05 | BK6: -0.2309 | BL6: -0.0004276 | BM6: 0.001862 | BN6: 0.0358 | BO6: 0.04772 | BP6: 0.0001231 | BQ6: -0.001034 | BR6: -0.00722 | BS6: 0.000607 | BT6: -0.8856 | BU6: 0.05544 | BV6: -0.0007121 | BW6: 1.708e-06 | BX6: 0.05182 | BY6: 1.907e-05 | BZ6: -4.029e-09 | CA6: -0.004428 | CB6: 1.671e-07 | CC6: 3.585e-05 | CD6: -2.589 | CE6: 0.005565 | CF6: 3.76e-05 | CG6: 0.02554 | CH6: -0.0001204 | CI6: -0.000262 | CJ6: -0.1727 | CK6: -0.0002253 | CL6: 0.006866 | CM6: 0.5464 | CN6: 6.31 | CO6: -0.03792 | CP6: 8.023e-05 | CQ6: -0.1856 | CR6: 0.0001955 | CS6: 0.001417 | CT6: -1.484 | CU6: 0.003016 | CV6: 0.01281 | CW6: 0.5544 | CX6: -0.5625 | CY6: -0.0008487 | CZ6: 0.01676 | DA6: -0.1756 | DB6: 0.1019 | DC6: -2.989 | DD6: 0.1114 | DE6: -0.0003264 | DF6: -0.02452 | DG6: -0.0001756 | DH6: 0.0006729 | DI6: 1.113 | DJ6: -0.0188 | DK6: -0.01352 | DL6: -0.5332 | DM6: 5.689 | DN6: -0.01612 | DO6: -0.04106 | DP6: 1.358 | DQ6: -1.087 | DR6: -0.4286 | DS6: 0.01616 | DT6: 0.004331 | DU6: -0.5353 | DV6: -3.779 | DW6: 1.084 | DX6: 67.9 | DY6: -2.464 | DZ6: 0.01329 | EA6: -1.935e-05 | EB6: 3.106 | EC6: 0.001039 | ED6: -7.295e-06 | EE6: -0.03969 | EF6: -3.062e-05 | EG6: 0.0001558 | EH6: 160.6 | EI6: -2.383 | EJ6: 0.005134 | EK6: -1.991 | EL6: 0.004328 | EM6: 0.01203 | EN6: 20.49 | EO6: 0.244 | EP6: 0.02217 | EQ6: -2.895 | ER6: -316.6 | ES6: 0.1092 | ET6: -0.0007879 | EU6: 7.892 | EV6: -0.0004432 | EW6: -0.03999 | EX6: 27.15 | EY6: 0.1986 | EZ6: -1.638 | FA6: 18.56 | FB6: -8.812 | FC6: -0.01283 | FD6: 0.1867 | FE6: -6.159 | FF6: 1.297 | FG6: 862.9 | FH6: -2.712 | FI6: 0.002116 | FJ6: -17.29 | FK6: 0.04018 | FL6: 0.05184 | FM6: 177 | FN6: -1.196 | FO6: 0.8714 | FP6: -32.59 | FQ6: 150.1 | FR6: -0.01379 | FS6: -2.958 | FT6: 2.391 | FU6: -8.671 | FV6: -565.5 | FW6: 1.116 | FX6: 5.589 | FY6: 43.01 | FZ6: 35.9 | GA6: 9.92 | GB6: -2121 | GC6: 11.66 | GD6: -0.01312 | GE6: 15.11 | GF6: -0.04314 | GG6: 0.006749 | GH6: 1320 | GI6: -4.037 | GJ6: -3.258 | GK6: -204.3 | GL6: 78.86 | GM6: 1.381 | GN6: -0.5926 | GO6: -217.8 | GP6: -40.18 | GQ6: 1377 | GR6: -5.809 | GS6: 6.459 | GT6: 285.3 | GU6: 454.8 | GV6: 4.636 | GW6: 269.2 | GX6: -2.78 | GY6: 0.2974 | GZ6: 220.8 | HA6: 394.2 | HB6: -521.9 | HC6: 153.2 | HD6: -0.04181 | HE6: -0.002504 | HF6: 1.795e-05 | HG6: -3.367e-08 | HH6: 0.02059 | HI6: 0.0001009 | HJ6: -2.591e-07 | HK6: -0.0008086 | HL6: 2.179e-07 | HM6: 5.417e-06 | HN6: -0.3948 | HO6: 0.000138 | HP6: 2.011e-06 | HQ6: 0.01181 | HR6: -2.973e-05 | HS6: -6.625e-05 | HT6: -0.01198 | HU6: 0.0002123 | HV6: 0.0002624 | HW6: -0.02519 | HX6: 0.8669 | HY6: -0.005248 | HZ6: -9.425e-06 | IA6: -0.008514 | IB6: 0.00016 | IC6: -0.0001379 | ID6: -0.4313 | IE6: 0.00157 | IF6: 0.002074 | IG6: 0.04229 | IH6: -0.0159 | II6: 0.0002718 | IJ6: -0.002833 | IK6: -0.02012 | IL6: 0.02383 | IM6: 1.294 | IN6: 0.003321 | IO6: -3.789e-05 | IP6: -0.01169 | IQ6: 2.673e-05 | IR6: 0.0003604 | IS6: 1.587 | IT6: -0.009618 | IU6: 0.002694 | IV6: -0.2935 | IW6: -0.3959 | IX6: -0.001844 | IY6: 0.035 | IZ6: 0.8836 | JA6: -0.4134 | JB6: -0.3086 | JC6: 0.004187 | JD6: -0.02072 | JE6: 0.5422 | JF6: -4.027 | JG6: 1.17 | JH6: 93.67 | JI6: 0.04501 | JJ6: -0.001334 | JK6: -1.009 | JL6: 0.002138 | JM6: -0.002471 | JN6: 89.16 | JO6: -0.2086 | JP6: 0.1181 | JQ6: -27.64 | JR6: 119.9 | JS6: -0.1082 | JT6: -1.553 | JU6: 3.214 | JV6: -6.177 | JW6: -330.1 | JX6: 0.8497 | JY6: 3.782 | JZ6: 28.25 | KA6: -9.572 | KB6: 146.8 | KC6: -16.04 | KD6: 0.4721 | KE6: 0.1981 | KF6: 81.44 | KG6: 103.4 | KH6: -674.6 | KI6: -433.4 | KJ6: -0.03513 | KK6: 0.003414 | KL6: -1.152e-05 | KM6: 3.083e-07 | KN6: -2.502e-06 | KO6: 4.773e-05 | KP6: 0.2753 | KQ6: -0.001718 | KR6: 0.001494 | KS6: -0.08165 | KT6: -0.3549 | KU6: 0.001418 | KV6: 0.006337 | KW6: 0.1082 | KX6: -0.04774 | KY6: 0.1229 | KZ6: 0.0002927 | LA6: -0.006472 | LB6: 0.3786 | LC6: -0.9938 | LD6: 0.2146 | LE6: -19.68 | LF6: 0.06395 | LG6: 0.3763 | LH6: -0.6291 | LI6: -4.187 | LJ6: 29.86 | LK6: -103 | LL6: 0.04714 | LM6: -0.0001987 | LN6: -0.0006487 | LO6: 0.05913 | LP6: -0.05604 | LQ6: -0.1676 | LR6: -2.449 | LS6: -0.02625 | LT6: -0.5305 | LU6: 0.01192 | LV6: -3.153e-05 | LW6: 3.264e-11 | LX6: 0.009768 | LY6: -0.000151 | LZ6: 5.536e-07 | MA6: -0.0002029 | MB6: -7.168e-07 | MC6: 2.159e-06 | MD6: -0.4394 | ME6: 0.001567 | MF6: -2.413e-06 | MG6: 0.009955 | MH6: -2.868e-06 | MI6: -4.623e-05 | MJ6: -0.03424 | MK6: -0.0001637 | ML6: 0.0005379 | MM6: 0.003692 | MN6: 0.03489 | MO6: 0.00361 | MP6: -2.087e-07 | MQ6: -0.0003452 | MR6: -4.583e-05 | MS6: 3.539e-05 | MT6: -0.2209 | MU6: 0.0002955 | MV6: 0.003789 | MW6: -0.05799 | MX6: 0.06765 | MY6: -0.0002354 | MZ6: -0.001918 | NA6: 0.02686 | NB6: -0.005628 | NC6: 2.244 | ND6: -0.02269 | NE6: 3.709e-05 | NF6: 0.0216 | NG6: 6.323e-05 | NH6: -0.0002473 | NI6: 1.278 | NJ6: -0.002943 | NK6: 0.001267 | NL6: -0.353 | NM6: -0.9929 | NN6: 0.00256 | NO6: 0.01527 | NP6: 0.2942 | NQ6: -0.05317 | NR6: -1.807 | NS6: 0.004169 | NT6: -0.0005546 | NU6: 0.5445 | NV6: -1.585 | NW6: 0.4335 | NX6: 82.8 | NY6: -0.7839 | NZ6: 0.001503 | OA6: -0.69 | OB6: 0.002185 | OC6: 0.001435 | OD6: 27.39 | OE6: 0.02971 | OF6: -0.09604 | OG6: -7.554 | OH6: 79.59 | OI6: -0.1111 | OJ6: -0.9369 | OK6: 2.619 | OL6: -5.681 | OM6: -111.8 | ON6: 0.1749 | OO6: 0.4712 | OP6: 28.14 | OQ6: 6.93 | OR6: 24.72 | OS6: -28.57 | OT6: 0.6121 | OU6: -0.632 | OV6: 16.29 | OW6: -206.6 | OX6: -353.1 | OY6: -59.91 | OZ6: 0.4083 | PA6: -0.003759 | PB6: 1.022e-05 | PC6: 0.005891 | PD6: -1.432e-05 | PE6: -4.538e-05 | PF6: 0.1166 | PG6: -0.0002972 | PH6: 0.00237 | PI6: -0.09154 | PJ6: -0.4092 | PK6: 0.0002253 | PL6: 0.007051 | PM6: 0.03955 | PN6: 0.01522 | PO6: 0.0444 | PP6: 0.0007962 | PQ6: -0.006385 | PR6: 0.2545 | PS6: -0.9115 | PT6: 0.6648 | PU6: 4.238 | PV6: -0.08514 | PW6: -0.00754 | PX6: 4.477 | PY6: -3.894 | PZ6: 37.31 | QA6: -158.6 | QB6: 0.1362 | QC6: -0.0007606 | QD6: 0.0001613 | QE6: 0.02625 | QF6: -0.105 | QG6: -0.08286 | QH6: 8.1 | QI6: -0.03694 | QJ6: 0.03209 | QK6: 0.0005167 | QL6: -2.711e-06 | QM6: -0.001193 | QN6: 1.29e-06 | QO6: 1.367e-06 | QP6: 0.009402 | QQ6: -0.0005289 | QR6: 0.0004667 | QS6: 0.01162 | QT6: -0.06683 | QU6: -0.0003931 | QV6: 0.0007431 | QW6: 0.009666 | QX6: 0.02369 | QY6: 0.1457 | QZ6: 2.412e-06 | RA6: -0.001267 | RB6: 0.04351 | RC6: -0.2052 | RD6: 0.06709 | RE6: 5.574 | RF6: -0.03422 | RG6: 0.02711 | RH6: -2.659 | RI6: 0.9642 | RJ6: -3.497 | RK6: -3.593 | RL6: 0.08158 | RM6: -0.0005441 | RN6: 0.0001229 | RO6: 0.03313 | RP6: -0.03606 | RQ6: -0.1127 | RR6: 1.208 | RS6: -0.009262 | RT6: 0.0008101 | RU6: 2.481e-05 | RV6: 1.431e-05 | RW6: -0.001579 | RX6: 0.004224 | RY6: -0.05496 | RZ6: -0.2865 | SA6: -0.005884 | SB6: 0.001767
A7: 19.5 | B7: -1.532 | C7: -0.09156 | D7: 0.002396 | E7: -9.733e-06 | F7: 1.053e-08 | G7: 0.04975 | H7: -4.344e-05 | I7: 1.579e-07 | J7: -8.507e-10 | K7: -0.001702 | L7: -3.325e-06 | M7: 1.179e-08 | N7: 3.083e-05 | O7: -3.101e-09 | P7: -1.759e-07 | Q7: 2.408 | R7: -0.02534 | S7: 0.0006056 | T7: -1.619e-06 | U7: 0.007718 | V7: -0.0002256 | W7: 5.16e-07 | X7: -9.84e-05 | Y7: 4.599e-07 | Z7: 1.384e-06 | AA7: 1.075 | AB7: 0.001279 | AC7: -2.186e-05 | AD7: 0.004255 | AE7: -9.126e-06 | AF7: -2.331e-05 | AG7: -0.08028 | AH7: 2.917e-05 | AI7: 0.001032 | AJ7: -0.1786 | AK7: -0.8361 | AL7: -0.00933 | AM7: 6.629e-05 | AN7: -8.945e-08 | AO7: -0.01024 | AP7: -0.0002389 | AQ7: 4.656e-08 | AR7: 0.00183 | AS7: 1.849e-06 | AT7: -1.741e-05 | AU7: 1.676 | AV7: -0.01503 | AW7: 2.545e-05 | AX7: -0.03157 | AY7: 6.781e-05 | AZ7: 0.0003015 | BA7: 0.4146 | BB7: 0.001624 | BC7: -0.007955 | BD7: -0.06958 | BE7: -0.4277 | BF7: 0.008739 | BG7: -2.574e-05 | BH7: 0.0006765 | BI7: 2.515e-05 | BJ7: -0.0001081 | BK7: -0.2218 | BL7: -0.0004812 | BM7: 0.001947 | BN7: 0.03624 | BO7: 0.05063 | BP7: 0.0001382 | BQ7: -0.001127 | BR7: -0.007819 | BS7: 0.0005077 | BT7: -0.6948 | BU7: 0.05519 | BV7: -0.000715 | BW7: 1.713e-06 | BX7: 0.04753 | BY7: 1.229e-05 | BZ7: 3.531e-08 | CA7: -0.004264 | CB7: 1.427e-07 | CC7: 3.447e-05 | CD7: -2.454 | CE7: 0.00404 | CF7: 4.128e-05 | CG7: 0.02447 | CH7: -0.0001165 | CI7: -0.0002585 | CJ7: -0.1679 | CK7: -0.0002262 | CL7: 0.007475 | CM7: 0.543 | CN7: 6.271 | CO7: -0.03863 | CP7: 8.254e-05 | CQ7: -0.1817 | CR7: 0.0001938 | CS7: 0.001363 | CT7: -1.505 | CU7: 0.003134 | CV7: 0.01298 | CW7: 0.5812 | CX7: -0.601 | CY7: -0.0008631 | CZ7: 0.01739 | DA7: -0.1877 | DB7: 0.1074 | DC7: -2.68 | DD7: 0.1075 | DE7: -0.0003177 | DF7: -0.02421 | DG7: -0.0001674 | DH7: 0.0006571 | DI7: 1.18 | DJ7: -0.01876 | DK7: -0.01426 | DL7: -0.5806 | DM7: 5.705 | DN7: -0.01595 | DO7: -0.04225 | DP7: 1.274 | DQ7: -1.078 | DR7: -0.5824 | DS7: 0.01612 | DT7: 0.005835 | DU7: -0.4672 | DV7: -3.653 | DW7: 1.023 | DX7: 64.8 | DY7: -2.451 | DZ7: 0.01339 | EA7: -1.968e-05 | EB7: 3.222 | EC7: 0.0002722 | ED7: -6.096e-06 | EE7: -0.04147 | EF7: -2.384e-05 | EG7: 0.0001521 | EH7: 164.2 | EI7: -2.394 | EJ7: 0.005118 | EK7: -2.035 | EL7: 0.004572 | EM7: 0.01206 | EN7: 19.51 | EO7: 0.2424 | EP7: 0.03032 | EQ7: -2.675 | ER7: -319.5 | ES7: 0.1522 | ET7: -0.00082 | EU7: 7.896 | EV7: -0.0009191 | EW7: -0.03886 | EX7: 27.75 | EY7: 0.195 | EZ7: -1.646 | FA7: 18.35 | FB7: -8.634 | FC7: -0.01233 | FD7: 0.182 | FE7: -6.127 | FF7: 1.262 | FG7: 864.8 | FH7: -2.789 | FI7: 0.00234 | FJ7: -17.14 | FK7: 0.0401 | FL7: 0.05019 | FM7: 172.2 | FN7: -1.17 | FO7: 0.8325 | FP7: -31.5 | FQ7: 132.5 | FR7: 0.0152 | FS7: -2.874 | FT7: 4.804 | FU7: -7.52 | FV7: -539.6 | FW7: 1.037 | FX7: 5.452 | FY7: 44.33 | FZ7: 27.04 | GA7: 6.427 | GB7: -2083 | GC7: 11.49 | GD7: -0.01291 | GE7: 15.94 | GF7: -0.04607 | GG7: 0.00802 | GH7: 1293 | GI7: -3.939 | GJ7: -3.435 | GK7: -202 | GL7: 90.14 | GM7: 1.39 | GN7: -0.9051 | GO7: -220.3 | GP7: -39.4 | GQ7: 1445 | GR7: -6.172 | GS7: 7.097 | GT7: 265.4 | GU7: 469.5 | GV7: 35.23 | GW7: 206.7 | GX7: -2.634 | GY7: 0.1974 | GZ7: 235 | HA7: 411.8 | HB7: -501.3 | HC7: 155.4 | HD7: -0.01091 | HE7: -0.002267 | HF7: 1.637e-05 | HG7: -3.125e-08 | HH7: 0.01753 | HI7: 9.68e-05 | HJ7: -2.437e-07 | HK7: -0.0007339 | HL7: 2.006e-07 | HM7: 4.954e-06 | HN7: -0.3561 | HO7: -0.0001185 | HP7: 2.521e-06 | HQ7: 0.0114 | HR7: -2.886e-05 | HS7: -6.561e-05 | HT7: -0.004221 | HU7: 0.0001872 | HV7: 0.0003602 | HW7: -0.0271 | HX7: 0.8607 | HY7: -0.004883 | HZ7: -9.819e-06 | IA7: -0.01008 | IB7: 0.0001571 | IC7: -0.0001161 | ID7: -0.4372 | IE7: 0.001581 | IF7: 0.00198 | IG7: 0.04857 | IH7: -0.01676 | II7: 0.0002585 | IJ7: -0.002771 | IK7: -0.02282 | IL7: 0.02461 | IM7: 1.262 | IN7: 0.003086 | IO7: -3.65e-05 | IP7: -0.01039 | IQ7: 2.382e-05 | IR7: 0.0003498 | IS7: 1.585 | IT7: -0.009505 | IU7: 0.002475 | IV7: -0.2991 | IW7: -0.371 | IX7: -0.001878 | IY7: 0.03416 | IZ7: 0.8463 | JA7: -0.4012 | JB7: -0.4194 | JC7: 0.004288 | JD7: -0.01927 | JE7: 0.5565 | JF7: -3.948 | JG7: 1.119 | JH7: 91.19 | JI7: 0.04622 | JJ7: -0.001293 | JK7: -0.9802 | JL7: 0.001833 | JM7: -0.00186 | JN7: 88.23 | JO7: -0.2034 | JP7: 0.1035 | JQ7: -27.22 | JR7: 114.4 | JS7: -0.09498 | JT7: -1.511 | JU7: 3.317 | JV7: -5.919 | JW7: -319.3 | JX7: 0.8153 | JY7: 3.742 | JZ7: 29.52 | KA7: -12.22 | KB7: 138.2 | KC7: -4.624 | KD7: 0.3976 | KE7: 0.2778 | KF7: 76.76 | KG7: 103 | KH7: -667.6 | KI7: -415.8 | KJ7: -0.0469 | KK7: 0.00342 | KL7: -1.135e-05 | KM7: 0.0002956 | KN7: -3.404e-06 | KO7: 4.548e-05 | KP7: 0.2691 | KQ7: -0.001703 | KR7: 0.001498 | KS7: -0.07998 | KT7: -0.3575 | KU7: 0.001394 | KV7: 0.00636 | KW7: 0.1031 | KX7: -0.04552 | KY7: 0.1123 | KZ7: 0.0003308 | LA7: -0.006299 | LB7: 0.3744 | LC7: -0.9787 | LD7: 0.2113 | LE7: -18.66 | LF7: 0.06196 | LG7: 0.3741 | LH7: -0.5543 | LI7: -4.326 | LJ7: 27.75 | LK7: -103.7 | LL7: 0.04516 | LM7: -0.0001962 | LN7: -0.0006059 | LO7: 0.05848 | LP7: -0.05511 | LQ7: -0.1645 | LR7: -2.503 | LS7: -0.02532 | LT7: -0.5431 | LU7: 0.01222 | LV7: -3.286e-05 | LW7: 1.66e-09 | LX7: 0.009719 | LY7: -0.0001566 | LZ7: 5.685e-07 | MA7: -0.0001898 | MB7: -7.226e-07 | MC7: 2.064e-06 | MD7: -0.4329 | ME7: 0.001609 | MF7: -2.716e-06 | MG7: 0.009855 | MH7: -1.846e-06 | MI7: -4.651e-05 | MJ7: -0.03426 | MK7: -0.0001655 | ML7: 0.0004938 | MM7: 0.004135 | MN7: 0.001845 | MO7: 0.003539 | MP7: 2.392e-07 | MQ7: 0.0005251 | MR7: -4.762e-05 | MS7: 3.19e-05 | MT7: -0.2227 | MU7: 0.0003188 | MV7: 0.003775 | MW7: -0.05841 | MX7: 0.0686 | MY7: -0.0002361 | MZ7: -0.001864 | NA7: 0.02682 | NB7: -0.005707 | NC7: 2.174 | ND7: -0.02169 | NE7: 3.5e-05 | NF7: 0.02177 | NG7: 5.955e-05 | NH7: -0.0002475 | NI7: 1.252 | NJ7: -0.002915 | NK7: 0.001146 | NL7: -0.3451 | NM7: -0.9977 | NN7: 0.002456 | NO7: 0.01527 | NP7: 0.2934 | NQ7: -0.0556 | NR7: -1.768 | NS7: 0.004205 | NT7: -0.0007446 | NU7: 0.5193 | NV7: -1.546 | NW7: 0.4357 | NX7: 80.89 | NY7: -0.7465 | NZ7: 0.001412 | OA7: -0.7347 | OB7: 0.00224 | OC7: 0.001624 | OD7: 27.09 | OE7: 0.02638 | OF7: -0.09013 | OG7: -7.364 | OH7: 79.08 | OI7: -0.1092 | OJ7: -0.9272 | OK7: 2.308 | OL7: -5.595 | OM7: -104.6 | ON7: 0.1559 | OO7: 0.4527 | OP7: 27.67 | OQ7: 6.348 | OR7: 25.25 | OS7: -31.73 | OT7: 0.6212 | OU7: -0.6639 | OV7: 17.53 | OW7: -202.3 | OX7: -353.4 | OY7: -58.86 | OZ7: 0.4044 | PA7: -0.003686 | PB7: 1.002e-05 | PC7: 0.005637 | PD7: -1.463e-05 | PE7: -4.228e-05 | PF7: 0.1136 | PG7: -0.0002733 | PH7: 0.002331 | PI7: -0.09222 | PJ7: -0.4009 | PK7: 0.0001972 | PL7: 0.007014 | PM7: 0.03966 | PN7: 0.01398 | PO7: 0.02525 | PP7: 0.0008111 | PQ7: -0.006244 | PR7: 0.256 | PS7: -0.9064 | PT7: 0.6589 | PU7: 4.747 | PV7: -0.08523 | PW7: -0.0009769 | PX7: 4.256 | PY7: -3.951 | PZ7: 36.5 | QA7: -159.5 | QB7: 0.13 | QC7: -0.0007493 | QD7: 0.0001872 | QE7: 0.02787 | QF7: -0.1057 | QG7: -0.08289 | QH7: 7.963 | QI7: -0.03582 | QJ7: 0.03399 | QK7: 0.0004512 | QL7: -2.54e-06 | QM7: -0.001177 | QN7: 1.133e-06 | QO7: 1.761e-06 | QP7: 0.011 | QQ7: -0.000529 | QR7: 0.000528 | QS7: 0.01061 | QT7: -0.05562 | QU7: -0.0004021 | QV7: 0.0006047 | QW7: 0.009951 | QX7: 0.02269 | QY7: 0.1373 | QZ7: 4.346e-05 | RA7: -0.001326 | RB7: 0.04652 | RC7: -0.202 | RD7: 0.0668 | RE7: 5.645 | RF7: -0.03418 | RG7: 0.02913 | RH7: -2.66 | RI7: 1.02 | RJ7: -3.575 | RK7: -3.557 | RL7: 0.07934 | RM7: -0.0005291 | RN7: 9.578e-05 | RO7: 0.03476 | RP7: -0.03588 | RQ7: -0.1115 | RR7: 1.149 | RS7: -0.008013 | RT7: 0.000366 | RU7: 2.63e-05 | RV7: 1.036e-05 | RW7: -0.001461 | RX7: 0.004245 | RY7: -0.05452 | RZ7: -0.3157 | SA7: -0.005571 | SB7: 0.001758
A8: 24 | B8: -0.2454 | C8: -0.1419 | D8: 0.002856 | E8: -1.118e-05 | F8: 1.202e-08 | G8: 0.02481 | H8: 0.0001181 | I8: -3.396e-07 | J8: -4.964e-10 | K8: -0.0007665 | L8: -4.196e-06 | M8: 1.313e-08 | N8: 1.598e-05 | O8: -8.92e-10 | P8: -9.953e-08 | Q8: 1.929 | R8: -0.02906 | S8: 0.0006232 | T8: -1.631e-06 | U8: 0.005467 | V8: -0.0001951 | W8: 4.347e-07 | X8: -4.326e-05 | Y8: 4.712e-07 | Z8: 8.289e-07 | AA8: 1.156 | AB8: 0.000662 | AC8: -2.177e-05 | AD8: 0.003312 | AE8: -4.529e-06 | AF8: -2.333e-05 | AG8: -0.03561 | AH8: -0.0001651 | AI8: 0.0007706 | AJ8: -0.176 | AK8: -0.6389 | AL8: -0.00719 | AM8: 5.189e-05 | AN8: -7.4e-08 | AO8: -0.02379 | AP8: -0.0001476 | AQ8: -2.531e-08 | AR8: 0.001792 | AS8: 1.187e-06 | AT8: -1.543e-05 | AU8: 1.457 | AV8: -0.01327 | AW8: 2.266e-05 | AX8: -0.03103 | AY8: 6.216e-05 | AZ8: 0.0003179 | BA8: 0.4431 | BB8: 0.001592 | BC8: -0.008794 | BD8: -0.07084 | BE8: -0.6288 | BF8: 0.008136 | BG8: -2.433e-05 | BH8: 0.008938 | BI8: 2.431e-05 | BJ8: -0.0001733 | BK8: -0.1693 | BL8: -0.0006714 | BM8: 0.001924 | BN8: 0.03578 | BO8: 0.06066 | BP8: 0.0001967 | BQ8: -0.001431 | BR8: -0.01021 | BS8: -0.000197 | BT8: 0.004174 | BU8: 0.05571 | BV8: -0.0007358 | BW8: 1.748e-06 | BX8: 0.03307 | BY8: -2.513e-05 | BZ8: 1.985e-07 | CA8: -0.003528 | CB8: 1.42e-07 | CC8: 2.814e-05 | CD8: -2.144 | CE8: 0.0009159 | CF8: 4.829e-05 | CG8: 0.02054 | CH8: -9.393e-05 | CI8: -0.0002474 | CJ8: -0.2182 | CK8: -0.0001745 | CL8: 0.009643 | CM8: 0.5325 | CN8: 5.667 | CO8: -0.04098 | CP8: 9.368e-05 | CQ8: -0.1535 | CR8: 0.0001697 | CS8: 0.001066 | CT8: -1.626 | CU8: 0.003423 | CV8: 0.01482 | CW8: 0.6947 | CX8: -0.6382 | CY8: -0.0009997 | CZ8: 0.01766 | DA8: -0.229 | DB8: 0.1256 | DC8: -0.9046 | DD8: 0.08569 | DE8: -0.0002672 | DF8: -0.02719 | DG8: -0.0001273 | DH8: 0.0006201 | DI8: 1.509 | DJ8: -0.01821 | DK8: -0.01642 | DL8: -0.8282 | DM8: 5.411 | DN8: -0.01426 | DO8: -0.04207 | DP8: 0.7943 | DQ8: -0.9836 | DR8: -1.268 | DS8: 0.01559 | DT8: 0.009897 | DU8: -0.06476 | DV8: -2.986 | DW8: 0.6469 | DX8: 49.6 | DY8: -2.334 | DZ8: 0.01339 | EA8: -2.039e-05 | EB8: 3.299 | EC8: -0.0002553 | ED8: -5.381e-06 | EE8: -0.04642 | EF8: -4.855e-06 | EG8: 0.0001426 | EH8: 172 | EI8: -2.365 | EJ8: 0.0049 | EK8: -2.175 | EL8: 0.005357 | EM8: 0.01205 | EN8: 19.09 | EO8: 0.2216 | EP8: 0.06437 | EQ8: -2.537 | ER8: -309.4 | ES8: 0.2676 | ET8: -0.0008691 | EU8: 7.531 | EV8: -0.002516 | EW8: -0.03343 | EX8: 26.77 | EY8: 0.1811 | EZ8: -1.579 | FA8: 16.5 | FB8: -8.074 | FC8: -0.009792 | FD8: 0.1544 | FE8: -5.491 | FF8: 1.078 | FG8: 869.5 | FH8: -3.287 | FI8: 0.003827 | FJ8: -15.88 | FK8: 0.0378 | FL8: 0.04347 | FM8: 152.2 | FN8: -1.035 | FO8: 0.676 | FP8: -27.82 | FQ8: 41.13 | FR8: 0.1234 | FS8: -2.258 | FT8: 17.54 | FU8: -3.001 | FV8: -418.7 | FW8: 0.6968 | FX8: 4.616 | FY8: 53.55 | FZ8: -5.93 | GA8: -10.83 | GB8: -1698 | GC8: 9.441 | GD8: -0.01011 | GE8: 18.59 | GF8: -0.05542 | GG8: 0.0107 | GH8: 1082 | GI8: -3.244 | GJ8: -4 | GK8: -178.5 | GL8: 181.9 | GM8: 1.157 | GN8: -2.279 | GO8: -217.7 | GP8: -39.51 | GQ8: 1607 | GR8: -7.15 | GS8: 9.174 | GT8: 175.4 | GU8: 533 | GV8: 148.4 | GW8: -45.66 | GX8: -1.96 | GY8: -0.1945 | GZ8: 277.2 | HA8: 429.9 | HB8: -386.9 | HC8: 158.6 | HD8: 0.09968 | HE8: -0.001116 | HF8: 1.065e-05 | HG8: -2.449e-08 | HH8: 0.003837 | HI8: 6.266e-05 | HJ8: -1.391e-07 | HK8: -0.000365 | HL8: 1.327e-07 | HM8: 2.635e-06 | HN8: -0.2254 | HO8: -0.0008976 | HP8: 3.732e-06 | HQ8: 0.0101 | HR8: -2.326e-05 | HS8: -6.724e-05 | HT8: 0.02763 | HU8: 6.419e-05 | HV8: 0.0006295 | HW8: -0.03165 | HX8: 0.8725 | HY8: -0.003882 | HZ8: -9.873e-06 | IA8: -0.01646 | IB8: 0.0001438 | IC8: -3.186e-05 | ID8: -0.4525 | IE8: 0.001589 | IF8: 0.001618 | IG8: 0.07468 | IH8: -0.01518 | II8: 0.0001816 | IJ8: -0.002424 | IK8: -0.03396 | IL8: 0.0269 | IM8: 1.14 | IN8: 0.001692 | IO8: -2.819e-05 | IP8: -0.004239 | IQ8: 7.238e-06 | IR8: 0.0002926 | IS8: 1.514 | IT8: -0.008677 | IU8: 0.001836 | IV8: -0.3307 | IW8: -0.178 | IX8: -0.001919 | IY8: 0.02948 | IZ8: 0.6354 | JA8: -0.3452 | JB8: -0.9673 | JC8: 0.004282 | JD8: -0.01091 | JE8: 0.6538 | JF8: -3.453 | JG8: 0.7937 | JH8: 83.76 | JI8: -0.01914 | JJ8: -0.0009572 | JK8: -0.8153 | JL8: 0.000689 | JM8: 0.0005029 | JN8: 84.62 | JO8: -0.1795 | JP8: 0.02598 | JQ8: -25.23 | JR8: 81.14 | JS8: -0.03303 | JT8: -1.225 | JU8: 4.415 | JV8: -4.514 | JW8: -262.2 | JX8: 0.6601 | JY8: 3.334 | JZ8: 35.05 | KA8: -19.61 | KB8: 94.25 | KC8: 20.17 | KD8: 0.1291 | KE8: 0.6176 | KF8: 57.05 | KG8: 100.6 | KH8: -597.8 | KI8: -318.8 | KJ8: -0.07803 | KK8: 0.003187 | KL8: -1.006e-05 | KM8: 0.001664 | KN8: -6.189e-06 | KO8: 3.249e-05 | KP8: 0.24 | KQ8: -0.001568 | KR8: 0.001443 | KS8: -0.07468 | KT8: -0.3386 | KU8: 0.001246 | KV8: 0.006144 | KW8: 0.07386 | KX8: -0.03717 | KY8: 0.04646 | KZ8: 0.0003385 | LA8: -0.005027 | LB8: 0.3621 | LC8: -0.8847 | LD8: 0.2013 | LE8: -13.84 | LF8: 0.05487 | LG8: 0.3417 | LH8: -0.1825 | LI8: -4.169 | LJ8: 16.24 | LK8: -100.1 | LL8: 0.03824 | LM8: -0.0001899 | LN8: -0.0004216 | LO8: 0.05368 | LP8: -0.05244 | LQ8: -0.1389 | LR8: -2.796 | LS8: -0.02096 | LT8: -0.6108 | LU8: 0.01378 | LV8: -3.932e-05 | LW8: 9.016e-09 | LX8: 0.008686 | LY8: -0.000186 | LZ8: 6.375e-07 | MA8: -0.0001 | MB8: -7.204e-07 | MC8: 1.42e-06 | MD8: -0.4049 | ME8: 0.001685 | MF8: -3.589e-06 | MG8: 0.009299 | MH8: 1.922e-06 | MI8: -4.655e-05 | MJ8: -0.03305 | MK8: -0.0001696 | ML8: 0.0002921 | MM8: 0.006753 | MN8: -0.03113 | MO8: 0.002711 | MP8: 2.847e-06 | MQ8: 0.001638 | MR8: -5.177e-05 | MS8: 3.316e-05 | MT8: -0.2126 | MU8: 0.0004156 | MV8: 0.003708 | MW8: -0.06255 | MX8: 0.05273 | MY8: -0.0002117 | MZ8: -0.001386 | NA8: 0.02629 | NB8: -0.005028 | NC8: 1.759 | ND8: -0.01599 | NE8: 2.319e-05 | NF8: 0.02234 | NG8: 4.176e-05 | NH8: -0.0002429 | NI8: 1.105 | NJ8: -0.002699 | NK8: 6.462e-05 | NL8: -0.2993 | NM8: -0.8522 | NN8: 0.001798 | NO8: 0.01307 | NP8: 0.2909 | NQ8: -0.08001 | NR8: -1.546 | NS8: 0.00405 | NT8: -0.0008361 | NU8: 0.4023 | NV8: -1.381 | NW8: 0.4122 | NX8: 72.69 | NY8: -0.5987 | NZ8: 0.001056 | OA8: -0.8837 | OB8: 0.00249 | OC8: 0.001932 | OD8: 25 | OE8: 0.01436 | OF8: -0.06164 | OG8: -6.568 | OH8: 69.33 | OI8: -0.08472 | OJ8: -0.8219 | OK8: 1.307 | OL8: -4.912 | OM8: -68.13 | ON8: 0.08179 | OO8: 0.2908 | OP8: 24.01 | OQ8: 3.348 | OR8: 27.02 | OS8: -37.45 | OT8: 0.6021 | OU8: -0.6591 | OV8: 19.76 | OW8: -179.6 | OX8: -335.9 | OY8: -56.39 | OZ8: 0.4194 | PA8: -0.003589 | PB8: 9.465e-06 | PC8: 0.004142 | PD8: -1.438e-05 | PE8: -2.712e-05 | PF8: 0.1095 | PG8: -0.000185 | PH8: 0.002014 | PI8: -0.09417 | PJ8: -0.3408 | PK8: 7.02e-05 | PL8: 0.006436 | PM8: 0.04139 | PN8: 0.006041 | PO8: -0.03455 | PP8: 0.0008207 | PQ8: -0.005938 | PR8: 0.2628 | PS8: -0.8971 | PT8: 0.595 | PU8: 5.171 | PV8: -0.07841 | PW8: 0.02219 | PX8: 3.684 | PY8: -3.86 | PZ8: 31.66 | QA8: -155.7 | QB8: 0.09967 | QC8: -0.0006633 | QD8: 0.0002346 | QE8: 0.03329 | QF8: -0.1117 | QG8: -0.09032 | QH8: 7.241 | QI8: -0.03185 | QJ8: 0.05471 | QK8: 0.0001982 | QL8: -1.958e-06 | QM8: -0.001138 | QN8: 8.227e-07 | QO8: 2.317e-06 | QP8: 0.01875 | QQ8: -0.0005258 | QR8: 0.0007565 | QS8: 0.005006 | QT8: -0.008801 | QU8: -0.0004263 | QV8: 2.042e-05 | QW8: 0.01053 | QX8: 0.01789 | QY8: 0.09821 | QZ8: 0.0002567 | RA8: -0.001685 | RB8: 0.06347 | RC8: -0.1872 | RD8: 0.05584 | RE8: 6.025 | RF8: -0.03233 | RG8: 0.03344 | RH8: -2.65 | RI8: 1.22 | RJ8: -3.805 | RK8: -2.89 | RL8: 0.0608 | RM8: -0.0004252 | RN8: -9.616e-07 | RO8: 0.04031 | RP8: -0.03466 | RQ8: -0.1063 | RR8: 0.8073 | RS8: -0.003324 | RT8: -0.002989 | RU8: 3.204e-05 | RV8: 1.697e-05 | RW8: -0.001002 | RX8: 0.004308 | RY8: -0.05183 | RZ8: -0.4184 | SA8: -0.00404 | SB8: 0.001743
A9: 48 | B9: 3.771 | C9: -0.2486 | D9: 0.003559 | E9: -1.254e-05 | F9: 1.255e-08 | G9: 0.001285 | H9: 0.000111 | I9: -2.802e-07 | J9: -1.53e-10 | K9: 2.909e-05 | L9: -1.759e-06 | M9: 5.321e-09 | N9: 2.789e-07 | O9: -1.39e-09 | P9: -5.598e-09 | Q9: 0.7475 | R9: -0.04377 | S9: 0.0006865 | T9: -1.68e-06 | U9: 0.00551 | V9: -9.142e-05 | W9: 1.705e-07 | X9: -4.237e-05 | Y9: 3.24e-07 | Z9: 3.45e-07 | AA9: 0.8439 | AB9: 0.0007671 | AC9: -2.404e-05 | AD9: -0.001448 | AE9: -2.28e-07 | AF9: 1.418e-05 | AG9: 0.06631 | AH9: -0.0006334 | AI9: 0.0002623 | AJ9: -0.1195 | AK9: -0.2132 | AL9: -0.01207 | AM9: 6.678e-05 | AN9: -1.043e-07 | AO9: -0.01587 | AP9: 8.56e-05 | AQ9: -2.29e-07 | AR9: 0.0007658 | AS9: -1.963e-07 | AT9: -5.621e-06 | AU9: 0.5395 | AV9: -0.006003 | AW9: 8.935e-06 | AX9: -0.01591 | AY9: 3.627e-05 | AZ9: 0.0001943 | BA9: 0.462 | BB9: 0.0007859 | BC9: -0.008343 | BD9: -0.04503 | BE9: -0.7722 | BF9: 0.004974 | BG9: -1.651e-05 | BH9: 0.01943 | BI9: 1.868e-05 | BJ9: -0.0002152 | BK9: -0.03981 | BL9: -0.0005492 | BM9: 0.0007025 | BN9: 0.009415 | BO9: 0.05747 | BP9: 0.0002154 | BQ9: -0.001438 | BR9: -0.004895 | BS9: -0.002542 | BT9: 0.2268 | BU9: 0.05903 | BV9: -0.00079 | BW9: 1.848e-06 | BX9: 0.003883 | BY9: -3.056e-05 | BZ9: 2.406e-07 | CA9: -0.001021 | CB9: 1.145e-07 | CC9: 7.844e-06 | CD9: -1.91 | CE9: 0.003331 | CF9: 3.849e-05 | CG9: 0.02328 | CH9: -2.075e-05 | CI9: -0.0002842 | CJ9: -0.3846 | CK9: 0.0009092 | CL9: 0.006248 | CM9: 0.3955 | CN9: 2.383 | CO9: -0.03615 | CP9: 0.0001031 | CQ9: -0.03871 | CR9: 3.639e-05 | CS9: 0.0001859 | CT9: -1.637 | CU9: 0.002483 | CV9: 0.02107 | CW9: 0.7175 | CX9: -0.182 | CY9: -0.00132 | CZ9: 0.007007 | DA9: -0.2484 | DB9: 0.1211 | DC9: 3.573 | DD9: 0.01223 | DE9: -8.327e-05 | DF9: -0.04732 | DG9: 2.752e-05 | DH9: 0.0005357 | DI9: 1.955 | DJ9: -0.01285 | DK9: -0.0108 | DL9: -1.285 | DM9: 2.069 | DN9: -0.003777 | DO9: -0.008751 | DP9: -0.6694 | DQ9: -0.3061 | DR9: -1.566 | DS9: 0.009708 | DT9: -0.00343 | DU9: 1.263 | DV9: -0.9112 | DW9: -0.4633 | DX9: 24.8 | DY9: -1.388 | DZ9: 0.008011 | EA9: -1.232e-05 | EB9: 1.048 | EC9: 0.01072 | ED9: -2.135e-05 | EE9: -0.03498 | EF9: -2.394e-05 | EG9: 0.0001344 | EH9: 86.58 | EI9: -1.38 | EJ9: 0.00286 | EK9: -1.579 | EL9: 0.004152 | EM9: 0.0104 | EN9: 31.79 | EO9: 0.06795 | EP9: 0.008285 | EQ9: -2.62 | ER9: -184.3 | ES9: 0.2283 | ET9: -0.0004642 | EU9: 4.497 | EV9: -0.003062 | EW9: -0.01528 | EX9: 30.53 | EY9: 0.05533 | EZ9: -1.08 | FA9: 9.187 | FB9: -13.42 | FC9: 0.02768 | FD9: 0.1067 | FE9: -3.312 | FF9: 0.9557 | FG9: 723.2 | FH9: -4.736 | FI9: 0.008817 | FJ9: -7.89 | FK9: 0.01906 | FL9: 0.01927 | FM9: 141.2 | FN9: -0.4953 | FO9: 0.1639 | FP9: -33.56 | FQ9: -112.9 | FR9: 0.2664 | FS9: 0.1368 | FT9: 13.07 | FU9: -3.042 | FV9: -150.3 | FW9: 0.2292 | FX9: 1.155 | FY9: 69.37 | FZ9: -6.618 | GA9: -21.47 | GB9: -353.2 | GC9: 0.1491 | GD9: 0.005297 | GE9: 16.58 | GF9: -0.05015 | GG9: 0.003079 | GH9: 483.9 | GI9: -1.163 | GJ9: -3.269 | GK9: -100.8 | GL9: 231.8 | GM9: -0.5071 | GN9: -1.51 | GO9: -106.4 | GP9: 3.9 | GQ9: 901.3 | GR9: -4.788 | GS9: 8.27 | GT9: 33.38 | GU9: 320.1 | GV9: 286.9 | GW9: -101 | GX9: -1.27 | GY9: -0.6291 | GZ9: 200.3 | HA9: 431.4 | HB9: -164.1 | HC9: 133.3 | HD9: 0.1324 | HE9: -0.0008243 | HF9: 1.176e-05 | HG9: -2.696e-08 | HH9: -0.005552 | HI9: -4.125e-05 | HJ9: 8.716e-08 | HK9: 0.0001169 | HL9: 1.688e-07 | HM9: -7.033e-07 | HN9: -0.1447 | HO9: -0.0005678 | HP9: 1.192e-06 | HQ9: 0.008146 | HR9: -7.741e-06 | HS9: -6.052e-05 | HT9: 0.08104 | HU9: -0.0001954 | HV9: -0.0001023 | HW9: -0.02116 | HX9: 0.3705 | HY9: -0.002643 | HZ9: -2.443e-06 | IA9: -0.009195 | IB9: 8.255e-05 | IC9: -2.663e-05 | ID9: -0.3378 | IE9: 0.00116 | IF9: 0.001145 | IG9: 0.1048 | IH9: 0.04036 | II9: -6.355e-05 | IJ9: -0.001846 | IK9: -0.05456 | IL9: 0.02412 | IM9: 0.8221 | IN9: 0.001981 | IO9: -1.062e-05 | IP9: -0.002689 | IQ9: -3.355e-05 | IR9: 0.0002122 | IS9: 0.6261 | IT9: -0.003596 | IU9: 0.003484 | IV9: -0.4451 | IW9: 0.3758 | IX9: -0.0008082 | IY9: 0.01346 | IZ9: -0.114 | JA9: -0.1075 | JB9: -1.585 | JC9: 0.00211 | JD9: 0.00744 | JE9: 1.135 | JF9: -1.284 | JG9: -0.4346 | JH9: 63.61 | JI9: -0.4096 | JJ9: 0.0003734 | JK9: -0.03567 | JL9: -0.0009417 | JM9: 0.001504 | JN9: 79.34 | JO9: -0.1046 | JP9: -0.2244 | JQ9: -20.11 | JR9: -1.751 | JS9: 0.1416 | JT9: -0.3162 | JU9: -2.464 | JV9: -3.001 | JW9: -112.3 | JX9: 0.428 | JY9: 1.329 | JZ9: 30.61 | KA9: -6.78 | KB9: 21.43 | KC9: -76.95 | KD9: 0.1737 | KE9: 1.317 | KF9: 10.89 | KG9: 86.98 | KH9: -196.6 | KI9: -123 | KJ9: -0.02444 | KK9: 0.0006598 | KL9: -2.274e-06 | KM9: 0.00223 | KN9: -4.737e-06 | KO9: 7.38e-06 | KP9: 0.1084 | KQ9: -0.0006427 | KR9: 0.0007523 | KS9: -0.05639 | KT9: -0.119 | KU9: 0.0007557 | KV9: 0.002529 | KW9: -0.02413 | KX9: -0.01317 | KY9: -0.04198 | KZ9: -0.0003494 | LA9: -0.0004588 | LB9: 0.3167 | LC9: -0.4225 | LD9: 0.05588 | LE9: -5.193 | LF9: 0.06717 | LG9: 0.1643 | LH9: -1.783 | LI9: -3.709 | LJ9: -4.57 | LK9: -39.87 | LL9: 0.01639 | LM9: -0.0001215 | LN9: -5.202e-05 | LO9: 0.03257 | LP9: -0.03997 | LQ9: -0.05233 | LR9: -3.046 | LS9: -0.005785 | LT9: -0.662 | LU9: 0.01442 | LV9: -4.236e-05 | LW9: 1.695e-08 | LX9: 0.007361 | LY9: -0.0002342 | LZ9: 6.563e-07 | MA9: 9.125e-05 | MB9: -3.291e-07 | MC9: -3.807e-07 | MD9: -0.1758 | ME9: -0.0001393 | MF9: -1.158e-07 | MG9: 0.006009 | MH9: 5.702e-06 | MI9: -2.787e-05 | MJ9: -0.005539 | MK9: -0.0001196 | ML9: 0.0001085 | MM9: 0.004084 | MN9: 0.06882 | MO9: -0.001227 | MP9: 1.037e-05 | MQ9: 0.00127 | MR9: -4.196e-05 | MS9: 2.575e-05 | MT9: -0.09357 | MU9: 0.0005428 | MV9: 0.002307 | MW9: -0.04248 | MX9: -0.01991 | MY9: -5.814e-05 | MZ9: 0.0006447 | NA9: 0.002694 | NB9: 0.0007487 | NC9: 0.06791 | ND9: 0.004753 | NE9: -1.743e-05 | NF9: 0.01143 | NG9: -4.438e-06 | NH9: -0.0001236 | NI9: 0.2307 | NJ9: -0.0007284 | NK9: -0.001877 | NL9: -0.1156 | NM9: 0.1896 | NN9: -0.0005432 | NO9: -0.001308 | NP9: 0.2794 | NQ9: -0.1655 | NR9: -0.4486 | NS9: 0.001048 | NT9: 0.001998 | NU9: 0.1433 | NV9: -0.913 | NW9: 0.3457 | NX9: 48.9 | NY9: -0.311 | NZ9: 0.0003798 | OA9: -0.8218 | OB9: 0.002751 | OC9: -4.649e-05 | OD9: 12.31 | OE9: 0.001914 | OF9: 0.01415 | OG9: -3.457 | OH9: 24.43 | OI9: 0.006008 | OJ9: -0.3192 | OK9: -0.1286 | OL9: -2.985 | OM9: 7.87 | ON9: 0.03538 | OO9: -0.2303 | OP9: 5.48 | OQ9: 0.611 | OR9: 38.85 | OS9: 18.92 | OT9: 0.2513 | OU9: -0.1144 | OV9: 6.919 | OW9: -129.5 | OX9: -235.5 | OY9: -48.24 | OZ9: 0.3712 | PA9: -0.003081 | PB9: 7.455e-06 | PC9: -0.001432 | PD9: -8.773e-06 | PE9: 2.26e-05 | PF9: 0.08115 | PG9: 4.752e-05 | PH9: 0.0004673 | PI9: -0.06261 | PJ9: 0.04368 | PK9: -0.000177 | PL9: 0.0005529 | PM9: 0.04551 | PN9: -0.0248 | PO9: -0.1206 | PP9: 0.0003824 | PQ9: -0.002963 | PR9: 0.2318 | PS9: -0.7085 | PT9: 0.2914 | PU9: 4.412 | PV9: -0.04244 | PW9: 0.02211 | PX9: 1.784 | PY9: -0.8463 | PZ9: 22.25 | QA9: -116.2 | QB9: 0.02047 | QC9: -0.0003117 | QD9: 0.0001219 | QE9: 0.02972 | QF9: -0.1013 | QG9: -0.07678 | QH9: 5.184 | QI9: -0.01416 | QJ9: 0.06586 | QK9: 2.304e-05 | QL9: -1.086e-06 | QM9: -0.001694 | QN9: 6.132e-07 | QO9: 9.231e-06 | QP9: 0.02287 | QQ9: -0.0003178 | QR9: 0.0007016 | QS9: 0.002909 | QT9: 0.1127 | QU9: -0.0003089 | QV9: -0.001944 | QW9: 0.007617 | QX9: 0.001129 | QY9: 0.05156 | QZ9: 0.0005223 | RA9: -0.002453 | RB9: 0.06312 | RC9: -0.1063 | RD9: 0.02306 | RE9: 5.46 | RF9: -0.02128 | RG9: 0.03209 | RH9: -2.041 | RI9: 1.471 | RJ9: -0.9748 | RK9: -7.03 | RL9: 0.01262 | RM9: -0.0001253 | RN9: -0.0002334 | RO9: 0.03132 | RP9: -0.02602 | RQ9: -0.0694 | RR9: 0.6011 | RS9: 0.003775 | RT9: -0.006694 | RU9: 9.91e-06 | RV9: 0.0001438 | RW9: -0.005122 | RX9: 0.005154 | RY9: -0.02393 | RZ9: -0.3271 | SA9: 0.003625 | SB9: 0.001899
A10: 72 | B10: 6.394 | C10: -0.2388 | D10: 0.002889 | E10: -8.81e-06 | F10: 7.127e-09 | G10: -0.001018 | H10: 0.0001054 | I10: -2.479e-07 | J10: -6.91e-11 | K10: -1.275e-06 | L10: -1.098e-06 | M10: 2.884e-09 | N10: 6.212e-07 | O10: -9.608e-10 | P10: -5.079e-09 | Q10: 0.01205 | R10: -0.04111 | S10: 0.0006597 | T10: -1.613e-06 | U10: 0.002289 | V10: -3.484e-05 | W10: 3.639e-08 | X10: -2.707e-05 | Y10: 2.183e-07 | Z10: 2.391e-07 | AA10: 0.1223 | AB10: 0.002043 | AC10: -2.479e-05 | AD10: -0.002247 | AE10: -5.216e-07 | AF10: 1.715e-05 | AG10: 0.05223 | AH10: -0.0006828 | AI10: 0.0002055 | AJ10: -0.04115 | AK10: -0.3476 | AL10: -0.01296 | AM10: 7.848e-05 | AN10: -1.365e-07 | AO10: 0.01204 | AP10: 7.375e-05 | AQ10: -1.561e-07 | AR10: 8.418e-05 | AS10: -2.629e-07 | AT10: -1.263e-06 | AU10: 0.3892 | AV10: -0.002986 | AW10: 2.314e-06 | AX10: -0.01374 | AY10: 2.128e-05 | AZ10: 0.0001746 | BA10: 0.3886 | BB10: 0.0004034 | BC10: -0.006638 | BD10: -0.04051 | BE10: -0.5731 | BF10: 0.00228 | BG10: -8.242e-06 | BH10: 0.01733 | BI10: 1.375e-05 | BJ10: -0.0001735 | BK10: -0.02533 | BL10: -0.0003183 | BM10: 7.349e-05 | BN10: 0.01254 | BO10: 0.03777 | BP10: 0.0001421 | BQ10: -0.001084 | BR10: -0.002978 | BS10: -0.001461 | BT10: 0.7363 | BU10: 0.04463 | BV10: -0.0007288 | BW10: 1.771e-06 | BX10: -0.01015 | BY10: 0.0001492 | BZ10: -1.662e-07 | CA10: -0.0003541 | CB10: -1.771e-07 | CC10: 2.504e-06 | CD10: -0.3997 | CE10: 0.0001779 | CF10: 3.93e-05 | CG10: 0.01681 | CH10: 7.464e-06 | CI10: -0.0002367 | CJ10: -0.2705 | CK10: 0.001459 | CL10: 0.003132 | CM10: 0.1088 | CN10: 0.5866 | CO10: -0.02308 | CP10: 7.168e-05 | CQ10: 0.01139 | CR10: 1.325e-05 | CS10: -0.0002056 | CT10: -1.344 | CU10: 0.001398 | CV10: 0.01808 | CW10: 0.566 | CX10: -0.1295 | CY10: -0.0009683 | CZ10: 0.004881 | DA10: -0.203 | DB10: 0.09105 | DC10: 1.994 | DD10: 0.002114 | DE10: -4.251e-05 | DF10: -0.03328 | DG10: 7.385e-05 | DH10: 0.0003409 | DI10: 1.298 | DJ10: -0.008223 | DK10: -0.008162 | DL10: -0.7814 | DM10: 1.145 | DN10: 1.246e-05 | DO10: -0.005077 | DP10: -0.8987 | DQ10: -0.07092 | DR10: -1.112 | DS10: 0.004889 | DT10: 0.003199 | DU10: 1.146 | DV10: -0.05314 | DW10: -0.1864 | DX10: 4.843 | DY10: -0.6812 | DZ10: 0.003334 | EA10: -4.089e-06 | EB10: -0.2319 | EC10: 0.01601 | ED10: -3.459e-05 | EE10: -0.01712 | EF10: -2.393e-05 | EG10: 6.725e-05 | EH10: 36.43 | EI10: -0.6178 | EJ10: 0.001407 | EK10: -1.275 | EL10: 0.002696 | EM10: 0.00671 | EN10: 23.73 | EO10: 0.003736 | EP10: 0.0653 | EQ10: -2.04 | ER10: -62.99 | ES10: -0.157 | ET10: 0.0004003 | EU10: 1.866 | EV10: -0.0008054 | EW10: -0.003626 | EX10: 30.52 | EY10: -0.01987 | EZ10: -0.6375 | FA10: 4.425 | FB10: -13.3 | FC10: 0.03901 | FD10: 0.08616 | FE10: -2.319 | FF10: 0.8615 | FG10: 537.2 | FH10: -4.585 | FI10: 0.009111 | FJ10: -3.228 | FK10: 0.009328 | FL10: 0.004596 | FM10: 129.6 | FN10: -0.2072 | FO10: -0.04877 | FP10: -34.07 | FQ10: -122.8 | FR10: 0.4361 | FS10: 0.7653 | FT10: -6.419 | FU10: -6.841 | FV10: -91.48 | FW10: 0.1983 | FX10: -0.201 | FY10: 57.47 | FZ10: 1.251 | GA10: -12.11 | GB10: 431.8 | GC10: -6.139 | GD10: 0.01712 | GE10: 11.11 | GF10: -0.03156 | GG10: -0.005357 | GH10: 306.4 | GI10: -0.7295 | GJ10: -2.002 | GK10: -59.63 | GL10: 153 | GM10: -1.274 | GN10: -0.8863 | GO10: -13.51 | GP10: 55.23 | GQ10: 590.9 | GR10: -2.537 | GS10: 3.995 | GT10: -18.48 | GU10: 6.983 | GV10: 187.6 | GW10: -245.2 | GX10: -0.2295 | GY10: -0.7284 | GZ10: 153 | HA10: 433.4 | HB10: -74.29 | HC10: 90.45 | HD10: -0.1058 | HE10: 0.001388 | HF10: 5.198e-06 | HG10: -2.32e-08 | HH10: 0.008936 | HI10: -9.381e-05 | HJ10: 1.931e-07 | HK10: -0.0001276 | HL10: 2.225e-07 | HM10: 7.788e-07 | HN10: -0.1823 | HO10: 0.0001799 | HP10: -1.354e-06 | HQ10: 0.006322 | HR10: -1.751e-06 | HS10: -3.501e-05 | HT10: 0.07472 | HU10: -0.0001178 | HV10: -0.0005372 | HW10: -0.02298 | HX10: 0.09611 | HY10: -0.00257 | HZ10: 1.723e-06 | IA10: 0.001491 | IB10: 5.008e-05 | IC10: -8.534e-05 | ID10: -0.2233 | IE10: 0.0007806 | IF10: 0.0005266 | IG10: 0.09591 | IH10: -0.001084 | II10: -1.245e-05 | IJ10: -0.0006347 | IK10: -0.05258 | IL10: 0.01816 | IM10: 0.03781 | IN10: 0.006671 | IO10: -1.276e-05 | IP10: -0.004004 | IQ10: -3.642e-05 | IR10: 0.0001656 | IS10: -0.09919 | IT10: -0.0006483 | IU10: 0.005207 | IV10: -0.3513 | IW10: 0.5591 | IX10: 0.0001066 | IY10: 0.002527 | IZ10: -0.2747 | JA10: -0.005491 | JB10: -1.057 | JC10: 0.001193 | JD10: 0.01112 | JE10: 0.9404 | JF10: -0.3798 | JG10: -0.2185 | JH10: 59.06 | JI10: -0.5337 | JJ10: 0.0007067 | JK10: 0.01533 | JL10: -0.0003367 | JM10: 0.0006447 | JN10: 65.2 | JO10: -0.0612 | JP10: -0.1613 | JQ10: -16.89 | JR10: -24.62 | JS10: 0.231 | JT10: -0.03083 | JU10: -8.638 | JV10: -3.609 | JW10: -66.38 | JX10: 0.4531 | JY10: 0.3764 | JZ10: 10.87 | KA10: -5.891 | KB10: 21.44 | KC10: -85.51 | KD10: 0.4487 | KE10: 0.73 | KF10: -3.005 | KG10: 79.55 | KH10: -145 | KI10: -51.51 | KJ10: -0.008971 | KK10: -0.0006985 | KL10: 1.535e-06 | KM10: 0.000685 | KN10: 1.619e-06 | KO10: 1.999e-06 | KP10: -0.02176 | KQ10: -1.938e-05 | KR10: 0.0005972 | KS10: -0.0261 | KT10: -0.02526 | KU10: 0.0005959 | KV10: 0.0003291 | KW10: -0.03914 | KX10: -0.0004806 | KY10: 0.06165 | KZ10: -0.0003341 | LA10: 0.0002663 | LB10: 0.2022 | LC10: -0.1952 | LD10: 0.06117 | LE10: -6.702 | LF10: 0.09185 | LG10: 0.07815 | LH10: -3.802 | LI10: -5.907 | LJ10: -2.093 | LK10: -33.7 | LL10: 0.002827 | LM10: 6.434e-06 | LN10: -0.0001035 | LO10: 0.0245 | LP10: -0.02594 | LQ10: -0.03112 | LR10: -2.169 | LS10: 0.0001024 | LT10: -0.5391 | LU10: 0.01234 | LV10: -3.655e-05 | LW10: 1.576e-08 | LX10: 0.008138 | LY10: -0.0002187 | LZ10: 5.727e-07 | MA10: 4.049e-05 | MB10: -1.025e-07 | MC10: -1.669e-07 | MD10: -0.1529 | ME10: -0.0002505 | MF10: 2.426e-07 | MG10: 0.005472 | MH10: 2.781e-06 | MI10: -1.54e-05 | MJ10: 0.01191 | MK10: -0.0001065 | ML10: 6.703e-05 | MM10: -0.005506 | MN10: 0.2737 | MO10: -0.002729 | MP10: 1.034e-05 | MQ10: -0.002502 | MR10: -2.135e-05 | MS10: 2.054e-05 | MT10: -0.09747 | MU10: 0.0004602 | MV10: 0.001684 | MW10: -0.002141 | MX10: -0.05716 | MY10: 6.167e-05 | MZ10: 0.001314 | NA10: -0.01236 | NB10: 0.004472 | NC10: -0.171 | ND10: 0.005976 | NE10: -1.55e-05 | NF10: 0.003595 | NG10: -1.817e-05 | NH10: -5.013e-05 | NI10: -0.1734 | NJ10: 0.0008517 | NK10: -0.0007487 | NL10: -0.08334 | NM10: 0.55 | NN10: -0.0009828 | NO10: -0.0072 | NP10: 0.1904 | NQ10: -0.1336 | NR10: -0.04534 | NS10: -0.0005954 | NT10: 0.002485 | NU10: 0.1411 | NV10: -0.6224 | NW10: 0.2503 | NX10: 34.55 | NY10: -0.2278 | NZ10: 0.0002314 | OA10: -0.5885 | OB10: 0.002257 | OC10: -0.0004179 | OD10: 8.254 | OE10: 0.001959 | OF10: 0.03164 | OG10: -2.777 | OH10: 7.988 | OI10: 0.032 | OJ10: -0.1039 | OK10: -1.394 | OL10: -2.004 | OM10: 7.614 | ON10: 0.07987 | OO10: -0.2732 | OP10: 0.4073 | OQ10: 2.336 | OR10: 42.16 | OS10: 5.677 | OT10: 0.2361 | OU10: -0.3625 | OV10: 13.2 | OW10: -89.01 | OX10: -199.6 | OY10: -22.85 | OZ10: 0.2071 | PA10: -0.001747 | PB10: 4.079e-06 | PC10: -0.002535 | PD10: -3.989e-06 | PE10: 2.673e-05 | PF10: 0.03425 | PG10: 0.0001637 | PH10: -0.0002061 | PI10: -0.03851 | PJ10: 0.1094 | PK10: -0.0001087 | PL10: -0.001373 | PM10: 0.03732 | PN10: -0.01851 | PO10: -0.06772 | PP10: -8.328e-05 | PQ10: -0.001351 | PR10: 0.1808 | PS10: -0.476 | PT10: 0.147 | PU10: 3.964 | PV10: -0.03101 | PW10: 0.008621 | PX10: 0.9579 | PY10: 0.9184 | PZ10: 21.67 | QA10: -85.78 | QB10: 0.0007343 | QC10: -0.0002153 | QD10: 0.0001099 | QE10: 0.02243 | QF10: -0.06227 | QG10: -0.05244 | QH10: 4.434 | QI10: -0.003222 | QJ10: 0.03844 | QK10: -0.0001497 | QL10: -1.922e-07 | QM10: -0.001162 | QN10: 1.213e-06 | QO10: 6.033e-06 | QP10: 0.03305 | QQ10: -0.0002245 | QR10: 0.0003402 | QS10: 0.00593 | QT10: 0.08675 | QU10: -0.0001548 | QV10: -0.001801 | QW10: 0.007627 | QX10: -0.001993 | QY10: 0.02604 | QZ10: 0.0003121 | RA10: -0.001421 | RB10: 0.04329 | RC10: -0.05636 | RD10: 0.0007223 | RE10: 3.52 | RF10: -0.01506 | RG10: 0.02659 | RH10: -1.121 | RI10: 1.391 | RJ10: 0.6242 | RK10: -9.773 | RL10: 0.008817 | RM10: -7.77e-05 | RN10: -0.0001469 | RO10: 0.01995 | RP10: -0.01417 | RQ10: -0.01897 | RR10: 0.7007 | RS10: 0.008195 | RT10: -0.003873 | RU10: 5.552e-06 | RV10: 9.948e-05 | RW10: -0.006377 | RX10: 0.005347 | RY10: -0.006587 | RZ10: -0.1253 | SA10: 0.003546 | SB10: 0.001511
A11: inch depth
A13: DayofYear | B13: 0 | C13: 1 | D13: 2 | E13: 3 | F13: 4 | G13: 0 | H13: 1 | I13: 2 | J13: 3 | K13: 0 | L13: 1 | M13: 2 | N13: 0 | O13: 1 | P13: 0 | Q13: 0 | R13: 1 | S13: 2 | T13: 3 | U13: 0 | V13: 1 | W13: 2 | X13: 0 | Y13: 1 | Z13: 0 | AA13: 0 | AB13: 1 | AC13: 2 | AD13: 0 | AE13: 1 | AF13: 0 | AG13: 0 | AH13: 1 | AI13: 0 | AJ13: 0 | AK13: 0 | AL13: 1 | AM13: 2 | AN13: 3 | AO13: 0 | AP13: 1 | AQ13: 2 | AR13: 0 | AS13: 1 | AT13: 0 | AU13: 0 | AV13: 1 | AW13: 2 | AX13: 0 | AY13: 1 | AZ13: 0 | BA13: 0 | BB13: 1 | BC13: 0 | BD13: 0 | BE13: 0 | BF13: 1 | BG13: 2 | BH13: 0 | BI13: 1 | BJ13: 0 | BK13: 0 | BL13: 1 | BM13: 0 | BN13: 0 | BO13: 0 | BP13: 1 | BQ13: 0 | BR13: 0 | BS13: 0 | BT13: 0 | BU13: 1 | BV13: 2 | BW13: 3 | BX13: 0 | BY13: 1 | BZ13: 2 | CA13: 0 | CB13: 1 | CC13: 0 | CD13: 0 | CE13: 1 | CF13: 2 | CG13: 0 | CH13: 1 | CI13: 0 | CJ13: 0 | CK13: 1 | CL13: 0 | CM13: 0 | CN13: 0 | CO13: 1 | CP13: 2 | CQ13: 0 | CR13: 1 | CS13: 0 | CT13: 0 | CU13: 1 | CV13: 0 | CW13: 0 | CX13: 0 | CY13: 1 | CZ13: 0 | DA13: 0 | DB13: 0 | DC13: 0 | DD13: 1 | DE13: 2 | DF13: 0 | DG13: 1 | DH13: 0 | DI13: 0 | DJ13: 1 | DK13: 0 | DL13: 0 | DM13: 0 | DN13: 1 | DO13: 0 | DP13: 0 | DQ13: 0 | DR13: 0 | DS13: 1 | DT13: 0 | DU13: 0 | DV13: 0 | DW13: 0 | DX13: 0 | DY13: 1 | DZ13: 2 | EA13: 3 | EB13: 0 | EC13: 1 | ED13: 2 | EE13: 0 | EF13: 1 | EG13: 0 | EH13: 0 | EI13: 1 | EJ13: 2 | EK13: 0 | EL13: 1 | EM13: 0 | EN13: 0 | EO13: 1 | EP13: 0 | EQ13: 0 | ER13: 0 | ES13: 1 | ET13: 2 | EU13: 0 | EV13: 1 | EW13: 0 | EX13: 0 | EY13: 1 | EZ13: 0 | FA13: 0 | FB13: 0 | FC13: 1 | FD13: 0 | FE13: 0 | FF13: 0 | FG13: 0 | FH13: 1 | FI13: 2 | FJ13: 0 | FK13: 1 | FL13: 0 | FM13: 0 | FN13: 1 | FO13: 0 | FP13: 0 | FQ13: 0 | FR13: 1 | FS13: 0 | FT13: 0 | FU13: 0 | FV13: 0 | FW13: 1 | FX13: 0 | FY13: 0 | FZ13: 0 | GA13: 0 | GB13: 0 | GC13: 1 | GD13: 2 | GE13: 0 | GF13: 1 | GG13: 0 | GH13: 0 | GI13: 1 | GJ13: 0 | GK13: 0 | GL13: 0 | GM13: 1 | GN13: 0 | GO13: 0 | GP13: 0 | GQ13: 0 | GR13: 1 | GS13: 0 | GT13: 0 | GU13: 0 | GV13: 0 | GW13: 0 | GX13: 1 | GY13: 0 | GZ13: 0 | HA13: 0 | HB13: 0 | HC13: 0 | HD13: 0 | HE13: 1 | HF13: 2 | HG13: 3 | HH13: 0 | HI13: 1 | HJ13: 2 | HK13: 0 | HL13: 1 | HM13: 0 | HN13: 0 | HO13: 1 | HP13: 2 | HQ13: 0 | HR13: 1 | HS13: 0 | HT13: 0 | HU13: 1 | HV13: 0 | HW13: 0 | HX13: 0 | HY13: 1 | HZ13: 2 | IA13: 0 | IB13: 1 | IC13: 0 | ID13: 0 | IE13: 1 | IF13: 0 | IG13: 0 | IH13: 0 | II13: 1 | IJ13: 0 | IK13: 0 | IL13: 0 | IM13: 0 | IN13: 1 | IO13: 2 | IP13: 0 | IQ13: 1 | IR13: 0 | IS13: 0 | IT13: 1 | IU13: 0 | IV13: 0 | IW13: 0 | IX13: 1 | IY13: 0 | IZ13: 0 | JA13: 0 | JB13: 0 | JC13: 1 | JD13: 0 | JE13: 0 | JF13: 0 | JG13: 0 | JH13: 0 | JI13: 1 | JJ13: 2 | JK13: 0 | JL13: 1 | JM13: 0 | JN13: 0 | JO13: 1 | JP13: 0 | JQ13: 0 | JR13: 0 | JS13: 1 | JT13: 0 | JU13: 0 | JV13: 0 | JW13: 0 | JX13: 1 | JY13: 0 | JZ13: 0 | KA13: 0 | KB13: 0 | KC13: 0 | KD13: 1 | KE13: 0 | KF13: 0 | KG13: 0 | KH13: 0 | KI13: 0 | KJ13: 0 | KK13: 1 | KL13: 2 | KM13: 0 | KN13: 1 | KO13: 0 | KP13: 0 | KQ13: 1 | KR13: 0 | KS13: 0 | KT13: 0 | KU13: 1 | KV13: 0 | KW13: 0 | KX13: 0 | KY13: 0 | KZ13: 1 | LA13: 0 | LB13: 0 | LC13: 0 | LD13: 0 | LE13: 0 | LF13: 1 | LG13: 0 | LH13: 0 | LI13: 0 | LJ13: 0 | LK13: 0 | LL13: 0 | LM13: 1 | LN13: 0 | LO13: 0 | LP13: 0 | LQ13: 0 | LR13: 0 | LS13: 0 | LT13: 0 | LU13: 1 | LV13: 2 | LW13: 3 | LX13: 0 | LY13: 1 | LZ13: 2 | MA13: 0 | MB13: 1 | MC13: 0 | MD13: 0 | ME13: 1 | MF13: 2 | MG13: 0 | MH13: 1 | MI13: 0 | MJ13: 0 | MK13: 1 | ML13: 0 | MM13: 0 | MN13: 0 | MO13: 1 | MP13: 2 | MQ13: 0 | MR13: 1 | MS13: 0 | MT13: 0 | MU13: 1 | MV13: 0 | MW13: 0 | MX13: 0 | MY13: 1 | MZ13: 0 | NA13: 0 | NB13: 0 | NC13: 0 | ND13: 1 | NE13: 2 | NF13: 0 | NG13: 1 | NH13: 0 | NI13: 0 | NJ13: 1 | NK13: 0 | NL13: 0 | NM13: 0 | NN13: 1 | NO13: 0 | NP13: 0 | NQ13: 0 | NR13: 0 | NS13: 1 | NT13: 0 | NU13: 0 | NV13: 0 | NW13: 0 | NX13: 0 | NY13: 1 | NZ13: 2 | OA13: 0 | OB13: 1 | OC13: 0 | OD13: 0 | OE13: 1 | OF13: 0 | OG13: 0 | OH13: 0 | OI13: 1 | OJ13: 0 | OK13: 0 | OL13: 0 | OM13: 0 | ON13: 1 | OO13: 0 | OP13: 0 | OQ13: 0 | OR13: 0 | OS13: 0 | OT13: 1 | OU13: 0 | OV13: 0 | OW13: 0 | OX13: 0 | OY13: 0 | OZ13: 0 | PA13: 1 | PB13: 2 | PC13: 0 | PD13: 1 | PE13: 0 | PF13: 0 | PG13: 1 | PH13: 0 | PI13: 0 | PJ13: 0 | PK13: 1 | PL13: 0 | PM13: 0 | PN13: 0 | PO13: 0 | PP13: 1 | PQ13: 0 | PR13: 0 | PS13: 0 | PT13: 0 | PU13: 0 | PV13: 1 | PW13: 0 | PX13: 0 | PY13: 0 | PZ13: 0 | QA13: 0 | QB13: 0 | QC13: 1 | QD13: 0 | QE13: 0 | QF13: 0 | QG13: 0 | QH13: 0 | QI13: 0 | QJ13: 0 | QK13: 1 | QL13: 2 | QM13: 0 | QN13: 1 | QO13: 0 | QP13: 0 | QQ13: 1 | QR13: 0 | QS13: 0 | QT13: 0 | QU13: 1 | QV13: 0 | QW13: 0 | QX13: 0 | QY13: 0 | QZ13: 1 | RA13: 0 | RB13: 0 | RC13: 0 | RD13: 0 | RE13: 0 | RF13: 1 | RG13: 0 | RH13: 0 | RI13: 0 | RJ13: 0 | RK13: 0 | RL13: 0 | RM13: 1 | RN13: 0 | RO13: 0 | RP13: 0 | RQ13: 0 | RR13: 0 | RS13: 0 | RT13: 0 | RU13: 1 | RV13: 0 | RW13: 0 | RX13: 0 | RY13: 0 | RZ13: 0 | SA13: 0 | SB13: 0
A14: Timestep | B14: 0 | C14: 0 | D14: 0 | E14: 0 | F14: 0 | G14: 1 | H14: 1 | I14: 1 | J14: 1 | K14: 2 | L14: 2 | M14: 2 | N14: 3 | O14: 3 | P14: 4 | Q14: 0 | R14: 0 | S14: 0 | T14: 0 | U14: 1 | V14: 1 | W14: 1 | X14: 2 | Y14: 2 | Z14: 3 | AA14: 0 | AB14: 0 | AC14: 0 | AD14: 1 | AE14: 1 | AF14: 2 | AG14: 0 | AH14: 0 | AI14: 1 | AJ14: 0 | AK14: 0 | AL14: 0 | AM14: 0 | AN14: 0 | AO14: 1 | AP14: 1 | AQ14: 1 | AR14: 2 | AS14: 2 | AT14: 3 | AU14: 0 | AV14: 0 | AW14: 0 | AX14: 1 | AY14: 1 | AZ14: 2 | BA14: 0 | BB14: 0 | BC14: 1 | BD14: 0 | BE14: 0 | BF14: 0 | BG14: 0 | BH14: 1 | BI14: 1 | BJ14: 2 | BK14: 0 | BL14: 0 | BM14: 1 | BN14: 0 | BO14: 0 | BP14: 0 | BQ14: 1 | BR14: 0 | BS14: 0 | BT14: 0 | BU14: 0 | BV14: 0 | BW14: 0 | BX14: 1 | BY14: 1 | BZ14: 1 | CA14: 2 | CB14: 2 | CC14: 3 | CD14: 0 | CE14: 0 | CF14: 0 | CG14: 1 | CH14: 1 | CI14: 2 | CJ14: 0 | CK14: 0 | CL14: 1 | CM14: 0 | CN14: 0 | CO14: 0 | CP14: 0 | CQ14: 1 | CR14: 1 | CS14: 2 | CT14: 0 | CU14: 0 | CV14: 1 | CW14: 0 | CX14: 0 | CY14: 0 | CZ14: 1 | DA14: 0 | DB14: 0 | DC14: 0 | DD14: 0 | DE14: 0 | DF14: 1 | DG14: 1 | DH14: 2 | DI14: 0 | DJ14: 0 | DK14: 1 | DL14: 0 | DM14: 0 | DN14: 0 | DO14: 1 | DP14: 0 | DQ14: 0 | DR14: 0 | DS14: 0 | DT14: 1 | DU14: 0 | DV14: 0 | DW14: 0 | DX14: 0 | DY14: 0 | DZ14: 0 | EA14: 0 | EB14: 1 | EC14: 1 | ED14: 1 | EE14: 2 | EF14: 2 | EG14: 3 | EH14: 0 | EI14: 0 | EJ14: 0 | EK14: 1 | EL14: 1 | EM14: 2 | EN14: 0 | EO14: 0 | EP14: 1 | EQ14: 0 | ER14: 0 | ES14: 0 | ET14: 0 | EU14: 1 | EV14: 1 | EW14: 2 | EX14: 0 | EY14: 0 | EZ14: 1 | FA14: 0 | FB14: 0 | FC14: 0 | FD14: 1 | FE14: 0 | FF14: 0 | FG14: 0 | FH14: 0 | FI14: 0 | FJ14: 1 | FK14: 1 | FL14: 2 | FM14: 0 | FN14: 0 | FO14: 1 | FP14: 0 | FQ14: 0 | FR14: 0 | FS14: 1 | FT14: 0 | FU14: 0 | FV14: 0 | FW14: 0 | FX14: 1 | FY14: 0 | FZ14: 0 | GA14: 0 | GB14: 0 | GC14: 0 | GD14: 0 | GE14: 1 | GF14: 1 | GG14: 2 | GH14: 0 | GI14: 0 | GJ14: 1 | GK14: 0 | GL14: 0 | GM14: 0 | GN14: 1 | GO14: 0 | GP14: 0 | GQ14: 0 | GR14: 0 | GS14: 1 | GT14: 0 | GU14: 0 | GV14: 0 | GW14: 0 | GX14: 0 | GY14: 1 | GZ14: 0 | HA14: 0 | HB14: 0 | HC14: 0 | HD14: 0 | HE14: 0 | HF14: 0 | HG14: 0 | HH14: 1 | HI14: 1 | HJ14: 1 | HK14: 2 | HL14: 2 | HM14: 3 | HN14: 0 | HO14: 0 | HP14: 0 | HQ14: 1 | HR14: 1 | HS14: 2 | HT14: 0 | HU14: 0 | HV14: 1 | HW14: 0 | HX14: 0 | HY14: 0 | HZ14: 0 | IA14: 1 | IB14: 1 | IC14: 2 | ID14: 0 | IE14: 0 | IF14: 1 | IG14: 0 | IH14: 0 | II14: 0 | IJ14: 1 | IK14: 0 | IL14: 0 | IM14: 0 | IN14: 0 | IO14: 0 | IP14: 1 | IQ14: 1 | IR14: 2 | IS14: 0 | IT14: 0 | IU14: 1 | IV14: 0 | IW14: 0 | IX14: 0 | IY14: 1 | IZ14: 0 | JA14: 0 | JB14: 0 | JC14: 0 | JD14: 1 | JE14: 0 | JF14: 0 | JG14: 0 | JH14: 0 | JI14: 0 | JJ14: 0 | JK14: 1 | JL14: 1 | JM14: 2 | JN14: 0 | JO14: 0 | JP14: 1 | JQ14: 0 | JR14: 0 | JS14: 0 | JT14: 1 | JU14: 0 | JV14: 0 | JW14: 0 | JX14: 0 | JY14: 1 | JZ14: 0 | KA14: 0 | KB14: 0 | KC14: 0 | KD14: 0 | KE14: 1 | KF14: 0 | KG14: 0 | KH14: 0 | KI14: 0 | KJ14: 0 | KK14: 0 | KL14: 0 | KM14: 1 | KN14: 1 | KO14: 2 | KP14: 0 | KQ14: 0 | KR14: 1 | KS14: 0 | KT14: 0 | KU14: 0 | KV14: 1 | KW14: 0 | KX14: 0 | KY14: 0 | KZ14: 0 | LA14: 1 | LB14: 0 | LC14: 0 | LD14: 0 | LE14: 0 | LF14: 0 | LG14: 1 | LH14: 0 | LI14: 0 | LJ14: 0 | LK14: 0 | LL14: 0 | LM14: 0 | LN14: 1 | LO14: 0 | LP14: 0 | LQ14: 0 | LR14: 0 | LS14: 0 | LT14: 0 | LU14: 0 | LV14: 0 | LW14: 0 | LX14: 1 | LY14: 1 | LZ14: 1 | MA14: 2 | MB14: 2 | MC14: 3 | MD14: 0 | ME14: 0 | MF14: 0 | MG14: 1 | MH14: 1 | MI14: 2 | MJ14: 0 | MK14: 0 | ML14: 1 | MM14: 0 | MN14: 0 | MO14: 0 | MP14: 0 | MQ14: 1 | MR14: 1 | MS14: 2 | MT14: 0 | MU14: 0 | MV14: 1 | MW14: 0 | MX14: 0 | MY14: 0 | MZ14: 1 | NA14: 0 | NB14: 0 | NC14: 0 | ND14: 0 | NE14: 0 | NF14: 1 | NG14: 1 | NH14: 2 | NI14: 0 | NJ14: 0 | NK14: 1 | NL14: 0 | NM14: 0 | NN14: 0 | NO14: 1 | NP14: 0 | NQ14: 0 | NR14: 0 | NS14: 0 | NT14: 1 | NU14: 0 | NV14: 0 | NW14: 0 | NX14: 0 | NY14: 0 | NZ14: 0 | OA14: 1 | OB14: 1 | OC14: 2 | OD14: 0 | OE14: 0 | OF14: 1 | OG14: 0 | OH14: 0 | OI14: 0 | OJ14: 1 | OK14: 0 | OL14: 0 | OM14: 0 | ON14: 0 | OO14: 1 | OP14: 0 | OQ14: 0 | OR14: 0 | OS14: 0 | OT14: 0 | OU14: 1 | OV14: 0 | OW14: 0 | OX14: 0 | OY14: 0 | OZ14: 0 | PA14: 0 | PB14: 0 | PC14: 1 | PD14: 1 | PE14: 2 | PF14: 0 | PG14: 0 | PH14: 1 | PI14: 0 | PJ14: 0 | PK14: 0 | PL14: 1 | PM14: 0 | PN14: 0 | PO14: 0 | PP14: 0 | PQ14: 1 | PR14: 0 | PS14: 0 | PT14: 0 | PU14: 0 | PV14: 0 | PW14: 1 | PX14: 0 | PY14: 0 | PZ14: 0 | QA14: 0 | QB14: 0 | QC14: 0 | QD14: 1 | QE14: 0 | QF14: 0 | QG14: 0 | QH14: 0 | QI14: 0 | QJ14: 0 | QK14: 0 | QL14: 0 | QM14: 1 | QN14: 1 | QO14: 2 | QP14: 0 | QQ14: 0 | QR14: 1 | QS14: 0 | QT14: 0 | QU14: 0 | QV14: 1 | QW14: 0 | QX14: 0 | QY14: 0 | QZ14: 0 | RA14: 1 | RB14: 0 | RC14: 0 | RD14: 0 | RE14: 0 | RF14: 0 | RG14: 1 | RH14: 0 | RI14: 0 | RJ14: 0 | RK14: 0 | RL14: 0 | RM14: 0 | RN14: 1 | RO14: 0 | RP14: 0 | RQ14: 0 | RR14: 0 | RS14: 0 | RT14: 0 | RU14: 0 | RV14: 1 | RW14: 0 | RX14: 0 | RY14: 0 | RZ14: 0 | SA14: 0 | SB14: 0
A15: AirTemp | B15: 0 | C15: 0 | D15: 0 | E15: 0 | F15: 0 | G15: 0 | H15: 0 | I15: 0 | J15: 0 | K15: 0 | L15: 0 | M15: 0 | N15: 0 | O15: 0 | P15: 0 | Q15: 1 | R15: 1 | S15: 1 | T15: 1 | U15: 1 | V15: 1 | W15: 1 | X15: 1 | Y15: 1 | Z15: 1 | AA15: 2 | AB15: 2 | AC15: 2 | AD15: 2 | AE15: 2 | AF15: 2 | AG15: 3 | AH15: 3 | AI15: 3 | AJ15: 4 | AK15: 0 | AL15: 0 | AM15: 0 | AN15: 0 | AO15: 0 | AP15: 0 | AQ15: 0 | AR15: 0 | AS15: 0 | AT15: 0 | AU15: 1 | AV15: 1 | AW15: 1 | AX15: 1 | AY15: 1 | AZ15: 1 | BA15: 2 | BB15: 2 | BC15: 2 | BD15: 3 | BE15: 0 | BF15: 0 | BG15: 0 | BH15: 0 | BI15: 0 | BJ15: 0 | BK15: 1 | BL15: 1 | BM15: 1 | BN15: 2 | BO15: 0 | BP15: 0 | BQ15: 0 | BR15: 1 | BS15: 0 | BT15: 0 | BU15: 0 | BV15: 0 | BW15: 0 | BX15: 0 | BY15: 0 | BZ15: 0 | CA15: 0 | CB15: 0 | CC15: 0 | CD15: 1 | CE15: 1 | CF15: 1 | CG15: 1 | CH15: 1 | CI15: 1 | CJ15: 2 | CK15: 2 | CL15: 2 | CM15: 3 | CN15: 0 | CO15: 0 | CP15: 0 | CQ15: 0 | CR15: 0 | CS15: 0 | CT15: 1 | CU15: 1 | CV15: 1 | CW15: 2 | CX15: 0 | CY15: 0 | CZ15: 0 | DA15: 1 | DB15: 0 | DC15: 0 | DD15: 0 | DE15: 0 | DF15: 0 | DG15: 0 | DH15: 0 | DI15: 1 | DJ15: 1 | DK15: 1 | DL15: 2 | DM15: 0 | DN15: 0 | DO15: 0 | DP15: 1 | DQ15: 0 | DR15: 0 | DS15: 0 | DT15: 0 | DU15: 1 | DV15: 0 | DW15: 0 | DX15: 0 | DY15: 0 | DZ15: 0 | EA15: 0 | EB15: 0 | EC15: 0 | ED15: 0 | EE15: 0 | EF15: 0 | EG15: 0 | EH15: 1 | EI15: 1 | EJ15: 1 | EK15: 1 | EL15: 1 | EM15: 1 | EN15: 2 | EO15: 2 | EP15: 2 | EQ15: 3 | ER15: 0 | ES15: 0 | ET15: 0 | EU15: 0 | EV15: 0 | EW15: 0 | EX15: 1 | EY15: 1 | EZ15: 1 | FA15: 2 | FB15: 0 | FC15: 0 | FD15: 0 | FE15: 1 | FF15: 0 | FG15: 0 | FH15: 0 | FI15: 0 | FJ15: 0 | FK15: 0 | FL15: 0 | FM15: 1 | FN15: 1 | FO15: 1 | FP15: 2 | FQ15: 0 | FR15: 0 | FS15: 0 | FT15: 1 | FU15: 0 | FV15: 0 | FW15: 0 | FX15: 0 | FY15: 1 | FZ15: 0 | GA15: 0 | GB15: 0 | GC15: 0 | GD15: 0 | GE15: 0 | GF15: 0 | GG15: 0 | GH15: 1 | GI15: 1 | GJ15: 1 | GK15: 2 | GL15: 0 | GM15: 0 | GN15: 0 | GO15: 1 | GP15: 0 | GQ15: 0 | GR15: 0 | GS15: 0 | GT15: 1 | GU15: 0 | GV15: 0 | GW15: 0 | GX15: 0 | GY15: 0 | GZ15: 1 | HA15: 0 | HB15: 0 | HC15: 0 | HD15: 0 | HE15: 0 | HF15: 0 | HG15: 0 | HH15: 0 | HI15: 0 | HJ15: 0 | HK15: 0 | HL15: 0 | HM15: 0 | HN15: 1 | HO15: 1 | HP15: 1 | HQ15: 1 | HR15: 1 | HS15: 1 | HT15: 2 | HU15: 2 | HV15: 2 | HW15: 3 | HX15: 0 | HY15: 0 | HZ15: 0 | IA15: 0 | IB15: 0 | IC15: 0 | ID15: 1 | IE15: 1 | IF15: 1 | IG15: 2 | IH15: 0 | II15: 0 | IJ15: 0 | IK15: 1 | IL15: 0 | IM15: 0 | IN15: 0 | IO15: 0 | IP15: 0 | IQ15: 0 | IR15: 0 | IS15: 1 | IT15: 1 | IU15: 1 | IV15: 2 | IW15: 0 | IX15: 0 | IY15: 0 | IZ15: 1 | JA15: 0 | JB15: 0 | JC15: 0 | JD15: 0 | JE15: 1 | JF15: 0 | JG15: 0 | JH15: 0 | JI15: 0 | JJ15: 0 | JK15: 0 | JL15: 0 | JM15: 0 | JN15: 1 | JO15: 1 | JP15: 1 | JQ15: 2 | JR15: 0 | JS15: 0 | JT15: 0 | JU15: 1 | JV15: 0 | JW15: 0 | JX15: 0 | JY15: 0 | JZ15: 1 | KA15: 0 | KB15: 0 | KC15: 0 | KD15: 0 | KE15: 0 | KF15: 1 | KG15: 0 | KH15: 0 | KI15: 0 | KJ15: 0 | KK15: 0 | KL15: 0 | KM15: 0 | KN15: 0 | KO15: 0 | KP15: 1 | KQ15: 1 | KR15: 1 | KS15: 2 | KT15: 0 | KU15: 0 | KV15: 0 | KW15: 1 | KX15: 0 | KY15: 0 | KZ15: 0 | LA15: 0 | LB15: 1 | LC15: 0 | LD15: 0 | LE15: 0 | LF15: 0 | LG15: 0 | LH15: 1 | LI15: 0 | LJ15: 0 | LK15: 0 | LL15: 0 | LM15: 0 | LN15: 0 | LO15: 1 | LP15: 0 | LQ15: 0 | LR15: 0 | LS15: 0 | LT15: 0 | LU15: 0 | LV15: 0 | LW15: 0 | LX15: 0 | LY15: 0 | LZ15: 0 | MA15: 0 | MB15: 0 | MC15: 0 | MD15: 1 | ME15: 1 | MF15: 1 | MG15: 1 | MH15: 1 | MI15: 1 | MJ15: 2 | MK15: 2 | ML15: 2 | MM15: 3 | MN15: 0 | MO15: 0 | MP15: 0 | MQ15: 0 | MR15: 0 | MS15: 0 | MT15: 1 | MU15: 1 | MV15: 1 | MW15: 2 | MX15: 0 | MY15: 0 | MZ15: 0 | NA15: 1 | NB15: 0 | NC15: 0 | ND15: 0 | NE15: 0 | NF15: 0 | NG15: 0 | NH15: 0 | NI15: 1 | NJ15: 1 | NK15: 1 | NL15: 2 | NM15: 0 | NN15: 0 | NO15: 0 | NP15: 1 | NQ15: 0 | NR15: 0 | NS15: 0 | NT15: 0 | NU15: 1 | NV15: 0 | NW15: 0 | NX15: 0 | NY15: 0 | NZ15: 0 | OA15: 0 | OB15: 0 | OC15: 0 | OD15: 1 | OE15: 1 | OF15: 1 | OG15: 2 | OH15: 0 | OI15: 0 | OJ15: 0 | OK15: 1 | OL15: 0 | OM15: 0 | ON15: 0 | OO15: 0 | OP15: 1 | OQ15: 0 | OR15: 0 | OS15: 0 | OT15: 0 | OU15: 0 | OV15: 1 | OW15: 0 | OX15: 0 | OY15: 0 | OZ15: 0 | PA15: 0 | PB15: 0 | PC15: 0 | PD15: 0 | PE15: 0 | PF15: 1 | PG15: 1 | PH15: 1 | PI15: 2 | PJ15: 0 | PK15: 0 | PL15: 0 | PM15: 1 | PN15: 0 | PO15: 0 | PP15: 0 | PQ15: 0 | PR15: 1 | PS15: 0 | PT15: 0 | PU15: 0 | PV15: 0 | PW15: 0 | PX15: 1 | PY15: 0 | PZ15: 0 | QA15: 0 | QB15: 0 | QC15: 0 | QD15: 0 | QE15: 1 | QF15: 0 | QG15: 0 | QH15: 0 | QI15: 0 | QJ15: 0 | QK15: 0 | QL15: 0 | QM15: 0 | QN15: 0 | QO15: 0 | QP15: 1 | QQ15: 1 | QR15: 1 | QS15: 2 | QT15: 0 | QU15: 0 | QV15: 0 | QW15: 1 | QX15: 0 | QY15: 0 | QZ15: 0 | RA15: 0 | RB15: 1 | RC15: 0 | RD15: 0 | RE15: 0 | RF15: 0 | RG15: 0 | RH15: 1 | RI15: 0 | RJ15: 0 | RK15: 0 | RL15: 0 | RM15: 0 | RN15: 0 | RO15: 1 | RP15: 0 | RQ15: 0 | RR15: 0 | RS15: 0 | RT15: 0 | RU15: 0 | RV15: 0 | RW15: 1 | RX15: 0 | RY15: 0 | RZ15: 0 | SA15: 0 | SB15: 0
A16: Rad | B16: 0 | C16: 0 | D16: 0 | E16: 0 | F16: 0 | G16: 0 | H16: 0 | I16: 0 | J16: 0 | K16: 0 | L16: 0 | M16: 0 | N16: 0 | O16: 0 | P16: 0 | Q16: 0 | R16: 0 | S16: 0 | T16: 0 | U16: 0 | V16: 0 | W16: 0 | X16: 0 | Y16: 0 | Z16: 0 | AA16: 0 | AB16: 0 | AC16: 0 | AD16: 0 | AE16: 0 | AF16: 0 | AG16: 0 | AH16: 0 | AI16: 0 | AJ16: 0 | AK16: 1 | AL16: 1 | AM16: 1 | AN16: 1 | AO16: 1 | AP16: 1 | AQ16: 1 | AR16: 1 | AS16: 1 | AT16: 1 | AU16: 1 | AV16: 1 | AW16: 1 | AX16: 1 | AY16: 1 | AZ16: 1 | BA16: 1 | BB16: 1 | BC16: 1 | BD16: 1 | BE16: 2 | BF16: 2 | BG16: 2 | BH16: 2 | BI16: 2 | BJ16: 2 | BK16: 2 | BL16: 2 | BM16: 2 | BN16: 2 | BO16: 3 | BP16: 3 | BQ16: 3 | BR16: 3 | BS16: 4 | BT16: 0 | BU16: 0 | BV16: 0 | BW16: 0 | BX16: 0 | BY16: 0 | BZ16: 0 | CA16: 0 | CB16: 0 | CC16: 0 | CD16: 0 | CE16: 0 | CF16: 0 | CG16: 0 | CH16: 0 | CI16: 0 | CJ16: 0 | CK16: 0 | CL16: 0 | CM16: 0 | CN16: 1 | CO16: 1 | CP16: 1 | CQ16: 1 | CR16: 1 | CS16: 1 | CT16: 1 | CU16: 1 | CV16: 1 | CW16: 1 | CX16: 2 | CY16: 2 | CZ16: 2 | DA16: 2 | DB16: 3 | DC16: 0 | DD16: 0 | DE16: 0 | DF16: 0 | DG16: 0 | DH16: 0 | DI16: 0 | DJ16: 0 | DK16: 0 | DL16: 0 | DM16: 1 | DN16: 1 | DO16: 1 | DP16: 1 | DQ16: 2 | DR16: 0 | DS16: 0 | DT16: 0 | DU16: 0 | DV16: 1 | DW16: 0 | DX16: 0 | DY16: 0 | DZ16: 0 | EA16: 0 | EB16: 0 | EC16: 0 | ED16: 0 | EE16: 0 | EF16: 0 | EG16: 0 | EH16: 0 | EI16: 0 | EJ16: 0 | EK16: 0 | EL16: 0 | EM16: 0 | EN16: 0 | EO16: 0 | EP16: 0 | EQ16: 0 | ER16: 1 | ES16: 1 | ET16: 1 | EU16: 1 | EV16: 1 | EW16: 1 | EX16: 1 | EY16: 1 | EZ16: 1 | FA16: 1 | FB16: 2 | FC16: 2 | FD16: 2 | FE16: 2 | FF16: 3 | FG16: 0 | FH16: 0 | FI16: 0 | FJ16: 0 | FK16: 0 | FL16: 0 | FM16: 0 | FN16: 0 | FO16: 0 | FP16: 0 | FQ16: 1 | FR16: 1 | FS16: 1 | FT16: 1 | FU16: 2 | FV16: 0 | FW16: 0 | FX16: 0 | FY16: 0 | FZ16: 1 | GA16: 0 | GB16: 0 | GC16: 0 | GD16: 0 | GE16: 0 | GF16: 0 | GG16: 0 | GH16: 0 | GI16: 0 | GJ16: 0 | GK16: 0 | GL16: 1 | GM16: 1 | GN16: 1 | GO16: 1 | GP16: 2 | GQ16: 0 | GR16: 0 | GS16: 0 | GT16: 0 | GU16: 1 | GV16: 0 | GW16: 0 | GX16: 0 | GY16: 0 | GZ16: 0 | HA16: 1 | HB16: 0 | HC16: 0 | HD16: 0 | HE16: 0 | HF16: 0 | HG16: 0 | HH16: 0 | HI16: 0 | HJ16: 0 | HK16: 0 | HL16: 0 | HM16: 0 | HN16: 0 | HO16: 0 | HP16: 0 | HQ16: 0 | HR16: 0 | HS16: 0 | HT16: 0 | HU16: 0 | HV16: 0 | HW16: 0 | HX16: 1 | HY16: 1 | HZ16: 1 | IA16: 1 | IB16: 1 | IC16: 1 | ID16: 1 | IE16: 1 | IF16: 1 | IG16: 1 | IH16: 2 | II16: 2 | IJ16: 2 | IK16: 2 | IL16: 3 | IM16: 0 | IN16: 0 | IO16: 0 | IP16: 0 | IQ16: 0 | IR16: 0 | IS16: 0 | IT16: 0 | IU16: 0 | IV16: 0 | IW16: 1 | IX16: 1 | IY16: 1 | IZ16: 1 | JA16: 2 | JB16: 0 | JC16: 0 | JD16: 0 | JE16: 0 | JF16: 1 | JG16: 0 | JH16: 0 | JI16: 0 | JJ16: 0 | JK16: 0 | JL16: 0 | JM16: 0 | JN16: 0 | JO16: 0 | JP16: 0 | JQ16: 0 | JR16: 1 | JS16: 1 | JT16: 1 | JU16: 1 | JV16: 2 | JW16: 0 | JX16: 0 | JY16: 0 | JZ16: 0 | KA16: 1 | KB16: 0 | KC16: 0 | KD16: 0 | KE16: 0 | KF16: 0 | KG16: 1 | KH16: 0 | KI16: 0 | KJ16: 0 | KK16: 0 | KL16: 0 | KM16: 0 | KN16: 0 | KO16: 0 | KP16: 0 | KQ16: 0 | KR16: 0 | KS16: 0 | KT16: 1 | KU16: 1 | KV16: 1 | KW16: 1 | KX16: 2 | KY16: 0 | KZ16: 0 | LA16: 0 | LB16: 0 | LC16: 1 | LD16: 0 | LE16: 0 | LF16: 0 | LG16: 0 | LH16: 0 | LI16: 1 | LJ16: 0 | LK16: 0 | LL16: 0 | LM16: 0 | LN16: 0 | LO16: 0 | LP16: 1 | LQ16: 0 | LR16: 0 | LS16: 0 | LT16: 0 | LU16: 0 | LV16: 0 | LW16: 0 | LX16: 0 | LY16: 0 | LZ16: 0 | MA16: 0 | MB16: 0 | MC16: 0 | MD16: 0 | ME16: 0 | MF16: 0 | MG16: 0 | MH16: 0 | MI16: 0 | MJ16: 0 | MK16: 0 | ML16: 0 | MM16: 0 | MN16: 1 | MO16: 1 | MP16: 1 | MQ16: 1 | MR16: 1 | MS16: 1 | MT16: 1 | MU16: 1 | MV16: 1 | MW16: 1 | MX16: 2 | MY16: 2 | MZ16: 2 | NA16: 2 | NB16: 3 | NC16: 0 | ND16: 0 | NE16: 0 | NF16: 0 | NG16: 0 | NH16: 0 | NI16: 0 | NJ16: 0 | NK16: 0 | NL16: 0 | NM16: 1 | NN16: 1 | NO16: 1 | NP16: 1 | NQ16: 2 | NR16: 0 | NS16: 0 | NT16: 0 | NU16: 0 | NV16: 1 | NW16: 0 | NX16: 0 | NY16: 0 | NZ16: 0 | OA16: 0 | OB16: 0 | OC16: 0 | OD16: 0 | OE16: 0 | OF16: 0 | OG16: 0 | OH16: 1 | OI16: 1 | OJ16: 1 | OK16: 1 | OL16: 2 | OM16: 0 | ON16: 0 | OO16: 0 | OP16: 0 | OQ16: 1 | OR16: 0 | OS16: 0 | OT16: 0 | OU16: 0 | OV16: 0 | OW16: 1 | OX16: 0 | OY16: 0 | OZ16: 0 | PA16: 0 | PB16: 0 | PC16: 0 | PD16: 0 | PE16: 0 | PF16: 0 | PG16: 0 | PH16: 0 | PI16: 0 | PJ16: 1 | PK16: 1 | PL16: 1 | PM16: 1 | PN16: 2 | PO16: 0 | PP16: 0 | PQ16: 0 | PR16: 0 | PS16: 1 | PT16: 0 | PU16: 0 | PV16: 0 | PW16: 0 | PX16: 0 | PY16: 1 | PZ16: 0 | QA16: 0 | QB16: 0 | QC16: 0 | QD16: 0 | QE16: 0 | QF16: 1 | QG16: 0 | QH16: 0 | QI16: 0 | QJ16: 0 | QK16: 0 | QL16: 0 | QM16: 0 | QN16: 0 | QO16: 0 | QP16: 0 | QQ16: 0 | QR16: 0 | QS16: 0 | QT16: 1 | QU16: 1 | QV16: 1 | QW16: 1 | QX16: 2 | QY16: 0 | QZ16: 0 | RA16: 0 | RB16: 0 | RC16: 1 | RD16: 0 | RE16: 0 | RF16: 0 | RG16: 0 | RH16: 0 | RI16: 1 | RJ16: 0 | RK16: 0 | RL16: 0 | RM16: 0 | RN16: 0 | RO16: 0 | RP16: 1 | RQ16: 0 | RR16: 0 | RS16: 0 | RT16: 0 | RU16: 0 | RV16: 0 | RW16: 0 | RX16: 1 | RY16: 0 | RZ16: 0 | SA16: 0 | SB16: 0
A17: varAirTemp | B17: 0 | C17: 0 | D17: 0 | E17: 0 | F17: 0 | G17: 0 | H17: 0 | I17: 0 | J17: 0 | K17: 0 | L17: 0 | M17: 0 | N17: 0 | O17: 0 | P17: 0 | Q17: 0 | R17: 0 | S17: 0 | T17: 0 | U17: 0 | V17: 0 | W17: 0 | X17: 0 | Y17: 0 | Z17: 0 | AA17: 0 | AB17: 0 | AC17: 0 | AD17: 0 | AE17: 0 | AF17: 0 | AG17: 0 | AH17: 0 | AI17: 0 | AJ17: 0 | AK17: 0 | AL17: 0 | AM17: 0 | AN17: 0 | AO17: 0 | AP17: 0 | AQ17: 0 | AR17: 0 | AS17: 0 | AT17: 0 | AU17: 0 | AV17: 0 | AW17: 0 | AX17: 0 | AY17: 0 | AZ17: 0 | BA17: 0 | BB17: 0 | BC17: 0 | BD17: 0 | BE17: 0 | BF17: 0 | BG17: 0 | BH17: 0 | BI17: 0 | BJ17: 0 | BK17: 0 | BL17: 0 | BM17: 0 | BN17: 0 | BO17: 0 | BP17: 0 | BQ17: 0 | BR17: 0 | BS17: 0 | BT17: 1 | BU17: 1 | BV17: 1 | BW17: 1 | BX17: 1 | BY17: 1 | BZ17: 1 | CA17: 1 | CB17: 1 | CC17: 1 | CD17: 1 | CE17: 1 | CF17: 1 | CG17: 1 | CH17: 1 | CI17: 1 | CJ17: 1 | CK17: 1 | CL17: 1 | CM17: 1 | CN17: 1 | CO17: 1 | CP17: 1 | CQ17: 1 | CR17: 1 | CS17: 1 | CT17: 1 | CU17: 1 | CV17: 1 | CW17: 1 | CX17: 1 | CY17: 1 | CZ17: 1 | DA17: 1 | DB17: 1 | DC17: 2 | DD17: 2 | DE17: 2 | DF17: 2 | DG17: 2 | DH17: 2 | DI17: 2 | DJ17: 2 | DK17: 2 | DL17: 2 | DM17: 2 | DN17: 2 | DO17: 2 | DP17: 2 | DQ17: 2 | DR17: 3 | DS17: 3 | DT17: 3 | DU17: 3 | DV17: 3 | DW17: 4 | DX17: 0 | DY17: 0 | DZ17: 0 | EA17: 0 | EB17: 0 | EC17: 0 | ED17: 0 | EE17: 0 | EF17: 0 | EG17: 0 | EH17: 0 | EI17: 0 | EJ17: 0 | EK17: 0 | EL17: 0 | EM17: 0 | EN17: 0 | EO17: 0 | EP17: 0 | EQ17: 0 | ER17: 0 | ES17: 0 | ET17: 0 | EU17: 0 | EV17: 0 | EW17: 0 | EX17: 0 | EY17: 0 | EZ17: 0 | FA17: 0 | FB17: 0 | FC17: 0 | FD17: 0 | FE17: 0 | FF17: 0 | FG17: 1 | FH17: 1 | FI17: 1 | FJ17: 1 | FK17: 1 | FL17: 1 | FM17: 1 | FN17: 1 | FO17: 1 | FP17: 1 | FQ17: 1 | FR17: 1 | FS17: 1 | FT17: 1 | FU17: 1 | FV17: 2 | FW17: 2 | FX17: 2 | FY17: 2 | FZ17: 2 | GA17: 3 | GB17: 0 | GC17: 0 | GD17: 0 | GE17: 0 | GF17: 0 | GG17: 0 | GH17: 0 | GI17: 0 | GJ17: 0 | GK17: 0 | GL17: 0 | GM17: 0 | GN17: 0 | GO17: 0 | GP17: 0 | GQ17: 1 | GR17: 1 | GS17: 1 | GT17: 1 | GU17: 1 | GV17: 2 | GW17: 0 | GX17: 0 | GY17: 0 | GZ17: 0 | HA17: 0 | HB17: 1 | HC17: 0 | HD17: 0 | HE17: 0 | HF17: 0 | HG17: 0 | HH17: 0 | HI17: 0 | HJ17: 0 | HK17: 0 | HL17: 0 | HM17: 0 | HN17: 0 | HO17: 0 | HP17: 0 | HQ17: 0 | HR17: 0 | HS17: 0 | HT17: 0 | HU17: 0 | HV17: 0 | HW17: 0 | HX17: 0 | HY17: 0 | HZ17: 0 | IA17: 0 | IB17: 0 | IC17: 0 | ID17: 0 | IE17: 0 | IF17: 0 | IG17: 0 | IH17: 0 | II17: 0 | IJ17: 0 | IK17: 0 | IL17: 0 | IM17: 1 | IN17: 1 | IO17: 1 | IP17: 1 | IQ17: 1 | IR17: 1 | IS17: 1 | IT17: 1 | IU17: 1 | IV17: 1 | IW17: 1 | IX17: 1 | IY17: 1 | IZ17: 1 | JA17: 1 | JB17: 2 | JC17: 2 | JD17: 2 | JE17: 2 | JF17: 2 | JG17: 3 | JH17: 0 | JI17: 0 | JJ17: 0 | JK17: 0 | JL17: 0 | JM17: 0 | JN17: 0 | JO17: 0 | JP17: 0 | JQ17: 0 | JR17: 0 | JS17: 0 | JT17: 0 | JU17: 0 | JV17: 0 | JW17: 1 | JX17: 1 | JY17: 1 | JZ17: 1 | KA17: 1 | KB17: 2 | KC17: 0 | KD17: 0 | KE17: 0 | KF17: 0 | KG17: 0 | KH17: 1 | KI17: 0 | KJ17: 0 | KK17: 0 | KL17: 0 | KM17: 0 | KN17: 0 | KO17: 0 | KP17: 0 | KQ17: 0 | KR17: 0 | KS17: 0 | KT17: 0 | KU17: 0 | KV17: 0 | KW17: 0 | KX17: 0 | KY17: 1 | KZ17: 1 | LA17: 1 | LB17: 1 | LC17: 1 | LD17: 2 | LE17: 0 | LF17: 0 | LG17: 0 | LH17: 0 | LI17: 0 | LJ17: 1 | LK17: 0 | LL17: 0 | LM17: 0 | LN17: 0 | LO17: 0 | LP17: 0 | LQ17: 1 | LR17: 0 | LS17: 0 | LT17: 0 | LU17: 0 | LV17: 0 | LW17: 0 | LX17: 0 | LY17: 0 | LZ17: 0 | MA17: 0 | MB17: 0 | MC17: 0 | MD17: 0 | ME17: 0 | MF17: 0 | MG17: 0 | MH17: 0 | MI17: 0 | MJ17: 0 | MK17: 0 | ML17: 0 | MM17: 0 | MN17: 0 | MO17: 0 | MP17: 0 | MQ17: 0 | MR17: 0 | MS17: 0 | MT17: 0 | MU17: 0 | MV17: 0 | MW17: 0 | MX17: 0 | MY17: 0 | MZ17: 0 | NA17: 0 | NB17: 0 | NC17: 1 | ND17: 1 | NE17: 1 | NF17: 1 | NG17: 1 | NH17: 1 | NI17: 1 | NJ17: 1 | NK17: 1 | NL17: 1 | NM17: 1 | NN17: 1 | NO17: 1 | NP17: 1 | NQ17: 1 | NR17: 2 | NS17: 2 | NT17: 2 | NU17: 2 | NV17: 2 | NW17: 3 | NX17: 0 | NY17: 0 | NZ17: 0 | OA17: 0 | OB17: 0 | OC17: 0 | OD17: 0 | OE17: 0 | OF17: 0 | OG17: 0 | OH17: 0 | OI17: 0 | OJ17: 0 | OK17: 0 | OL17: 0 | OM17: 1 | ON17: 1 | OO17: 1 | OP17: 1 | OQ17: 1 | OR17: 2 | OS17: 0 | OT17: 0 | OU17: 0 | OV17: 0 | OW17: 0 | OX17: 1 | OY17: 0 | OZ17: 0 | PA17: 0 | PB17: 0 | PC17: 0 | PD17: 0 | PE17: 0 | PF17: 0 | PG17: 0 | PH17: 0 | PI17: 0 | PJ17: 0 | PK17: 0 | PL17: 0 | PM17: 0 | PN17: 0 | PO17: 1 | PP17: 1 | PQ17: 1 | PR17: 1 | PS17: 1 | PT17: 2 | PU17: 0 | PV17: 0 | PW17: 0 | PX17: 0 | PY17: 0 | PZ17: 1 | QA17: 0 | QB17: 0 | QC17: 0 | QD17: 0 | QE17: 0 | QF17: 0 | QG17: 1 | QH17: 0 | QI17: 0 | QJ17: 0 | QK17: 0 | QL17: 0 | QM17: 0 | QN17: 0 | QO17: 0 | QP17: 0 | QQ17: 0 | QR17: 0 | QS17: 0 | QT17: 0 | QU17: 0 | QV17: 0 | QW17: 0 | QX17: 0 | QY17: 1 | QZ17: 1 | RA17: 1 | RB17: 1 | RC17: 1 | RD17: 2 | RE17: 0 | RF17: 0 | RG17: 0 | RH17: 0 | RI17: 0 | RJ17: 1 | RK17: 0 | RL17: 0 | RM17: 0 | RN17: 0 | RO17: 0 | RP17: 0 | RQ17: 1 | RR17: 0 | RS17: 0 | RT17: 0 | RU17: 0 | RV17: 0 | RW17: 0 | RX17: 0 | RY17: 1 | RZ17: 0 | SA17: 0 | SB17: 0
A18: varRain | B18: 0 | C18: 0 | D18: 0 | E18: 0 | F18: 0 | G18: 0 | H18: 0 | I18: 0 | J18: 0 | K18: 0 | L18: 0 | M18: 0 | N18: 0 | O18: 0 | P18: 0 | Q18: 0 | R18: 0 | S18: 0 | T18: 0 | U18: 0 | V18: 0 | W18: 0 | X18: 0 | Y18: 0 | Z18: 0 | AA18: 0 | AB18: 0 | AC18: 0 | AD18: 0 | AE18: 0 | AF18: 0 | AG18: 0 | AH18: 0 | AI18: 0 | AJ18: 0 | AK18: 0 | AL18: 0 | AM18: 0 | AN18: 0 | AO18: 0 | AP18: 0 | AQ18: 0 | AR18: 0 | AS18: 0 | AT18: 0 | AU18: 0 | AV18: 0 | AW18: 0 | AX18: 0 | AY18: 0 | AZ18: 0 | BA18: 0 | BB18: 0 | BC18: 0 | BD18: 0 | BE18: 0 | BF18: 0 | BG18: 0 | BH18: 0 | BI18: 0 | BJ18: 0 | BK18: 0 | BL18: 0 | BM18: 0 | BN18: 0 | BO18: 0 | BP18: 0 | BQ18: 0 | BR18: 0 | BS18: 0 | BT18: 0 | BU18: 0 | BV18: 0 | BW18: 0 | BX18: 0 | BY18: 0 | BZ18: 0 | CA18: 0 | CB18: 0 | CC18: 0 | CD18: 0 | CE18: 0 | CF18: 0 | CG18: 0 | CH18: 0 | CI18: 0 | CJ18: 0 | CK18: 0 | CL18: 0 | CM18: 0 | CN18: 0 | CO18: 0 | CP18: 0 | CQ18: 0 | CR18: 0 | CS18: 0 | CT18: 0 | CU18: 0 | CV18: 0 | CW18: 0 | CX18: 0 | CY18: 0 | CZ18: 0 | DA18: 0 | DB18: 0 | DC18: 0 | DD18: 0 | DE18: 0 | DF18: 0 | DG18: 0 | DH18: 0 | DI18: 0 | DJ18: 0 | DK18: 0 | DL18: 0 | DM18: 0 | DN18: 0 | DO18: 0 | DP18: 0 | DQ18: 0 | DR18: 0 | DS18: 0 | DT18: 0 | DU18: 0 | DV18: 0 | DW18: 0 | DX18: 1 | DY18: 1 | DZ18: 1 | EA18: 1 | EB18: 1 | EC18: 1 | ED18: 1 | EE18: 1 | EF18: 1 | EG18: 1 | EH18: 1 | EI18: 1 | EJ18: 1 | EK18: 1 | EL18: 1 | EM18: 1 | EN18: 1 | EO18: 1 | EP18: 1 | EQ18: 1 | ER18: 1 | ES18: 1 | ET18: 1 | EU18: 1 | EV18: 1 | EW18: 1 | EX18: 1 | EY18: 1 | EZ18: 1 | FA18: 1 | FB18: 1 | FC18: 1 | FD18: 1 | FE18: 1 | FF18: 1 | FG18: 1 | FH18: 1 | FI18: 1 | FJ18: 1 | FK18: 1 | FL18: 1 | FM18: 1 | FN18: 1 | FO18: 1 | FP18: 1 | FQ18: 1 | FR18: 1 | FS18: 1 | FT18: 1 | FU18: 1 | FV18: 1 | FW18: 1 | FX18: 1 | FY18: 1 | FZ18: 1 | GA18: 1 | GB18: 2 | GC18: 2 | GD18: 2 | GE18: 2 | GF18: 2 | GG18: 2 | GH18: 2 | GI18: 2 | GJ18: 2 | GK18: 2 | GL18: 2 | GM18: 2 | GN18: 2 | GO18: 2 | GP18: 2 | GQ18: 2 | GR18: 2 | GS18: 2 | GT18: 2 | GU18: 2 | GV18: 2 | GW18: 3 | GX18: 3 | GY18: 3 | GZ18: 3 | HA18: 3 | HB18: 3 | HC18: 4 | HD18: 0 | HE18: 0 | HF18: 0 | HG18: 0 | HH18: 0 | HI18: 0 | HJ18: 0 | HK18: 0 | HL18: 0 | HM18: 0 | HN18: 0 | HO18: 0 | HP18: 0 | HQ18: 0 | HR18: 0 | HS18: 0 | HT18: 0 | HU18: 0 | HV18: 0 | HW18: 0 | HX18: 0 | HY18: 0 | HZ18: 0 | IA18: 0 | IB18: 0 | IC18: 0 | ID18: 0 | IE18: 0 | IF18: 0 | IG18: 0 | IH18: 0 | II18: 0 | IJ18: 0 | IK18: 0 | IL18: 0 | IM18: 0 | IN18: 0 | IO18: 0 | IP18: 0 | IQ18: 0 | IR18: 0 | IS18: 0 | IT18: 0 | IU18: 0 | IV18: 0 | IW18: 0 | IX18: 0 | IY18: 0 | IZ18: 0 | JA18: 0 | JB18: 0 | JC18: 0 | JD18: 0 | JE18: 0 | JF18: 0 | JG18: 0 | JH18: 1 | JI18: 1 | JJ18: 1 | JK18: 1 | JL18: 1 | JM18: 1 | JN18: 1 | JO18: 1 | JP18: 1 | JQ18: 1 | JR18: 1 | JS18: 1 | JT18: 1 | JU18: 1 | JV18: 1 | JW18: 1 | JX18: 1 | JY18: 1 | JZ18: 1 | KA18: 1 | KB18: 1 | KC18: 2 | KD18: 2 | KE18: 2 | KF18: 2 | KG18: 2 | KH18: 2 | KI18: 3 | KJ18: 0 | KK18: 0 | KL18: 0 | KM18: 0 | KN18: 0 | KO18: 0 | KP18: 0 | KQ18: 0 | KR18: 0 | KS18: 0 | KT18: 0 | KU18: 0 | KV18: 0 | KW18: 0 | KX18: 0 | KY18: 0 | KZ18: 0 | LA18: 0 | LB18: 0 | LC18: 0 | LD18: 0 | LE18: 1 | LF18: 1 | LG18: 1 | LH18: 1 | LI18: 1 | LJ18: 1 | LK18: 2 | LL18: 0 | LM18: 0 | LN18: 0 | LO18: 0 | LP18: 0 | LQ18: 0 | LR18: 1 | LS18: 0 | LT18: 0 | LU18: 0 | LV18: 0 | LW18: 0 | LX18: 0 | LY18: 0 | LZ18: 0 | MA18: 0 | MB18: 0 | MC18: 0 | MD18: 0 | ME18: 0 | MF18: 0 | MG18: 0 | MH18: 0 | MI18: 0 | MJ18: 0 | MK18: 0 | ML18: 0 | MM18: 0 | MN18: 0 | MO18: 0 | MP18: 0 | MQ18: 0 | MR18: 0 | MS18: 0 | MT18: 0 | MU18: 0 | MV18: 0 | MW18: 0 | MX18: 0 | MY18: 0 | MZ18: 0 | NA18: 0 | NB18: 0 | NC18: 0 | ND18: 0 | NE18: 0 | NF18: 0 | NG18: 0 | NH18: 0 | NI18: 0 | NJ18: 0 | NK18: 0 | NL18: 0 | NM18: 0 | NN18: 0 | NO18: 0 | NP18: 0 | NQ18: 0 | NR18: 0 | NS18: 0 | NT18: 0 | NU18: 0 | NV18: 0 | NW18: 0 | NX18: 1 | NY18: 1 | NZ18: 1 | OA18: 1 | OB18: 1 | OC18: 1 | OD18: 1 | OE18: 1 | OF18: 1 | OG18: 1 | OH18: 1 | OI18: 1 | OJ18: 1 | OK18: 1 | OL18: 1 | OM18: 1 | ON18: 1 | OO18: 1 | OP18: 1 | OQ18: 1 | OR18: 1 | OS18: 2 | OT18: 2 | OU18: 2 | OV18: 2 | OW18: 2 | OX18: 2 | OY18: 3 | OZ18: 0 | PA18: 0 | PB18: 0 | PC18: 0 | PD18: 0 | PE18: 0 | PF18: 0 | PG18: 0 | PH18: 0 | PI18: 0 | PJ18: 0 | PK18: 0 | PL18: 0 | PM18: 0 | PN18: 0 | PO18: 0 | PP18: 0 | PQ18: 0 | PR18: 0 | PS18: 0 | PT18: 0 | PU18: 1 | PV18: 1 | PW18: 1 | PX18: 1 | PY18: 1 | PZ18: 1 | QA18: 2 | QB18: 0 | QC18: 0 | QD18: 0 | QE18: 0 | QF18: 0 | QG18: 0 | QH18: 1 | QI18: 0 | QJ18: 0 | QK18: 0 | QL18: 0 | QM18: 0 | QN18: 0 | QO18: 0 | QP18: 0 | QQ18: 0 | QR18: 0 | QS18: 0 | QT18: 0 | QU18: 0 | QV18: 0 | QW18: 0 | QX18: 0 | QY18: 0 | QZ18: 0 | RA18: 0 | RB18: 0 | RC18: 0 | RD18: 0 | RE18: 1 | RF18: 1 | RG18: 1 | RH18: 1 | RI18: 1 | RJ18: 1 | RK18: 2 | RL18: 0 | RM18: 0 | RN18: 0 | RO18: 0 | RP18: 0 | RQ18: 0 | RR18: 1 | RS18: 0 | RT18: 0 | RU18: 0 | RV18: 0 | RW18: 0 | RX18: 0 | RY18: 0 | RZ18: 1 | SA18: 0 | SB18: 0
A19: varRH | B19: 0 | C19: 0 | D19: 0 | E19: 0 | F19: 0 | G19: 0 | H19: 0 | I19: 0 | J19: 0 | K19: 0 | L19: 0 | M19: 0 | N19: 0 | O19: 0 | P19: 0 | Q19: 0 | R19: 0 | S19: 0 | T19: 0 | U19: 0 | V19: 0 | W19: 0 | X19: 0 | Y19: 0 | Z19: 0 | AA19: 0 | AB19: 0 | AC19: 0 | AD19: 0 | AE19: 0 | AF19: 0 | AG19: 0 | AH19: 0 | AI19: 0 | AJ19: 0 | AK19: 0 | AL19: 0 | AM19: 0 | AN19: 0 | AO19: 0 | AP19: 0 | AQ19: 0 | AR19: 0 | AS19: 0 | AT19: 0 | AU19: 0 | AV19: 0 | AW19: 0 | AX19: 0 | AY19: 0 | AZ19: 0 | BA19: 0 | BB19: 0 | BC19: 0 | BD19: 0 | BE19: 0 | BF19: 0 | BG19: 0 | BH19: 0 | BI19: 0 | BJ19: 0 | BK19: 0 | BL19: 0 | BM19: 0 | BN19: 0 | BO19: 0 | BP19: 0 | BQ19: 0 | BR19: 0 | BS19: 0 | BT19: 0 | BU19: 0 | BV19: 0 | BW19: 0 | BX19: 0 | BY19: 0 | BZ19: 0 | CA19: 0 | CB19: 0 | CC19: 0 | CD19: 0 | CE19: 0 | CF19: 0 | CG19: 0 | CH19: 0 | CI19: 0 | CJ19: 0 | CK19: 0 | CL19: 0 | CM19: 0 | CN19: 0 | CO19: 0 | CP19: 0 | CQ19: 0 | CR19: 0 | CS19: 0 | CT19: 0 | CU19: 0 | CV19: 0 | CW19: 0 | CX19: 0 | CY19: 0 | CZ19: 0 | DA19: 0 | DB19: 0 | DC19: 0 | DD19: 0 | DE19: 0 | DF19: 0 | DG19: 0 | DH19: 0 | DI19: 0 | DJ19: 0 | DK19: 0 | DL19: 0 | DM19: 0 | DN19: 0 | DO19: 0 | DP19: 0 | DQ19: 0 | DR19: 0 | DS19: 0 | DT19: 0 | DU19: 0 | DV19: 0 | DW19: 0 | DX19: 0 | DY19: 0 | DZ19: 0 | EA19: 0 | EB19: 0 | EC19: 0 | ED19: 0 | EE19: 0 | EF19: 0 | EG19: 0 | EH19: 0 | EI19: 0 | EJ19: 0 | EK19: 0 | EL19: 0 | EM19: 0 | EN19: 0 | EO19: 0 | EP19: 0 | EQ19: 0 | ER19: 0 | ES19: 0 | ET19: 0 | EU19: 0 | EV19: 0 | EW19: 0 | EX19: 0 | EY19: 0 | EZ19: 0 | FA19: 0 | FB19: 0 | FC19: 0 | FD19: 0 | FE19: 0 | FF19: 0 | FG19: 0 | FH19: 0 | FI19: 0 | FJ19: 0 | FK19: 0 | FL19: 0 | FM19: 0 | FN19: 0 | FO19: 0 | FP19: 0 | FQ19: 0 | FR19: 0 | FS19: 0 | FT19: 0 | FU19: 0 | FV19: 0 | FW19: 0 | FX19: 0 | FY19: 0 | FZ19: 0 | GA19: 0 | GB19: 0 | GC19: 0 | GD19: 0 | GE19: 0 | GF19: 0 | GG19: 0 | GH19: 0 | GI19: 0 | GJ19: 0 | GK19: 0 | GL19: 0 | GM19: 0 | GN19: 0 | GO19: 0 | GP19: 0 | GQ19: 0 | GR19: 0 | GS19: 0 | GT19: 0 | GU19: 0 | GV19: 0 | GW19: 0 | GX19: 0 | GY19: 0 | GZ19: 0 | HA19: 0 | HB19: 0 | HC19: 0 | HD19: 1 | HE19: 1 | HF19: 1 | HG19: 1 | HH19: 1 | HI19: 1 | HJ19: 1 | HK19: 1 | HL19: 1 | HM19: 1 | HN19: 1 | HO19: 1 | HP19: 1 | HQ19: 1 | HR19: 1 | HS19: 1 | HT19: 1 | HU19: 1 | HV19: 1 | HW19: 1 | HX19: 1 | HY19: 1 | HZ19: 1 | IA19: 1 | IB19: 1 | IC19: 1 | ID19: 1 | IE19: 1 | IF19: 1 | IG19: 1 | IH19: 1 | II19: 1 | IJ19: 1 | IK19: 1 | IL19: 1 | IM19: 1 | IN19: 1 | IO19: 1 | IP19: 1 | IQ19: 1 | IR19: 1 | IS19: 1 | IT19: 1 | IU19: 1 | IV19: 1 | IW19: 1 | IX19: 1 | IY19: 1 | IZ19: 1 | JA19: 1 | JB19: 1 | JC19: 1 | JD19: 1 | JE19: 1 | JF19: 1 | JG19: 1 | JH19: 1 | JI19: 1 | JJ19: 1 | JK19: 1 | JL19: 1 | JM19: 1 | JN19: 1 | JO19: 1 | JP19: 1 | JQ19: 1 | JR19: 1 | JS19: 1 | JT19: 1 | JU19: 1 | JV19: 1 | JW19: 1 | JX19: 1 | JY19: 1 | JZ19: 1 | KA19: 1 | KB19: 1 | KC19: 1 | KD19: 1 | KE19: 1 | KF19: 1 | KG19: 1 | KH19: 1 | KI19: 1 | KJ19: 2 | KK19: 2 | KL19: 2 | KM19: 2 | KN19: 2 | KO19: 2 | KP19: 2 | KQ19: 2 | KR19: 2 | KS19: 2 | KT19: 2 | KU19: 2 | KV19: 2 | KW19: 2 | KX19: 2 | KY19: 2 | KZ19: 2 | LA19: 2 | LB19: 2 | LC19: 2 | LD19: 2 | LE19: 2 | LF19: 2 | LG19: 2 | LH19: 2 | LI19: 2 | LJ19: 2 | LK19: 2 | LL19: 3 | LM19: 3 | LN19: 3 | LO19: 3 | LP19: 3 | LQ19: 3 | LR19: 3 | LS19: 4 | LT19: 0 | LU19: 0 | LV19: 0 | LW19: 0 | LX19: 0 | LY19: 0 | LZ19: 0 | MA19: 0 | MB19: 0 | MC19: 0 | MD19: 0 | ME19: 0 | MF19: 0 | MG19: 0 | MH19: 0 | MI19: 0 | MJ19: 0 | MK19: 0 | ML19: 0 | MM19: 0 | MN19: 0 | MO19: 0 | MP19: 0 | MQ19: 0 | MR19: 0 | MS19: 0 | MT19: 0 | MU19: 0 | MV19: 0 | MW19: 0 | MX19: 0 | MY19: 0 | MZ19: 0 | NA19: 0 | NB19: 0 | NC19: 0 | ND19: 0 | NE19: 0 | NF19: 0 | NG19: 0 | NH19: 0 | NI19: 0 | NJ19: 0 | NK19: 0 | NL19: 0 | NM19: 0 | NN19: 0 | NO19: 0 | NP19: 0 | NQ19: 0 | NR19: 0 | NS19: 0 | NT19: 0 | NU19: 0 | NV19: 0 | NW19: 0 | NX19: 0 | NY19: 0 | NZ19: 0 | OA19: 0 | OB19: 0 | OC19: 0 | OD19: 0 | OE19: 0 | OF19: 0 | OG19: 0 | OH19: 0 | OI19: 0 | OJ19: 0 | OK19: 0 | OL19: 0 | OM19: 0 | ON19: 0 | OO19: 0 | OP19: 0 | OQ19: 0 | OR19: 0 | OS19: 0 | OT19: 0 | OU19: 0 | OV19: 0 | OW19: 0 | OX19: 0 | OY19: 0 | OZ19: 1 | PA19: 1 | PB19: 1 | PC19: 1 | PD19: 1 | PE19: 1 | PF19: 1 | PG19: 1 | PH19: 1 | PI19: 1 | PJ19: 1 | PK19: 1 | PL19: 1 | PM19: 1 | PN19: 1 | PO19: 1 | PP19: 1 | PQ19: 1 | PR19: 1 | PS19: 1 | PT19: 1 | PU19: 1 | PV19: 1 | PW19: 1 | PX19: 1 | PY19: 1 | PZ19: 1 | QA19: 1 | QB19: 2 | QC19: 2 | QD19: 2 | QE19: 2 | QF19: 2 | QG19: 2 | QH19: 2 | QI19: 3 | QJ19: 0 | QK19: 0 | QL19: 0 | QM19: 0 | QN19: 0 | QO19: 0 | QP19: 0 | QQ19: 0 | QR19: 0 | QS19: 0 | QT19: 0 | QU19: 0 | QV19: 0 | QW19: 0 | QX19: 0 | QY19: 0 | QZ19: 0 | RA19: 0 | RB19: 0 | RC19: 0 | RD19: 0 | RE19: 0 | RF19: 0 | RG19: 0 | RH19: 0 | RI19: 0 | RJ19: 0 | RK19: 0 | RL19: 1 | RM19: 1 | RN19: 1 | RO19: 1 | RP19: 1 | RQ19: 1 | RR19: 1 | RS19: 2 | RT19: 0 | RU19: 0 | RV19: 0 | RW19: 0 | RX19: 0 | RY19: 0 | RZ19: 0 | SA19: 1 | SB19: 0
A20: varWind | B20: 0 | C20: 0 | D20: 0 | E20: 0 | F20: 0 | G20: 0 | H20: 0 | I20: 0 | J20: 0 | K20: 0 | L20: 0 | M20: 0 | N20: 0 | O20: 0 | P20: 0 | Q20: 0 | R20: 0 | S20: 0 | T20: 0 | U20: 0 | V20: 0 | W20: 0 | X20: 0 | Y20: 0 | Z20: 0 | AA20: 0 | AB20: 0 | AC20: 0 | AD20: 0 | AE20: 0 | AF20: 0 | AG20: 0 | AH20: 0 | AI20: 0 | AJ20: 0 | AK20: 0 | AL20: 0 | AM20: 0 | AN20: 0 | AO20: 0 | AP20: 0 | AQ20: 0 | AR20: 0 | AS20: 0 | AT20: 0 | AU20: 0 | AV20: 0 | AW20: 0 | AX20: 0 | AY20: 0 | AZ20: 0 | BA20: 0 | BB20: 0 | BC20: 0 | BD20: 0 | BE20: 0 | BF20: 0 | BG20: 0 | BH20: 0 | BI20: 0 | BJ20: 0 | BK20: 0 | BL20: 0 | BM20: 0 | BN20: 0 | BO20: 0 | BP20: 0 | BQ20: 0 | BR20: 0 | BS20: 0 | BT20: 0 | BU20: 0 | BV20: 0 | BW20: 0 | BX20: 0 | BY20: 0 | BZ20: 0 | CA20: 0 | CB20: 0 | CC20: 0 | CD20: 0 | CE20: 0 | CF20: 0 | CG20: 0 | CH20: 0 | CI20: 0 | CJ20: 0 | CK20: 0 | CL20: 0 | CM20: 0 | CN20: 0 | CO20: 0 | CP20: 0 | CQ20: 0 | CR20: 0 | CS20: 0 | CT20: 0 | CU20: 0 | CV20: 0 | CW20: 0 | CX20: 0 | CY20: 0 | CZ20: 0 | DA20: 0 | DB20: 0 | DC20: 0 | DD20: 0 | DE20: 0 | DF20: 0 | DG20: 0 | DH20: 0 | DI20: 0 | DJ20: 0 | DK20: 0 | DL20: 0 | DM20: 0 | DN20: 0 | DO20: 0 | DP20: 0 | DQ20: 0 | DR20: 0 | DS20: 0 | DT20: 0 | DU20: 0 | DV20: 0 | DW20: 0 | DX20: 0 | DY20: 0 | DZ20: 0 | EA20: 0 | EB20: 0 | EC20: 0 | ED20: 0 | EE20: 0 | EF20: 0 | EG20: 0 | EH20: 0 | EI20: 0 | EJ20: 0 | EK20: 0 | EL20: 0 | EM20: 0 | EN20: 0 | EO20: 0 | EP20: 0 | EQ20: 0 | ER20: 0 | ES20: 0 | ET20: 0 | EU20: 0 | EV20: 0 | EW20: 0 | EX20: 0 | EY20: 0 | EZ20: 0 | FA20: 0 | FB20: 0 | FC20: 0 | FD20: 0 | FE20: 0 | FF20: 0 | FG20: 0 | FH20: 0 | FI20: 0 | FJ20: 0 | FK20: 0 | FL20: 0 | FM20: 0 | FN20: 0 | FO20: 0 | FP20: 0 | FQ20: 0 | FR20: 0 | FS20: 0 | FT20: 0 | FU20: 0 | FV20: 0 | FW20: 0 | FX20: 0 | FY20: 0 | FZ20: 0 | GA20: 0 | GB20: 0 | GC20: 0 | GD20: 0 | GE20: 0 | GF20: 0 | GG20: 0 | GH20: 0 | GI20: 0 | GJ20: 0 | GK20: 0 | GL20: 0 | GM20: 0 | GN20: 0 | GO20: 0 | GP20: 0 | GQ20: 0 | GR20: 0 | GS20: 0 | GT20: 0 | GU20: 0 | GV20: 0 | GW20: 0 | GX20: 0 | GY20: 0 | GZ20: 0 | HA20: 0 | HB20: 0 | HC20: 0 | HD20: 0 | HE20: 0 | HF20: 0 | HG20: 0 | HH20: 0 | HI20: 0 | HJ20: 0 | HK20: 0 | HL20: 0 | HM20: 0 | HN20: 0 | HO20: 0 | HP20: 0 | HQ20: 0 | HR20: 0 | HS20: 0 | HT20: 0 | HU20: 0 | HV20: 0 | HW20: 0 | HX20: 0 | HY20: 0 | HZ20: 0 | IA20: 0 | IB20: 0 | IC20: 0 | ID20: 0 | IE20: 0 | IF20: 0 | IG20: 0 | IH20: 0 | II20: 0 | IJ20: 0 | IK20: 0 | IL20: 0 | IM20: 0 | IN20: 0 | IO20: 0 | IP20: 0 | IQ20: 0 | IR20: 0 | IS20: 0 | IT20: 0 | IU20: 0 | IV20: 0 | IW20: 0 | IX20: 0 | IY20: 0 | IZ20: 0 | JA20: 0 | JB20: 0 | JC20: 0 | JD20: 0 | JE20: 0 | JF20: 0 | JG20: 0 | JH20: 0 | JI20: 0 | JJ20: 0 | JK20: 0 | JL20: 0 | JM20: 0 | JN20: 0 | JO20: 0 | JP20: 0 | JQ20: 0 | JR20: 0 | JS20: 0 | JT20: 0 | JU20: 0 | JV20: 0 | JW20: 0 | JX20: 0 | JY20: 0 | JZ20: 0 | KA20: 0 | KB20: 0 | KC20: 0 | KD20: 0 | KE20: 0 | KF20: 0 | KG20: 0 | KH20: 0 | KI20: 0 | KJ20: 0 | KK20: 0 | KL20: 0 | KM20: 0 | KN20: 0 | KO20: 0 | KP20: 0 | KQ20: 0 | KR20: 0 | KS20: 0 | KT20: 0 | KU20: 0 | KV20: 0 | KW20: 0 | KX20: 0 | KY20: 0 | KZ20: 0 | LA20: 0 | LB20: 0 | LC20: 0 | LD20: 0 | LE20: 0 | LF20: 0 | LG20: 0 | LH20: 0 | LI20: 0 | LJ20: 0 | LK20: 0 | LL20: 0 | LM20: 0 | LN20: 0 | LO20: 0 | LP20: 0 | LQ20: 0 | LR20: 0 | LS20: 0 | LT20: 1 | LU20: 1 | LV20: 1 | LW20: 1 | LX20: 1 | LY20: 1 | LZ20: 1 | MA20: 1 | MB20: 1 | MC20: 1 | MD20: 1 | ME20: 1 | MF20: 1 | MG20: 1 | MH20: 1 | MI20: 1 | MJ20: 1 | MK20: 1 | ML20: 1 | MM20: 1 | MN20: 1 | MO20: 1 | MP20: 1 | MQ20: 1 | MR20: 1 | MS20: 1 | MT20: 1 | MU20: 1 | MV20: 1 | MW20: 1 | MX20: 1 | MY20: 1 | MZ20: 1 | NA20: 1 | NB20: 1 | NC20: 1 | ND20: 1 | NE20: 1 | NF20: 1 | NG20: 1 | NH20: 1 | NI20: 1 | NJ20: 1 | NK20: 1 | NL20: 1 | NM20: 1 | NN20: 1 | NO20: 1 | NP20: 1 | NQ20: 1 | NR20: 1 | NS20: 1 | NT20: 1 | NU20: 1 | NV20: 1 | NW20: 1 | NX20: 1 | NY20: 1 | NZ20: 1 | OA20: 1 | OB20: 1 | OC20: 1 | OD20: 1 | OE20: 1 | OF20: 1 | OG20: 1 | OH20: 1 | OI20: 1 | OJ20: 1 | OK20: 1 | OL20: 1 | OM20: 1 | ON20: 1 | OO20: 1 | OP20: 1 | OQ20: 1 | OR20: 1 | OS20: 1 | OT20: 1 | OU20: 1 | OV20: 1 | OW20: 1 | OX20: 1 | OY20: 1 | OZ20: 1 | PA20: 1 | PB20: 1 | PC20: 1 | PD20: 1 | PE20: 1 | PF20: 1 | PG20: 1 | PH20: 1 | PI20: 1 | PJ20: 1 | PK20: 1 | PL20: 1 | PM20: 1 | PN20: 1 | PO20: 1 | PP20: 1 | PQ20: 1 | PR20: 1 | PS20: 1 | PT20: 1 | PU20: 1 | PV20: 1 | PW20: 1 | PX20: 1 | PY20: 1 | PZ20: 1 | QA20: 1 | QB20: 1 | QC20: 1 | QD20: 1 | QE20: 1 | QF20: 1 | QG20: 1 | QH20: 1 | QI20: 1 | QJ20: 2 | QK20: 2 | QL20: 2 | QM20: 2 | QN20: 2 | QO20: 2 | QP20: 2 | QQ20: 2 | QR20: 2 | QS20: 2 | QT20: 2 | QU20: 2 | QV20: 2 | QW20: 2 | QX20: 2 | QY20: 2 | QZ20: 2 | RA20: 2 | RB20: 2 | RC20: 2 | RD20: 2 | RE20: 2 | RF20: 2 | RG20: 2 | RH20: 2 | RI20: 2 | RJ20: 2 | RK20: 2 | RL20: 2 | RM20: 2 | RN20: 2 | RO20: 2 | RP20: 2 | RQ20: 2 | RR20: 2 | RS20: 2 | RT20: 3 | RU20: 3 | RV20: 3 | RW20: 3 | RX20: 3 | RY20: 3 | RZ20: 3 | SA20: 3 | SB20: 4
A22: inch depth | B22: max_time_step | C22: min_time_step | D22: max_limit | E22: min_limit | H22: Depths
A23: 3 | B23: 1 | C23: -1 | D23: 52 | E23: -26 | H23: =A23*25 -> 75
A24: 4 | B24: 1 | C24: -1 | D24: 50 | E24: -26 | H24: =A24*25 -> 100
A25: 9.5 | B25: 0.5 | C25: -0.5 | D25: 42 | E25: -24 | H25: 240
A26: 15 | B26: 0.25 | C26: -0.25 | D26: 40 | E26: -22 | H26: 381
A27: 16 | B27: 0.25 | C27: -0.25 | D27: 38 | E27: -22 | H27: 406
A28: 18.5 | B28: 0.25 | C28: -0.25 | D28: 34 | E28: -14 | H28: 470
A29: 19.5 | B29: 0.25 | C29: -0.25 | D29: 34 | E29: -12 | H29: 495
A30: 24 | B30: 0.25 | C30: -0.25 | D30: 32 | E30: -10 | H30: 610
A31: 48 | B31: 0.25 | C31: -0.25 | D31: 28 | E31: -4 | H31: 1220
A32: 72 | B32: 0.25 | C32: -0.25 | D32: 26 | E32: 0 | H32: 1830
B33: =VLOOKUP([1]Sheet1!$G$2,[1]Sheet2!$A$23:$E$32,2,FALSE) -> 1
